Business Unit Description,Expense Code,Expense Code Description,GL Date,Document No.,Invoice No.,Invoiced Value,Supplier Name,Address Book No.,Proclass Details Level 1,Thomson Classification Description
ARBOURTHORNE 5M'S REFURB      ,1143,COMPENSATION                  ,01/07/2014,3668946,ERS INVOICE102687        ,"4,523.71",REDACTED PERSONAL DATA,596983,Unclassified Non Trade,OUT OF SCOPE FOR SIC MONITORIN
NATIONAL ASSISTANCE CONTRACT  ,6210,RENTS                         ,01/07/2014,3668947,ERS INVOICE102688        ,375.00,TAPTON ESTATES PROPERTIES LTD           ,449360,,PROPERTY & ESTATE MANAGEMENT  
NATIONAL ASSISTANCE CONTRACT  ,6210,RENTS                         ,01/07/2014,3668950,ERS INVOICE102691        ,363.00,SANCTUARY MIDLANDS                      ,437596,,"HOUSING ASSOCIATIONS, SOCIETIE"
NATIONAL ASSISTANCE CONTRACT  ,6210,RENTS                         ,01/07/2014,3668951,ERS INVOICE102692        ,350.00,CAPITAL PROPERTIES                      ,478220,,LETTING AGENTS                
NATIONAL ASSISTANCE CONTRACT  ,6210,RENTS                         ,01/07/2014,3668952,ERS INVOICE102693        ,390.00,MU PROPERTIES                           ,583024,,LETTING AGENTS                
EP NORTH EAST LINC            ,1194,OTHER FEES                    ,01/07/2014,3668963,ERS INVOICE102710        ,"1,200.00",EMPOWER                                 ,595284,Unclassified Non Trade,OUT OF SCOPE FOR SIC MONITORIN
EP NORTH EAST LINC            ,1194,OTHER FEES                    ,01/07/2014,3668964,ERS INVOICE102711        ,675.00,CARPET KINGDOM                          ,595246,Unclassified Non Trade,OUT OF SCOPE FOR SIC MONITORIN
EP NORTH EAST LINC            ,1194,OTHER FEES                    ,01/07/2014,3668965,ERS INVOICE102712        ,"9,341.00",CKP GROUP                               ,594102,Unclassified Non Trade,OUT OF SCOPE FOR SIC MONITORIN
DEVELOPMENT CONTROL           ,4180,PLANNING APPLICATION FEES     ,01/07/2014,3668973,ERS INVOICE102720        ,275.00,DELOITTE LLP                            ,597669,Unclassified Non Trade,OUT OF SCOPE FOR SIC MONITORIN
HULL - HUMBER SUB REGION HAL  ,1194,OTHER FEES                    ,01/07/2014,3668976,ERS INVOICE102723        ,"10,000.00",REDACTED PERSONAL DATA,564808,Unclassified Non Trade,OUT OF SCOPE FOR SIC MONITORIN
OLDER PEOPLES MENTAL HEALTH   ,9160,PARTNERSHIP CONTRACTS         ,01/07/2014,3669059,ERS INVOICE102724        ,"283,531.00",SHEFFIELD HEALTH & SOCIAL CARE NHS      ,353994,,HOSPITALS                     
STUDENT FINANCIAL SUPPORT     ,9120,OTHER AGENCIES                ,01/07/2014,3669060,ERS INVOICE102726        ,"1,500.00",OCHIBA BUSINESS SOLUTIONS               ,597473,,COMPUTER CONSULTANTS          
STUDENT FINANCIAL SUPPORT     ,9120,OTHER AGENCIES                ,01/07/2014,3669061,ERS INVOICE102727        ,"1,500.00",LSA MEATS LTD                           ,597659,,MEAT - WHOLESALE              
STUDENT FINANCIAL SUPPORT     ,9120,OTHER AGENCIES                ,01/07/2014,3669062,ERS INVOICE102728        ,"1,500.00",LSA MEATS LTD                           ,597659,,MEAT - WHOLESALE              
HEALTH INTERVENTION & PREVENTI,8440,FEE EXPENSES                  ,01/07/2014,3650522,10/5525/34BA/40310       ,"6,405.00",SHEFFIELD WILDLIFE TRUST                ,347103,,CHARITIES & VOLUNTARY ORGANISA
STANIFORTH ROAD WORKSHOPS     ,7010,ROUTINE VEHICLE REPAIR & MTCE ,01/07/2014,3654326,INV0079846               ,"4,662.01",TRAPEZE GROUP (UK) LIMITED              ,507965,,COMPUTER SYSTEMS & SOFTWARE (D
SOUTH EAST (SH)               ,1157,DWELLINGS MAIN CONTRACT       ,01/07/2014,3654731,13110067,"83,807.40",KIER SHEFFIELD LLP                      ,352687,,PROPERTY MAINTENANCE & REPAIRS
SHORT BREAKS FUNDING FOR DISAB,9120,OTHER AGENCIES                ,01/07/2014,3655721,AMY0412                  ,"5,773.98",AMY'S HOUSE LTD                         ,513258,,CHARITIES & VOLUNTARY ORGANISA
PFI 4                         ,6030,REPAIRS AND MTCE - RESPONSIVE ,01/07/2014,3657246,RINV/00000217            ,"2,655.02",PARADIGM (SHEFFIELD BSF) LIMITED        ,472691,,FACILITIES MANAGEMENT         
PFI 4                         ,6270,SERVICE / PFI UNITARY CHARGE  ,01/07/2014,3657246,RINV/00000217            ,"774,177.96",PARADIGM (SHEFFIELD BSF) LIMITED        ,472691,,FACILITIES MANAGEMENT         
PFI 4                         ,8440,FEE EXPENSES                  ,01/07/2014,3657246,RINV/00000217            ,"8,968.63",PARADIGM (SHEFFIELD BSF) LIMITED        ,472691,,FACILITIES MANAGEMENT         
HOSPITAL SOCIAL WORK - GENERAL,8390,STATIONERY                    ,01/07/2014,3657707,6900679778,287.83,LYRECO UK LTD                           ,593417,,OFFICE FURNITURE & EQUIPMENT  
CONTRACT PAYMENTS � DRUGS     ,9030,HEALTH                        ,01/07/2014,3658587,FJTB/00000013            ,760.80,DISPENSING HEALTHCARE T/A SWIFT PHARMACY,585370,,PUBLIC HEALTH SUPPLIERS       
HEALTH INTERVENTION & PREVENTI,8490,TRANSLATN/SIGN/INTERPRET FEES ,01/07/2014,3659002,3375769,682.92,LANGUAGELINE SOLUTIONS                  ,471915,,TRANSLATORS & INTERPRETERS    
ADULT SOCIAL CARE PURCHASING  ,9160,PARTNERSHIP CONTRACTS         ,01/07/2014,3663077,16468,"5,949.50",AGE UK                                  ,306684,,CHARITIES & VOLUNTARY ORGANISA
ADULT SOCIAL CARE PURCHASING  ,9160,PARTNERSHIP CONTRACTS         ,01/07/2014,3663079,16469,"32,391.00",AGE UK                                  ,306684,,CHARITIES & VOLUNTARY ORGANISA
PURCHASING LEARNING DISABILITI,8470,LEGAL FEES                    ,01/07/2014,3663549,573829,750.00,ST PHILIPS CHAMBERS LTD                 ,594795,,BARRISTERS                    
TOUR DE FRANCE                ,8440,FEE EXPENSES                  ,01/07/2014,3663970,YBE/CL/315               ,"7,000.00",YELLOW BUS EVENTS LTD                   ,505362,,"EXHIBITION, EVENT & TRADE FAIR"
SCHOOL DRINKING MILK          ,8140,GROCERIES                     ,01/07/2014,3664117,20,"18,883.21",MEDINA CAPITAL DAIRY CO LTD             ,524568,,DAIRIES                       
PURCHASING LEARNING DISABILITI,8470,LEGAL FEES                    ,01/07/2014,3664151,903737,712.50,MR J P A P O'BRIEN                      ,516793,,BARRISTERS                    
PARENTING STRATEGY            ,8440,FEE EXPENSES                  ,01/07/2014,3664287,1109,325.00,ROUNDABOUT CRECHE SERVICE               ,462116,,NURSERIES & CRECHES           
PARENTING STRATEGY            ,8440,FEE EXPENSES                  ,01/07/2014,3664288,1105,260.00,ROUNDABOUT CRECHE SERVICE               ,462116,,NURSERIES & CRECHES           
PARENTING STRATEGY            ,8440,FEE EXPENSES                  ,01/07/2014,3664289,1104,312.00,ROUNDABOUT CRECHE SERVICE               ,462116,,NURSERIES & CRECHES           
ADULT SOCIAL CARE PURCHASING  ,9160,PARTNERSHIP CONTRACTS         ,01/07/2014,3664579,41810,"4,117.50",NORTH SHEFFIELD FEDERATION FOR THE      ,304728,,CHARITIES & VOLUNTARY ORGANISA
HARD FM                       ,6030,REPAIRS AND MTCE - RESPONSIVE ,01/07/2014,3664647,9317,"2,590.00",AMK FENCE-IN  LTD                       ,202934,,FENCING CONTRACTORS           
ARCHIVES & CONSERVATION       ,8620,COMPUTER SOFTWARE LICENCES    ,01/07/2014,3665167,801740,"2,152.71",AXIELL CALM LIMITED                     ,308967,,COMPUTER SYSTEMS & SOFTWARE (D
EVENTS IN PARKS               ,8200,EVENTS EXPENDITURE            ,01/07/2014,3665681,INV-0054                 ,850.00,FOX AUDIO HIRE LTD                      ,306816,,SOUND EQUIPMENT HIRE & INSTALL
ARBOURTHORNE 5M'S REFURB      ,1143,COMPENSATION                  ,01/07/2014,3665684,703905,379.06,PICKFORDS                               ,573763,,REMOVALS - OVERSEAS           
ARBOURTHORNE 5M'S REFURB      ,1143,COMPENSATION                  ,01/07/2014,3665685,703908,379.06,PICKFORDS                               ,573763,,REMOVALS - OVERSEAS           
ARBOURTHORNE 5M'S REFURB      ,1143,COMPENSATION                  ,01/07/2014,3665686,697614,379.06,PICKFORDS                               ,573763,,REMOVALS - OVERSEAS           
EVENTS IN PARKS               ,8200,EVENTS EXPENDITURE            ,01/07/2014,3666316,4605,"1,624.20",FLORIDA MARQUEES LIMITED                ,392481,,"MARQUEES, TENTS & PORTABLE FLO"
NON CONTRACT TREATMENT COSTS  ,9030,HEALTH                        ,01/07/2014,3666327,67232,387.99,EXCHANGE SUPPLIES LTD                   ,420328,,PUBLISHERS                    
SCHOOL DRINKING MILK          ,8140,GROCERIES                     ,01/07/2014,3666331,21,"18,610.52",MEDINA CAPITAL DAIRY CO LTD             ,524568,,DAIRIES                       
ADULT SOCIAL CARE PURCHASING  ,9160,PARTNERSHIP CONTRACTS         ,01/07/2014,3666335,231,"4,023.00",SHEFFIELD CITIZENS ADVICE AND LAW CENTRE,588762,,COUNSELLING & ADVICE SERVICES 
ADULT SOCIAL CARE PURCHASING  ,9160,PARTNERSHIP CONTRACTS         ,01/07/2014,3666439,14080,"7,776.00",SHEFFIELD ROYAL SOCIETY FOR THE BLIND   ,306116,,CHARITIES & VOLUNTARY ORGANISA
ADULT SOCIAL CARE PURCHASING  ,9160,PARTNERSHIP CONTRACTS         ,01/07/2014,3666444,14081,"3,758.00",SHEFFIELD ROYAL SOCIETY FOR THE BLIND   ,306116,,CHARITIES & VOLUNTARY ORGANISA
COMMUNICATIONS                ,8550,OTHER SERVICES                ,01/07/2014,3666451,75314,443.00,DO NOT USE - WHITESPRINT GROUP LIMITED  ,202894,,PRINTERS                      
OBSOLETE HEATING              ,1157,DWELLINGS MAIN CONTRACT       ,01/07/2014,3666460,3789,"15,722.00",DENTON & NICKELS LTD                    ,596087,,CENTRAL HEATING - INSTALLATION
SCHOOL MEALS                  ,8130,CATERING SUPPLIES             ,01/07/2014,3666780,1904/90757586            ,"7,689.43",MITIE PFI LIMITED                       ,472380,,FACILITIES MANAGEMENT         
SCHOOL MEALS                  ,8150,CONTRACT CATERING - INVOICE   ,01/07/2014,3666780,1904/90757586            ,"2,791.35",MITIE PFI LIMITED                       ,472380,,FACILITIES MANAGEMENT         
CULTURAL DIRECTOR             ,8440,FEE EXPENSES                  ,01/07/2014,3666782,10897,"1,500.00",HR MEDIA LTD                            ,330818,,PUBLIC RELATIONS CONSULTANTS  
RANGER SERVICE                ,8060,MATERIALS AND SUPPLIES GENERAL,01/07/2014,3666859,232,450.00,HN WOODLAND & ESTATE MANAGEMENT         ,317072,,TREE WORK & FORESTRY SERVICES 
MINOR WORKS & ADAPTATIONS     ,6020,REPAIRS AND MTCE - PROGRAMMED ,01/07/2014,3666877,6375,275.00,T & T CONSTRUCTION                      ,208772,,CONSTRUCTION CONTRACTORS - GEN
MOORFOOT LEARNING CENTRE      ,8490,OTHER PROFESSIONAL FEES       ,01/07/2014,3666893,2810005058,445.50,YORKSHIRE AMBULANCE SERVICE NHS TRUST   ,329215,,HOSPITALS                     
MINOR WORKS & ADAPTATIONS     ,6020,REPAIRS AND MTCE - PROGRAMMED ,01/07/2014,3666941,6386,250.00,T & T CONSTRUCTION                      ,208772,,CONSTRUCTION CONTRACTORS - GEN
SOUTH EAST (SH)               ,1157,DWELLINGS MAIN CONTRACT       ,01/07/2014,3666972,13120025,"7,668.60",KIER SHEFFIELD LLP                      ,352687,,PROPERTY MAINTENANCE & REPAIRS
HEATING BREAKDOWNS            ,1157,DWELLINGS MAIN CONTRACT       ,01/07/2014,3666973,13120022,"17,392.89",KIER SHEFFIELD LLP                      ,352687,,PROPERTY MAINTENANCE & REPAIRS
NEW HEATING INSTALLATIONS     ,1157,DWELLINGS MAIN CONTRACT       ,01/07/2014,3666974,13120024,646.05,KIER SHEFFIELD LLP                      ,352687,,PROPERTY MAINTENANCE & REPAIRS
OBSOLETE HEATING              ,1157,DWELLINGS MAIN CONTRACT       ,01/07/2014,3666976,13120023,831.46,KIER SHEFFIELD LLP                      ,352687,,PROPERTY MAINTENANCE & REPAIRS
PARENTING STRATEGY            ,8440,FEE EXPENSES                  ,01/07/2014,3666988,1112,292.50,ROUNDABOUT CRECHE SERVICE               ,462116,,NURSERIES & CRECHES           
NORTON NURSERY                ,8060,MATERIALS AND SUPPLIES GENERAL,01/07/2014,3667220,40462,"11,789.39",LES HALMAN NURSERIES LTD                ,580259,,NURSERIES - WHOLESALE         
RGF 3                         ,8550,OTHER SERVICES                ,01/07/2014,3667427,4145,300.00,GARRY THICKETT LTD                      ,590656,,ACCOUNTANTS                   
TOUR DE FRANCE                ,8350,MISCELLANEOUS EXPENSES        ,01/07/2014,3667449,45737,"1,006.00",STEEL CITY MARKETING LTD.               ,208648,,PROMOTIONAL ITEMS             
OUT OF CITY GUM               ,9030,HEALTH                        ,01/07/2014,3668033,82124042,466.00,DONCASTER & BASSETLAW HOSPITALS  FOUNDAT,585509,,HOSPITALS                     
SERVICE OVERHEADS             ,6280,HIRE OF PREMISES              ,01/07/2014,3668313,LDDS071                  ,560.00,HANDSWORTH COMMUNITY NURSERY            ,297395,,NURSERIES & CRECHES           
C & YP 5-19                   ,9030,HEALTH                        ,01/07/2014,3668317,1015000227,702.25,NHS SUPPLY CHAIN                        ,587523,,PUBLIC HEALTH SUPPLIERS       
CLAIMS                        ,8740,PUBLIC LIABILITY              ,01/07/2014,3668526,01/4783302               ,565.00,CLARITY TRAVEL MANAGEMENT               ,202987,,TRAVEL AGENTS & HOLIDAY COMPAN
CLAIMS                        ,8740,PUBLIC LIABILITY              ,01/07/2014,3668527,01/4876372               ,287.50,CLARITY TRAVEL MANAGEMENT               ,202987,,TRAVEL AGENTS & HOLIDAY COMPAN
CLAIMS                        ,8740,PUBLIC LIABILITY              ,01/07/2014,3668528,01/4876379               ,287.50,CLARITY TRAVEL MANAGEMENT               ,202987,,TRAVEL AGENTS & HOLIDAY COMPAN
TOWN HALL ROOF & MASONRY REP  ,1161,NC&A MAIN CONTRACT            ,01/07/2014,3668533,CE03865/2                ,"24,400.00",MAYSAND LIMITED                         ,540767,,BUILDING REFURBISHMENT & RESTO
HURLFIELD VIEW EXTENSION      ,1161,NC&A MAIN CONTRACT            ,01/07/2014,3668535,CO04345/1                ,"67,600.00",INTERSERVE CONSTRUCTION LIMITED         ,547901,,BUILDERS                      
MOOR PUBLIC REALM PHASE 2     ,1161,NC&A MAIN CONTRACT            ,01/07/2014,3668538,PL03600/13               ,"10,500.00",NORTH MIDLAND CONSTRUCTION PLC          ,315929,,BUILDERS                      
NON CONTRACT TREATMENT COSTS  ,9030,HEALTH                        ,01/07/2014,3668539,67423,293.80,EXCHANGE SUPPLIES LTD                   ,420328,,PUBLISHERS                    
TOUR DE FRANCE                ,8440,FEE EXPENSES                  ,01/07/2014,3668548,116,"2,220.00", CR8 EVENT SOLUTIONS                    ,596000,,MARKETING CONSULTANTS & SERVIC
E LEARNING                    ,8620,COMPUTER SOFTWARE PURCHASES   ,01/07/2014,3668549,9524,273.00,SOUTH WEST GRID FOR LEARNING TRUST      ,589041,,COMPUTER SYSTEMS & SOFTWARE (S
TOUR DE FRANCE                ,8350,MISCELLANEOUS EXPENSES        ,01/07/2014,3668558,3032652,"1,000.00",SHEFFIELD INTERNATIONAL VENUES LTD.     ,208389,,SPORTS GROUNDS & STADIUMS     
CLOSED LANDFILL SITES         ,8440,FEE EXPENSES                  ,01/07/2014,3668559,87158,"1,268.41",HARPERS ENVIRONMENTAL LTD               ,537022,,ENVIRONMENTAL CONSULTANTS     
CULTURE STRATEGY              ,8440,FEE EXPENSES                  ,01/07/2014,3668779,SIN007279                ,300.00,SHEFFIELD THEATRES TRUST                ,297678,,THEATRES                      
PARKS OPS SOUTH & SOUTH EAST  ,6190,WATER SERVICES                ,01/07/2014,3668733,5830038145,287.31,SEVERN TRENT WATER LTD                  ,388402,,WATER COMPANIES               
PARKS OPS SOUTH & SOUTH EAST  ,6190,WATER SERVICES                ,01/07/2014,3668735,7030340358,545.78,SEVERN TRENT WATER LTD                  ,388402,,WATER COMPANIES               
STADIA TECHNOLOGY PARK        ,6160,GAS                           ,01/07/2014,3668756,6001550077,318.21,NPOWER                                  ,467390,,ELECTRICITY COMPANIES         
PURCHASING LEARNING DISABILITI,9190,DIRECT PAYMENTS               ,01/07/2014,3668694,J930153                  ,301.37,REDACTED PERSONAL DATA,580322,Social Community Care,CAREFIRST DIRECT PAYMENTS     
PURCHASING LEARNING DISABILITI,9190,SUPPORT PLANNING COSTS        ,01/07/2014,3668695,J930154                  ,280.00,REDACTED PERSONAL DATA,558028,Social Community Care,CAREFIRST DIRECT PAYMENTS     
ADULT SOCIAL CARE PURCHASING  ,9190,DIRECT PAYMENTS               ,01/07/2014,3668699,J930153                  ,438.39,A4E                                     ,547567,,TRAINING SERVICES             
ADULT SOCIAL CARE PURCHASING  ,9190,DIRECT PAYMENTS               ,01/07/2014,3668700,J930153                  ,"1,181.25",REDACTED PERSONAL DATA,556288,Social Community Care,CAREFIRST DIRECT PAYMENTS     
PURCHASING LEARNING DISABILITI,9190,DIRECT PAYMENTS               ,01/07/2014,3668701,J930153                  ,"3,860.00",REDACTED PERSONAL DATA,556454,Social Community Care,CAREFIRST DIRECT PAYMENTS     
PURCHASING                    ,9190,DIRECT PAYMENTS               ,01/07/2014,3668702,J930153                  ,"1,160.00",REDACTED PERSONAL DATA,561085,Social Community Care,CAREFIRST DIRECT PAYMENTS     
ADULT SOCIAL CARE PURCHASING  ,4260,RESIDENTIAL COSTS RECOVERED   ,01/07/2014,3668690,J930149 200714           ,"2,452.38",LEAHYRST RESIDENTIAL CARE HOME          ,361842,,RESIDENTIAL CARE HOMES        
ADULT SOCIAL CARE PURCHASING  ,9200,SHORT TERM RESIDENTIAL CARE   ,01/07/2014,3668691,J930064 220614           ,"8,035.02",PADDOCK HILL (SHEFFCARE LTD)            ,361797,,RESIDENTIAL CARE HOMES        
CORONIAL SERVICES             ,8440,WITNESS FEES                  ,02/07/2014,3669540,ERS INVOICE102885        ,393.60,REDACTED PERSONAL DATA,597569,Unclassified Non Trade,OUT OF SCOPE FOR SIC MONITORIN
CORONIAL SERVICES             ,8440,PATHOLOGIST INVOICE           ,02/07/2014,3669542,ERS INVOICE102887        ,521.90,REDACTED PERSONAL DATA,554404,,DOCTORS                       
CORONIAL SERVICES             ,8440,PATHOLOGIST INVOICE           ,02/07/2014,3669543,ERS INVOICE102888        ,595.90,DR C A WILSON                           ,554965,,DOCTORS                       
CORONIAL SERVICES             ,8440,PATHOLOGIST INVOICE           ,02/07/2014,3669544,ERS INVOICE102889        ,595.90,DR C A WILSON                           ,554965,,DOCTORS                       
CORONIAL SERVICES             ,8440,FEE EXPENSES                  ,02/07/2014,3669545,ERS INVOICE102890        ,600.00,REDACTED PERSONAL DATA,550665,,DOCTORS                       
VSP DELIVER                   ,7140,PUBLIC TRANSPORT COSTS        ,02/07/2014,3669549,ERS INVOICE102894        ,360.00,SHEFFIELD COMMUNITY TRANSPORT           ,296356,,CHARITIES & VOLUNTARY ORGANISA
DISCETIONARY HOUSING PAYMENTS ,9480,RENT ALLOWANCE BACS           ,02/07/2014,3669557,ERS INVOICE102908        ,595.00,REDACTED PERSONAL DATA,545718,Unclassified Non Trade,OUT OF SCOPE FOR SIC MONITORIN
TOUR DE FRANCE                ,8440,FEE EXPENSES                  ,02/07/2014,3669560,ERS INVOICE102911        ,"12,802.00",REGATHER CO-OPERATIVE LIMITED           ,537343,,BUSINESS & TRADE ORGANISATIONS
CORONIAL SERVICES             ,8440,PATHOLOGIST INVOICE           ,02/07/2014,3669562,ERS INVOICE102913        ,287.70,HIGH PEAK FORENSICS                     ,575858,,DOCTORS                       
CORONIAL SERVICES             ,8440,PATHOLOGIST INVOICE           ,02/07/2014,3669564,ERS INVOICE102915        ,678.50,HIGH PEAK FORENSICS                     ,575858,,DOCTORS                       
CORONIAL SERVICES             ,8440,PATHOLOGIST INVOICE           ,02/07/2014,3669566,ERS INVOICE102917        ,968.00,DR MINI C VARGHESE                      ,567541,,DOCTORS                       
CORONIAL SERVICES             ,8440,PATHOLOGIST INVOICE           ,02/07/2014,3669567,ERS INVOICE102918        ,"1,161.60",REDACTED PERSONAL DATA,579914,Unclassified Non Trade,OUT OF SCOPE FOR SIC MONITORIN
P&TC STAFFING                 ,7160,CAR PARKING SPACES AND FEES   ,02/07/2014,3639269,484,"1,000.20",ST VINCENT'S NEW CHURCH                 ,532071,,PLACES OF WORSHIP             
CARE PROCEEDINGS (LEGAL FEES) ,8470,LEGAL FEES                    ,02/07/2014,3639332,TI01265                  ,"2,409.11",LANGUAGELINE SOLUTIONS                  ,471915,,TRANSLATORS & INTERPRETERS    
P&TC STAFFING                 ,6210,RENTS                         ,02/07/2014,3642588,7272,"25,022.00",SHEFFIELD FUTURES                       ,322702,,COUNSELLING & ADVICE SERVICES 
PPG2 - ACRES HILL PMY         ,1148,SURVEY COSTS                  ,02/07/2014,3644485,7865,"1,816.00",EURO ENVIRONMENTAL LTD                  ,399641,,ASBESTOS SURVEYS & REMOVALS   
CHILDRENS' FESTIVAL           ,8440,FEE EXPENSES                  ,02/07/2014,3655025,SIN002180                ,"1,000.00",MUSEUMS SHEFFIELD                       ,519265,,MUSEUMS                       
P&TC STAFFING                 ,7160,CAR PARKING SPACES AND FEES   ,02/07/2014,3655605,486,"1,000.20",ST VINCENT'S NEW CHURCH                 ,532071,,PLACES OF WORSHIP             
CHILDREN MISSING - EDUCATION  ,8350,MISCELLANEOUS EXPENSES        ,02/07/2014,3657146,14LAC-131                ,"2,593.50",WELFARE CALL (LAC) LIMITED              ,490607,,EDUCATIONAL SERVICES          
INDEPENDENT PLACEMENTS        ,9310,PARENTAL OR TRIBUNAL PLACEMENT,02/07/2014,3657719,25,"3,795.66",BETHANY SCHOOL                          ,339961,,SCHOOLS - LOCAL AUTHORITY     
INDEPENDENT PLACEMENTS        ,9310,PARENTAL OR TRIBUNAL PLACEMENT,02/07/2014,3657724,5,"1,708.00",BETHANY SCHOOL                          ,339961,,SCHOOLS - LOCAL AUTHORITY     
OUTDOOR EDUCATION             ,8110,"CLOTHING, UNIFORM AND LAUNDRY ",02/07/2014,3660183,CAS12519                 ,788.40,CASTLES UK (MATRESSES) LTD              ,483047,,BED & MATTRESS MNFRS          
OUTDOOR EDUCATION             ,8130,CATERING SUPPLIES             ,02/07/2014,3660872,41806,594.00, O'REILLYS DELI                         ,588775,,CATERING FOOD & DRINK SUPPLIER
OUTDOOR EDUCATION             ,8130,CATERING SUPPLIES             ,02/07/2014,3660873,41806,377.00, O'REILLYS DELI                         ,588775,,CATERING FOOD & DRINK SUPPLIER
INDEPENDENT PLACEMENTS        ,9310,PARENTAL OR TRIBUNAL PLACEMENT,02/07/2014,3663485,14/3468                  ,"1,454.38",PACES SHEFFIELD LIMITED                 ,295794,,RESIDENTIAL CARE HOMES        
INDEPENDENT PLACEMENTS        ,9310,EDUCATIONAL OR JOINT PLACEMENT,02/07/2014,3663487,14/3467                  ,"1,454.38",PACES SHEFFIELD LIMITED                 ,295794,,RESIDENTIAL CARE HOMES        
INDEPENDENT PLACEMENTS        ,9310,EDUCATIONAL OR JOINT PLACEMENT,02/07/2014,3663500,14/3466                  ,"1,454.38",PACES SHEFFIELD LIMITED                 ,295794,,RESIDENTIAL CARE HOMES        
INDEPENDENT PLACEMENTS        ,9310,PARENTAL OR TRIBUNAL PLACEMENT,02/07/2014,3663502,14/3465                  ,"1,454.38",PACES SHEFFIELD LIMITED                 ,295794,,RESIDENTIAL CARE HOMES        
IS DEVELOPMENT - DE DEL       ,8620,COMPUTER & HARDWARE PURCHASES ,02/07/2014,3663551,E0017671                 ,"35,000.00",NORTH LINCOLNSHIRE COUNCIL              ,314387,,LOCAL GOVERNMENT              
INDEPENDENT PLACEMENTS        ,9310,EDUCATIONAL OR JOINT PLACEMENT,02/07/2014,3663562,14/3455                  ,"1,454.38",PACES SHEFFIELD LIMITED                 ,295794,,RESIDENTIAL CARE HOMES        
INDEPENDENT PLACEMENTS        ,9310,EDUCATIONAL OR JOINT PLACEMENT,02/07/2014,3663566,14/3456                  ,"1,454.38",PACES SHEFFIELD LIMITED                 ,295794,,RESIDENTIAL CARE HOMES        
INDEPENDENT PLACEMENTS        ,9310,EDUCATIONAL OR JOINT PLACEMENT,02/07/2014,3663567,14/3457                  ,"1,454.38",PACES SHEFFIELD LIMITED                 ,295794,,RESIDENTIAL CARE HOMES        
INDEPENDENT PLACEMENTS        ,9310,EDUCATIONAL OR JOINT PLACEMENT,02/07/2014,3663569,14/3458                  ,"1,454.38",PACES SHEFFIELD LIMITED                 ,295794,,RESIDENTIAL CARE HOMES        
INDEPENDENT PLACEMENTS        ,9310,PARENTAL OR TRIBUNAL PLACEMENT,02/07/2014,3663571,14/3459                  ,"1,830.17",PACES SHEFFIELD LIMITED                 ,295794,,RESIDENTIAL CARE HOMES        
OUTDOOR EDUCATION             ,8270,SUBSCRIPTIONS                 ,02/07/2014,3663575,7012,295.00,SANDERSON MAUGHAN LTD                   ,568675,,ADVERTISING SERVICES          
OUTDOOR EDUCATION             ,8130,CATERING SUPPLIES             ,02/07/2014,3663578,41807,"1,012.00", O'REILLYS DELI                         ,588775,,CATERING FOOD & DRINK SUPPLIER
INDEPENDENT PLACEMENTS        ,9310,PARENTAL OR TRIBUNAL PLACEMENT,02/07/2014,3663580,14/3460                  ,"1,143.85",PACES SHEFFIELD LIMITED                 ,295794,,RESIDENTIAL CARE HOMES        
INDEPENDENT PLACEMENTS        ,9310,EDUCATIONAL OR JOINT PLACEMENT,02/07/2014,3663581,14/3461                  ,996.84,PACES SHEFFIELD LIMITED                 ,295794,,RESIDENTIAL CARE HOMES        
INDEPENDENT PLACEMENTS        ,9310,PARENTAL OR TRIBUNAL PLACEMENT,02/07/2014,3663582,14/3462                  ,539.30,PACES SHEFFIELD LIMITED                 ,295794,,RESIDENTIAL CARE HOMES        
INDEPENDENT PLACEMENTS        ,9310,EDUCATIONAL OR JOINT PLACEMENT,02/07/2014,3663583,14/3463                  ,"1,454.38",PACES SHEFFIELD LIMITED                 ,295794,,RESIDENTIAL CARE HOMES        
INDEPENDENT PLACEMENTS        ,9310,EDUCATIONAL OR JOINT PLACEMENT,02/07/2014,3663584,14/3464                  ,996.84,PACES SHEFFIELD LIMITED                 ,295794,,RESIDENTIAL CARE HOMES        
SHEFFIELD TRADING STANDARDS   ,8550,OTHER SERVICES                ,02/07/2014,3663590,91308593457,535.50,WEST YORKSHIRE TRADING STANDARDS SERVICE,317626,,INSTITUTES - PROFESSIONAL     
EXPANSION -FSM PROV (INFANTS) ,1167,RENOVATIONS & REFURBISHMENTS  ,02/07/2014,3664143,INV0089688               ,"2,320.50",SICO EUROPE LTD.                        ,208430,,FURNITURE MNFRS - HOME & OFFIC
EXPANSION -FSM PROV (INFANTS) ,1167,RENOVATIONS & REFURBISHMENTS  ,02/07/2014,3664146,INV0089690               ,"1,547.00",SICO EUROPE LTD.                        ,208430,,FURNITURE MNFRS - HOME & OFFIC
EXPANSION -FSM PROV (INFANTS) ,1167,RENOVATIONS & REFURBISHMENTS  ,02/07/2014,3664147,INV0089689               ,"1,547.00",SICO EUROPE LTD.                        ,208430,,FURNITURE MNFRS - HOME & OFFIC
OUTDOOR EDUCATION             ,6080,CONTRACT CLEANING             ,02/07/2014,3664663,6381,291.50,POPPIES PEAK DISTRICT LTD               ,548756,,CLEANING SERVICES - DOMESTIC  
OUTDOOR EDUCATION             ,7010,ROUTINE VEHICLE REPAIR & MTCE ,02/07/2014,3664664,7061,290.00,LOVERS LEAP GARAGE                      ,445105,,GUEST HOUSES                  
OUTDOOR EDUCATION             ,8350,MISCELLANEOUS EXPENSES        ,02/07/2014,3665019,257108944,"1,193.75",YORKSHIRE PURCHASING ORGANISATION       ,295997,,PURCHASING SERVICES           
THE MOOR INDOOR MARKET        ,8110,"CLOTHING, UNIFORM AND LAUNDRY ",02/07/2014,3665097,922190521,474.48,ARCO LTD                                ,203022,,SAFETY EQUIPMENT & CLOTHING   
OUTDOOR EDUCATION             ,8010,EQUIPMENT PURCHASE AND REPAIR ,02/07/2014,3665168,29133,590.00,BUFFALO SYSTEMS LTD                     ,577154,,OUTDOOR CLOTHING & EQUIPMENT  
STATUTORY ADVERTISING         ,8420,ADVERTISING AND PUBL-INVOICED ,02/07/2014,3665646,1932251,860.92,SHEFFIELD NEWSPAPERS LTD                ,208391,,NEWSPAPER & MAGAZINE PUBLISHER
STATUTORY ADVERTISING         ,8420,ADVERTISING AND PUBL-INVOICED ,02/07/2014,3665648,1923466,254.67,SHEFFIELD NEWSPAPERS LTD                ,208391,,NEWSPAPER & MAGAZINE PUBLISHER
STATUTORY ADVERTISING         ,8420,ADVERTISING AND PUBL-INVOICED ,02/07/2014,3665650,1923464,282.97,SHEFFIELD NEWSPAPERS LTD                ,208391,,NEWSPAPER & MAGAZINE PUBLISHER
STATUTORY ADVERTISING         ,8420,ADVERTISING AND PUBL-INVOICED ,02/07/2014,3665651,1923442,650.83,SHEFFIELD NEWSPAPERS LTD                ,208391,,NEWSPAPER & MAGAZINE PUBLISHER
STATUTORY ADVERTISING         ,8420,ADVERTISING AND PUBL-INVOICED ,02/07/2014,3665653,1923422,509.34,SHEFFIELD NEWSPAPERS LTD                ,208391,,NEWSPAPER & MAGAZINE PUBLISHER
OUTDOOR EDUCATION             ,8010,EQUIPMENT PURCHASE AND REPAIR ,02/07/2014,3666260,369732,"1,085.00",BOLDSCAN LIMITED                        ,563339,,"MARQUEES, TENTS & PORTABLE FLO"
THE MOOR INDOOR MARKET        ,8440,FEE EXPENSES                  ,02/07/2014,3666277,INV-235                  ,"4,600.00",BRANDS INCORPORATED LIMITED             ,596297,,BUSINESS & MANAGEMENT CONSULTA
SERVICE DEVELOPMENT TEAM      ,8490,COACHING FEES                 ,02/07/2014,3666280,23,400.00,PENNY REA                               ,392850,,EDUCATIONAL SERVICES          
CHILDRENS' FESTIVAL           ,8440,FEE EXPENSES                  ,02/07/2014,3666885,213,960.00,RATIONALE                               ,595624,,THEATRE COMPANIES             
CHILDRENS' FESTIVAL           ,8440,FEE EXPENSES                  ,02/07/2014,3666944,#INC08748A               ,496.00,IGNITE IMAGINATIONS                     ,472059,,CHARITIES & VOLUNTARY ORGANISA
RECRUITMENT ADVERTISING       ,5720,RECRUIT. ADV. - INVOICE       ,02/07/2014,3666957,TARDEB/00004311          ,699.12,TIMES EDUCATIONAL SUPPLEMENT            ,297123,,NEWSPAPER & MAGAZINE PUBLISHER
RECRUITMENT ADVERTISING       ,5720,RECRUIT. ADV. - INVOICE       ,02/07/2014,3666959,TARDEB/00004313          ,699.12,TIMES EDUCATIONAL SUPPLEMENT            ,297123,,NEWSPAPER & MAGAZINE PUBLISHER
MOVE MORE                     ,8250,MARKETING EXPENSES            ,02/07/2014,3666966,IN2736                   ,"1,265.00",RARE CREATIVE GROUP LTD                 ,543228,,DESIGNERS - GRAPHIC           
 MANAGEMENT OVERHEADS         ,8550,OTHER SERVICES                ,02/07/2014,3666990,3099260,990.00,CIPFA                                   ,360709,,INSTITUTES - PROFESSIONAL     
RGF 3                         ,8440,FEE EXPENSES                  ,02/07/2014,3667450,74408,"2,681.00",HAWSONS                                 ,324428,,ACCOUNTANTS                   
RESPONSIVE HM&E               ,6030,BURGLAR ALARM REPAIRS         ,02/07/2014,3667464,ISG/SERV/022/14          ,"12,436.97",TELSTAR SECURITY                        ,299814,,SECURITY EQUIPMENT            
SUPPORTED HOUSING             ,8050,FURNITURE PURCHASES           ,02/07/2014,3668254,IN559308                 ,"3,498.00",PROTECTABED EUROPE                      ,567979,,"BEDS, BEDDING & BLANKETS      "
SHEFFIELD TRADING STANDARDS   ,5750,TRAINING EXPENDITURE          ,02/07/2014,3668270,11471147-001             ,"1,180.00",TEESSIDE UNIVERSITY                     ,596127,,UNIVERSITIES & MEDICAL SCHOOLS
LONGLEY - TWO CLASSROOM EXTN  ,1194,OTHER FEES                    ,02/07/2014,3668543,20218,"2,454.38",REDACTED PERSONAL DATA,565073,,CIVIL ENGINEERS               
BB2 PENISTONE ROAD KBR        ,1174,INFR MAIN CONTRACT S FORCE    ,02/07/2014,3668764,YD20192248               ,"69,609.53",YEDL CASHIER                            ,353721,,ELECTRICITY COMPANIES         
SUPPORTED & TEMP ACCOM TEAM   ,6210,BED & BREAKFAST PAYMENTS      ,02/07/2014,3668770,HOM13/2014-15            ,251.64,EARL MARSHALL GUEST HOUSE LTD           ,391589,,GUEST HOUSES                  
AREA NORTH WEST               ,6060,DECANTING/REMOVAL COSTS       ,02/07/2014,3668773,704173,571.00,PICKFORDS                               ,573763,,REMOVALS - OVERSEAS           
REDVERS HOUSE                 ,6210,RENTS                         ,02/07/2014,3668802,706162,"127,493.25",DTZ DEBENHAM TIE LEUNG                  ,392019,,COMMERCIAL PROPERTY AGENTS    
REDVERS HOUSE                 ,6210,RENTS                         ,02/07/2014,3668803,706164,"1,803.81",DTZ DEBENHAM TIE LEUNG                  ,392019,,COMMERCIAL PROPERTY AGENTS    
REDVERS HOUSE                 ,6210,RENTS                         ,02/07/2014,3668804,706165,"28,331.75",DTZ DEBENHAM TIE LEUNG                  ,392019,,COMMERCIAL PROPERTY AGENTS    
REDVERS HOUSE                 ,6210,RENTS                         ,02/07/2014,3668805,706163,"18,771.30",DTZ DEBENHAM TIE LEUNG                  ,392019,,COMMERCIAL PROPERTY AGENTS    
BRT NORTH: TINSLEY LINK (WP21 ,1194,OTHER FEES                    ,02/07/2014,3668815,28192913,"8,776.08",AECOM LTD                               ,580256,,BUILDING SERVICES             
NETHER GREEN - MOBILE REPLACE ,1194,OTHER FEES                    ,02/07/2014,3668816,20215,"1,785.00",REDACTED PERSONAL DATA,565073,,CIVIL ENGINEERS               
P&TC STAFFING                 ,7160,CAR PARKING SPACES AND FEES   ,02/07/2014,3668830,488,"1,000.20",ST VINCENT'S NEW CHURCH                 ,532071,,PLACES OF WORSHIP             
NON CONTRACT TREATMENT COSTS  ,9030,HEALTH                        ,02/07/2014,3668835,67420,352.90,EXCHANGE SUPPLIES LTD                   ,420328,,PUBLISHERS                    
STOCKSBRIDGE - MOBILE REPLACE ,1194,OTHER FEES                    ,02/07/2014,3668860,20216,"2,454.38",REDACTED PERSONAL DATA,565073,,CIVIL ENGINEERS               
WYBOURN EXPANSION             ,1194,OTHER FEES                    ,02/07/2014,3668881,20217,651.20,REDACTED PERSONAL DATA,565073,,CIVIL ENGINEERS               
NON CONTRACT TREATMENT COSTS  ,9030,HEALTH                        ,02/07/2014,3668885,67422,288.00,EXCHANGE SUPPLIES LTD                   ,420328,,PUBLISHERS                    
LONGLEY - TWO CLASSROOM EXTN  ,1161,NC&A MAIN CONTRACT            ,02/07/2014,3668906,CY04315/3                ,"50,000.00",WILLIAM BIRCH & SONS LTD                ,306953,,CONSTRUCTION CONTRACTORS - GEN
COMPARTMENTALISATION - FS     ,1161,NC&A MAIN CONTRACT            ,02/07/2014,3668907,SH03792/8                ,"8,700.00",KIER SERVICES MAINTENANCE EAST          ,591748,,CONSTRUCTION CONTRACTORS - GEN
CASTLEBECK SAFE AND SECURE    ,1161,NC&A MAIN CONTRACT            ,02/07/2014,3668908,NH03958/5(F)             ,"2,902.73",A.E.YATES LIMITED                       ,579006,,CIVIL ENGINEERS               
POST IMPLEMENTATION           ,1161,NC&A MAIN CONTRACT            ,02/07/2014,3668909,ED00530/23(F)            ,571.61,WILLMOTT DIXON CONSTRUCTION LTD         ,313140,,BUILDERS                      
CONTRACT PAYMENTS � DRUGS     ,9030,HEALTH                        ,02/07/2014,3668999,4000394680,"106,133.00",SHEFFIELD TEACHING HOSPITALS NHS FND TST,583240,,PUBLIC HEALTH SUPPLIERS       
THE MOOR                      ,8010,EQUIPMENT PURCHASE AND REPAIR ,02/07/2014,3669258,12264,"1,213.74",KPR MIDLINK LIMITED                     ,206269,,COMPUTER SYSTEMS & SOFTWARE (D
EXCHANGE STREET               ,8010,EQUIPMENT PURCHASE AND REPAIR ,02/07/2014,3669258,12264,"1,213.74",KPR MIDLINK LIMITED                     ,206269,,COMPUTER SYSTEMS & SOFTWARE (D
KING STREET                   ,8010,EQUIPMENT PURCHASE AND REPAIR ,02/07/2014,3669258,12264,"1,213.73",KPR MIDLINK LIMITED                     ,206269,,COMPUTER SYSTEMS & SOFTWARE (D
PARKS OPS EAST & NORTH EAST   ,8550,OTHER SERVICES                ,02/07/2014,3669496,ASF/5503/SCC01           ,"1,400.00",AVANTI STEEL FABRICATIONS               ,203151,,STEEL FABRICATORS & ERECTORS  
PARKS OPS EAST & NORTH EAST   ,8550,OTHER SERVICES                ,02/07/2014,3669501,ASF/5517/SCC03           ,600.00,AVANTI STEEL FABRICATIONS               ,203151,,STEEL FABRICATORS & ERECTORS  
TELEPHONES AND TELEVISIONS    ,8590,LANDLINE TELEPHONES           ,02/07/2014,3669409,CS00001304Q218           ,"1,351.00",BRITISH TELECOM                         ,331035,,TELECOMMUNICATION SERVICES    
CITY WIDE ALARM - GENERAL     ,8590,LANDLINE TELEPHONES           ,02/07/2014,3669413,VP79239170M1500164       ,890.76,BRITISH TELECOMMUNICATIONS PLC          ,295860,,TELECOMMUNICATION SERVICES    
PURCHASING LEARNING DISABILITI,9190,FUNDED HOME SUPPORT           ,02/07/2014,3669243,J930691                  ,"6,172.95",REDACTED PERSONAL DATA,538602,Social Community Care,CAREFIRST DIRECT PAYMENTS     
ADULT SOCIAL CARE PURCHASING  ,9190,DIRECT PAYMENTS               ,02/07/2014,3669244,J930691                  ,373.69,A4E                                     ,547567,,TRAINING SERVICES             
DIRECT PAYMENTS               ,9190,DIRECT PAYMENTS               ,02/07/2014,3669246,J930691                  ,"1,359.32",REDACTED PERSONAL DATA,561085,Social Community Care,CAREFIRST DIRECT PAYMENTS     
PURCHASING LEARNING DISABILITI,9190,DIRECT PAYMENTS               ,02/07/2014,3669248,J930691                  ,716.86,REDACTED PERSONAL DATA,562179,Social Community Care,CAREFIRST DIRECT PAYMENTS     
PURCHASING                    ,4260,DIRECT PAYMENTS               ,02/07/2014,3669249,J930691                  ,349.12,REDACTED PERSONAL DATA,563350,Social Community Care,CAREFIRST DIRECT PAYMENTS     
PURCHASING LEARNING DISABILITI,9190,DIRECT PAYMENTS               ,02/07/2014,3669253,J930691                  ,"1,513.60",REDACTED PERSONAL DATA,597505,Social Community Care,CAREFIRST DIRECT PAYMENTS     
PURCHASING                    ,9190,DIRECT PAYMENTS               ,02/07/2014,3669254,J930691                  ,"4,566.36",REDACTED PERSONAL DATA,597507,Social Community Care,CAREFIRST DIRECT PAYMENTS     
ADULT SOCIAL CARE PURCHASING  ,9190,DIRECT PAYMENTS               ,02/07/2014,3669255,J930691                  ,"1,525.71",REDACTED PERSONAL DATA,597621,Social Community Care,CAREFIRST DIRECT PAYMENTS     
LEAVING CARE                  ,9270,INDEPENDENT FOSTERING         ,02/07/2014,3669231,148032,874.00,REDACTED PERSONAL DATA,349291,,ADOPTION & FOSTERING          
INDEPENDENT FOSTERING PLACEMEN,9270,INDEPENDENT FOSTERING         ,02/07/2014,3669232,148033,830.00,REDACTED PERSONAL DATA,349291,,ADOPTION & FOSTERING          
INDEPENDENT FOSTERING PLACEMEN,9270,INDEPENDENT FOSTERING         ,02/07/2014,3669233,148034,928.97,REDACTED PERSONAL DATA,349291,,ADOPTION & FOSTERING          
CWD INDEPENDENT PLACEMENTS    ,9270,INDEPENDENT FOSTERING         ,02/07/2014,3669234,26783,"3,703.00",REDACTED PERSONAL DATA,366456,,ADOPTION & FOSTERING          
LEAVING CARE                  ,9270,CARELEAVERS ACCOMMODATION     ,02/07/2014,3669235,MUD108                   ,320.95,EARL MARSHALL GUEST HOUSE LTD           ,391589,,GUEST HOUSES                  
CWD INDEPENDENT PLACEMENTS    ,9270,CARELEAVERS ACCOMMODATION     ,02/07/2014,3669236,SRO1174505               ,882.00,THE NATIONAL AUTISTIC SOCIETY           ,334778,,CHARITIES & VOLUNTARY ORGANISA
CWD INDEPENDENT PLACEMENTS    ,9270,CARELEAVERS ACCOMMODATION     ,02/07/2014,3669237,SRO1174506               ,"1,394.00",THE NATIONAL AUTISTIC SOCIETY           ,334778,,CHARITIES & VOLUNTARY ORGANISA
LEAVING CARE                  ,9270,CARELEAVERS ACCOMMODATION     ,02/07/2014,3669238,2075,315.00,EARL MARSHALL GUEST HOUSE LTD           ,391589,,GUEST HOUSES                  
UASC/ASYLUM 16-17             ,6210,RENTS                         ,02/07/2014,3669239,6701,"4,765.62",PROGRESSIVE CARE LTD                    ,343548,,CHILDREN'S HOMES              
INDEPENDENT RES BLOCK PLACEMEN,9270,INDEPENDENT RESIDENTIAL PMENT ,02/07/2014,3669240,6702,"4,765.62",PROGRESSIVE CARE LTD                    ,343548,,CHILDREN'S HOMES              
EAST SA - CIN S17             ,9270,CARELEAVERS INDEPENDENT LIVING,02/07/2014,3669241,EAST/311A                ,827.00,REDACTED PERSONAL DATA,597051,Unclassified Non Trade,OUT OF SCOPE FOR SIC MONITORIN
 LUNCH CLUB GRANT             ,8180,GRANTS                        ,02/07/2014,3669259,MPA20140701179 1         ,725.00,BANNER CROSS LUNCHEON & FRIENDSHIP CLUB ,326250,,PLACES OF WORSHIP             
 LUNCH CLUB GRANT             ,8180,GRANTS                        ,02/07/2014,3669261,MPA20140701179 11        ,617.00,ADLINGTON LUNCHEON CLUB                 ,295201,,CHARITIES & VOLUNTARY ORGANISA
 LUNCH CLUB GRANT             ,8180,GRANTS                        ,02/07/2014,3669262,MPA20140701179 12        ,"1,245.00",DARNALL LUNCH CLUB                      ,295216,,CHARITIES & VOLUNTARY ORGANISA
 LUNCH CLUB GRANT             ,8180,GRANTS                        ,02/07/2014,3669264,MPA20140701179 14        ,641.00,DUKE STREET COMMUNITY CENTRE            ,375030,,COMMUNITY CENTRES             
 LUNCH CLUB GRANT             ,8180,GRANTS                        ,02/07/2014,3669265,MPA20140701179 15        ,992.00,ST OSWALDS LUNCHEON CLUB                ,385325,,CHARITIES & VOLUNTARY ORGANISA
 LUNCH CLUB GRANT             ,8180,GRANTS                        ,02/07/2014,3669267,MPA20140701179 17        ,"2,251.00",BIRLEY SPA LUNCH CLUB                   ,295206,,CHARITIES & VOLUNTARY ORGANISA
 LUNCH CLUB GRANT             ,8180,GRANTS                        ,02/07/2014,3669268,MPA20140701179 18        ,337.00,THE KINGS CENTRE LUNCH CLUB             ,295164,,CHARITIES & VOLUNTARY ORGANISA
 LUNCH CLUB GRANT             ,8180,GRANTS                        ,02/07/2014,3669269,MPA20140701179 19        ,332.00,MICHAEL CHURCH LOWEDGES THURS LUNCH CLUB,295189,,CHARITIES & VOLUNTARY ORGANISA
 LUNCH CLUB GRANT             ,8180,GRANTS                        ,02/07/2014,3669270,MPA20140701179 2         ,670.00,CHRIST CHURCH PITSMOOR LUNCH CLUB       ,321910,,CHARITIES & VOLUNTARY ORGANISA
 LUNCH CLUB GRANT             ,8180,GRANTS                        ,02/07/2014,3669271,MPA20140701179 20        ,714.00,ST JOHN'S ABBEYDALE LUNCH CLUB          ,385324,,CHARITIES & VOLUNTARY ORGANISA
 LUNCH CLUB GRANT             ,8180,GRANTS                        ,02/07/2014,3669272,MPA20140701179 21        ,641.00,GRAPEVINE CENTRE LUNCHEON CLUB          ,295190,,CHARITIES & VOLUNTARY ORGANISA
 LUNCH CLUB GRANT             ,8180,GRANTS                        ,02/07/2014,3669273,MPA20140701179 22        ,703.00,PITSMOOR LUNCH CLUB                     ,295194,,CHARITIES & VOLUNTARY ORGANISA
 LUNCH CLUB GRANT             ,8180,GRANTS                        ,02/07/2014,3669274,MPA20140701179 23        ,"1,229.00",THE SALVATION ARMY SHEFFIELD CASTLE     ,327783,,"HOUSING ASSOCIATIONS, SOCIETIE"
 LUNCH CLUB GRANT             ,8180,GRANTS                        ,02/07/2014,3669275,MPA20140701179 24        ,265.00,DORE METHODIST LUNCH CLUB               ,295219,,CHARITIES & VOLUNTARY ORGANISA
 LUNCH CLUB GRANT             ,8180,GRANTS                        ,02/07/2014,3669276,MPA20140701179 25        ,534.00,WADSLEY CHURCH LUNCH CLUB               ,295167,,CHARITIES & VOLUNTARY ORGANISA
 LUNCH CLUB GRANT             ,8180,GRANTS                        ,02/07/2014,3669277,MPA20140701179 26        ,902.00,SHIREGREEN UNITED REFORMED CHURCH       ,295203,,PLACES OF WORSHIP             
 LUNCH CLUB GRANT             ,8180,GRANTS                        ,02/07/2014,3669278,MPA20140701179 27        ,719.00,ST TIMOTHY'S LUNCH CLUB                 ,295163,,CHARITIES & VOLUNTARY ORGANISA
 LUNCH CLUB GRANT             ,8180,GRANTS                        ,02/07/2014,3669279,MPA20140701179 28        ,755.00,MEERSBROOK PARK LUNCH CLUB              ,363027,,CHARITIES & VOLUNTARY ORGANISA
 LUNCH CLUB GRANT             ,8180,GRANTS                        ,02/07/2014,3669280,MPA20140701179 29        ,887.00,ST LEONARD'S LUNCH CLUB                 ,296991,,CHARITIES & VOLUNTARY ORGANISA
 LUNCH CLUB GRANT             ,8180,GRANTS                        ,02/07/2014,3669281,MPA20140701179 3         ,"1,009.00",CROSSPOOL LUNCH CLUB                    ,321911,,CHARITIES & VOLUNTARY ORGANISA
 LUNCH CLUB GRANT             ,8180,GRANTS                        ,02/07/2014,3669282,MPA20140701179 30        ,"1,007.00",ST MARY'S LUNCH CLUB                    ,322012,,CHARITIES & VOLUNTARY ORGANISA
 LUNCH CLUB GRANT             ,8180,GRANTS                        ,02/07/2014,3669283,MPA20140701179 31        ,557.00,TINSLEY COMMUNITY CENTRE LUNCH CLUB     ,297105,,CHARITIES & VOLUNTARY ORGANISA
 LUNCH CLUB GRANT             ,8180,GRANTS                        ,02/07/2014,3669285,MPA20140701179 33        ,"1,349.00",ST MARY'S HANDSWORTH LUNCH CLUB         ,300780,,CHARITIES & VOLUNTARY ORGANISA
 LUNCH CLUB GRANT             ,8180,GRANTS                        ,02/07/2014,3669286,MPA20140701179 34        ,809.00,WILLIAM TEMPLE LUNCH CLUB               ,299806,,CHARITIES & VOLUNTARY ORGANISA
 LUNCH CLUB GRANT             ,8180,GRANTS                        ,02/07/2014,3669288,MPA20140701179 36        ,"1,169.00",FOXHILL & BIRLEY CARR LIVE AT HOME SCHEM,349900,,CHARITIES & VOLUNTARY ORGANISA
 LUNCH CLUB GRANT             ,8180,GRANTS                        ,02/07/2014,3669289,MPA20140701179 37        ,309.00,ST MARKS LUNCH & FRIENDSHIP CLUB        ,301346,,PLACES OF WORSHIP             
 LUNCH CLUB GRANT             ,8180,GRANTS                        ,02/07/2014,3669293,MPA20140701179 40        ,353.00,LOWEDGES LUNCH CLUB                     ,353522,,CHARITIES & VOLUNTARY ORGANISA
 LUNCH CLUB GRANT             ,8180,GRANTS                        ,02/07/2014,3669294,MPA20140701179 41        ,"1,344.00",FRECHEVILLE PARISH DAY CENTRE           ,348612,,LOCAL GOVERNMENT              
 LUNCH CLUB GRANT             ,8180,GRANTS                        ,02/07/2014,3669296,MPA20140701179 43        ,659.00,WESLEY HALL LUNCH CLUB                  ,511866,,CHARITIES & VOLUNTARY ORGANISA
 LUNCH CLUB GRANT             ,8180,GRANTS                        ,02/07/2014,3669297,MPA20140701179 44        ,995.00,MOSBOROUGH LUNCH & SOCIAL CLUB          ,510333,,"CLUBS & ASSOCIATIONS - SOCIAL,"
 LUNCH CLUB GRANT             ,8180,GRANTS                        ,02/07/2014,3669298,MPA20140701179 45        ,855.00,THE THURSDAY CLUB                       ,451641,,CHARITIES & VOLUNTARY ORGANISA
 LUNCH CLUB GRANT             ,8180,GRANTS                        ,02/07/2014,3669299,MPA20140701179 46        ,331.00,CHURCH ON THE CORNER                    ,362765,,PLACES OF WORSHIP             
 LUNCH CLUB GRANT             ,8180,GRANTS                        ,02/07/2014,3669300,MPA20140701179 47        ,548.00,MANOR LODGE LUNCHEON CLUB               ,545135,,CHARITIES & VOLUNTARY ORGANISA
 LUNCH CLUB GRANT             ,8180,GRANTS                        ,02/07/2014,3669301,MPA20140701179 48        ,293.00,MADINA ASIAN ELDERLY WOMEN'S LUNCH CLUB ,549528,,CHARITIES & VOLUNTARY ORGANISA
 LUNCH CLUB GRANT             ,8180,GRANTS                        ,02/07/2014,3669303,MPA20140701179 5         ,401.00,HALLAM METHODIST LUNCH CLUB             ,321917,,CHARITIES & VOLUNTARY ORGANISA
 LUNCH CLUB GRANT             ,8180,GRANTS                        ,02/07/2014,3669304,MPA20140701179 50        ,288.00,PARSON CROSS COMMUNITY DEVELOPMENT FORUM,385089,,CHARITIES & VOLUNTARY ORGANISA
 LUNCH CLUB GRANT             ,8180,GRANTS                        ,02/07/2014,3669305,MPA20140701179 6         ,285.00,OUGHTIBRIDGE & DISTRICT LUNCH CLUB      ,325339,,CHARITIES & VOLUNTARY ORGANISA
 LUNCH CLUB GRANT             ,8180,GRANTS                        ,02/07/2014,3669307,MPA20140701179 8         ,889.00,WOODSEATS METHODIST LUNCH CLUB          ,325667,,CHARITIES & VOLUNTARY ORGANISA
 LUNCH CLUB GRANT             ,8180,GRANTS                        ,02/07/2014,3669308,MPA20140701179 9         ,945.00,GREYSTONES LUNCH CLUB                   ,295226,,CHARITIES & VOLUNTARY ORGANISA
PURCHASING LEARNING DISABILITI,9200,CONTINUING RESIDENTIAL CARE   ,02/07/2014,3669218,J924386 200714           ,"6,835.20",BROOMHOUSE                              ,362002,,NURSING HOMES                 
PDSI PURCHASING               ,9200,CONTINUING RESIDENTIAL CARE   ,02/07/2014,3669219,J924413 200714           ,"1,585.56",DEVAGLADE LIMITED T/A AARON VIEW        ,486043,,NURSING HOMES                 
ADULT SOCIAL CARE PURCHASING  ,9200,CONTINUING RESIDENTIAL CARE   ,02/07/2014,3669219,J924413 200714           ,"14,266.14",DEVAGLADE LIMITED T/A AARON VIEW        ,486043,,NURSING HOMES                 
PURCHASING LEARNING DISABILITI,9200,CONTINUING RESIDENTIAL CARE   ,02/07/2014,3669220,J924455 200714           ,"7,982.04",11 FRASER DRIVE                         ,361875,,RESIDENTIAL CARE HOMES        
PURCHASING LEARNING DISABILITI,9200,CONTINUING RESIDENTIAL CARE   ,02/07/2014,3669221,J924457 200714           ,"7,314.28",169 GLEADLESS COMMON                    ,361822,,RESIDENTIAL CARE HOMES        
PURCHASING LEARNING DISABILITI,9200,CONTINUING RESIDENTIAL CARE   ,02/07/2014,3669222,J924458 200714           ,"10,496.08",209-211 BURNCROSS ROAD                  ,361965,,RESIDENTIAL CARE HOMES        
PURCHASING LEARNING DISABILITI,9200,CONTINUING RESIDENTIAL CARE   ,02/07/2014,3669223,J924461 200714           ,"11,439.00",3 STATION ROAD                          ,362166,,RESIDENTIAL CARE HOMES        
PURCHASING LEARNING DISABILITI,9200,CONTINUING RESIDENTIAL CARE   ,02/07/2014,3669224,J924462 200714           ,"1,331.88",5 STATION ROAD                          ,361874,,RESIDENTIAL CARE HOMES        
ADULT SOCIAL CARE PURCHASING  ,9200,CONTINUING RESIDENTIAL CARE   ,02/07/2014,3669224,J924462 200714           ,810.84,5 STATION ROAD                          ,361874,,RESIDENTIAL CARE HOMES        
PURCHASING LEARNING DISABILITI,9200,CONTINUING RESIDENTIAL CARE   ,02/07/2014,3669225,J924463 200714           ,"2,684.44",9 FRASER DRIVE                          ,361861,,RESIDENTIAL CARE HOMES        
ADULT SOCIAL CARE PURCHASING  ,9200,CONTINUING RESIDENTIAL CARE   ,02/07/2014,3669225,J924463 200714           ,"1,470.16",9 FRASER DRIVE                          ,361861,,RESIDENTIAL CARE HOMES        
PURCHASING                    ,9200,CONTINUING RESIDENTIAL CARE   ,02/07/2014,3669226,J924469 200714           ,"23,785.96",TOGETHER                                ,361880,,CHARITIES & VOLUNTARY ORGANISA
ADULT SOCIAL CARE PURCHASING  ,9200,CONTINUING RESIDENTIAL CARE   ,02/07/2014,3669227,J929864 200714           ,"4,161.00",IDEAL CARE HOMES                        ,524235,,RESIDENTIAL CARE HOMES        
ADULT SOCIAL CARE PURCHASING  ,9210,SHORT TERM NURSING CARE       ,02/07/2014,3669229,J930684 220614           ,340.29,ALPINE HEALTHCARE LTD                   ,362125,,NURSING HOMES                 
ADULT SOCIAL CARE PURCHASING  ,9200,SHORT TERM RESIDENTIAL CARE   ,02/07/2014,3669230,J930685 220614           ,"1,548.00",BALMORAL NURSING HOME                   ,361851,,NURSING HOMES                 
SHEFFIELD HOMES TREES         ,6370,GROUNDS MTCE AND ARBORICULTURE,03/07/2014,3669982,ERS INVOICE102925        ,475.00,JAG TREE SURGERY                        ,559367,,TREE WORK & FORESTRY SERVICES 
SHEFFIELD HOMES TREES         ,6370,GROUNDS MTCE AND ARBORICULTURE,03/07/2014,3669983,ERS INVOICE102926        ,"2,450.00",JAG TREE SURGERY                        ,559367,,TREE WORK & FORESTRY SERVICES 
NEW PROJECT TEAM              ,4040,OTHER REIMBURSE. & CONTRIBS.  ,03/07/2014,3669984,ERS INVOICE102927        ,"2,848.00",FRIENDS OF PORTER VALLEY                ,470101,,CHARITIES & VOLUNTARY ORGANISA
CLAIMS                        ,8740,MOTOR VEHICLE                 ,03/07/2014,3669986,ERS INVOICE102929        ,624.14,F W WALLACE LTD.                        ,363048,,CHARITIES & VOLUNTARY ORGANISA
COMM EP NORTH EAST LINCS      ,1194,OTHER FEES                    ,03/07/2014,3669987,ERS INVOICE102930        ,"40,000.00",CARLTON EDUCATION & ENTERPRISE LTD      ,597468,,EDUCATIONAL SERVICES          
EP NORTH EAST LINC            ,1194,OTHER FEES                    ,03/07/2014,3669988,ERS INVOICE102931        ,"20,824.00",BROWNS PROPERTY DEVELOPMENT LTD         ,597642,Unclassified Non Trade,OUT OF SCOPE FOR SIC MONITORIN
OUTDOOR EDUCATION             ,8440,FEE EXPENSES                  ,03/07/2014,3669991,ERS INVOICE102934        ,"1,175.00",CHRISTOPHER PAUL ADKIN                  ,502535,,OUTDOOR PURSUIT ORGANISERS & E
OUTDOOR EDUCATION             ,8440,FEE EXPENSES                  ,03/07/2014,3669992,ERS INVOICE102936        ,340.00,MR MICHAEL FAIREST                      ,338564,,PAINTERS & DECORATORS         
OUTDOOR EDUCATION             ,8440,FEE EXPENSES                  ,03/07/2014,3669994,ERS INVOICE102938        ,270.00,PHILIP HUMBERSTONE                      ,487844,,SPORTS COACHING & INSTRUCTION 
OUTDOOR EDUCATION             ,8440,FEE EXPENSES                  ,03/07/2014,3669995,ERS INVOICE102939        ,400.00,AMANDA TEE                              ,597043,,LEISURE & RECREATION CENTRES  
MCA SUPPORT TEAM              ,8440,FEE EXPENSES                  ,03/07/2014,3669998,ERS INVOICE102942        ,300.00,REDACTED PERSONAL DATA,597767,Unclassified Non Trade,OUT OF SCOPE FOR SIC MONITORIN
MCA SUPPORT TEAM              ,8440,FEE EXPENSES                  ,03/07/2014,3670000,ERS INVOICE102944        ,439.20,REDACTED PERSONAL DATA,597770,Unclassified Non Trade,OUT OF SCOPE FOR SIC MONITORIN
EVENTS IN PARKS               ,8200,EVENTS EXPENDITURE            ,03/07/2014,3670001,ERS INVOICE102946        ,"2,379.00",JULIE WILSON                            ,464440,,SPORTS MANAGEMENT & PROMOTION 
MCA SUPPORT TEAM              ,8440,FEE EXPENSES                  ,03/07/2014,3670068,ERS INVOICE102949        ,869.99,REDACTED PERSONAL DATA,585545,Unclassified Non Trade,OUT OF SCOPE FOR SIC MONITORIN
CORONIAL SERVICES             ,8440,WITNESS FEES                  ,03/07/2014,3670069,ERS INVOICE102952        ,262.40,REDACTED PERSONAL DATA,597762,Unclassified Non Trade,OUT OF SCOPE FOR SIC MONITORIN
CORONIAL SERVICES             ,8440,WITNESS FEES                  ,03/07/2014,3670071,ERS INVOICE102954        ,459.20,REDACTED PERSONAL DATA,597765,Unclassified Non Trade,OUT OF SCOPE FOR SIC MONITORIN
HULL - HUMBER SUB REGION HAL  ,1194,OTHER FEES                    ,03/07/2014,3670121,ERS INVOICE103004        ,"3,500.00",REDACTED PERSONAL DATA,582411,Unclassified Non Trade,OUT OF SCOPE FOR SIC MONITORIN
LOCAL ASSISTANCE SCHEME       ,8010,EQUIPMENT PURCHASE AND REPAIR ,03/07/2014,3658544,GR476                    ,257.75,SHEFFIELD CREDIT UNION                  ,400397,,CREDIT UNIONS                 
LOCAL ASSISTANCE SCHEME       ,8010,EQUIPMENT PURCHASE AND REPAIR ,03/07/2014,3658569,GR477                    ,475.00,SHEFFIELD CREDIT UNION                  ,400397,,CREDIT UNIONS                 
LOCAL ASSISTANCE SCHEME       ,8010,EQUIPMENT PURCHASE AND REPAIR ,03/07/2014,3658571,GR478                    ,552.79,SHEFFIELD CREDIT UNION                  ,400397,,CREDIT UNIONS                 
LOCAL ASSISTANCE SCHEME       ,8010,EQUIPMENT PURCHASE AND REPAIR ,03/07/2014,3658804,GR475                    ,735.85,SHEFFIELD CREDIT UNION                  ,400397,,CREDIT UNIONS                 
LOCAL ASSISTANCE SCHEME       ,8010,EQUIPMENT PURCHASE AND REPAIR ,03/07/2014,3658808,GR474                    ,"1,300.32",SHEFFIELD CREDIT UNION                  ,400397,,CREDIT UNIONS                 
CHANCET WOOD                  ,8010,EQUIPMENT PURCHASE AND REPAIR ,03/07/2014,3659137,19103,"1,118.50",GOODMAN SPARKS LTD                      ,205189,,LAUNDRY EQUIPMENT MNFRS & SUPP
LOCAL ASSISTANCE SCHEME       ,8010,EQUIPMENT PURCHASE AND REPAIR ,03/07/2014,3660147,GR479                    ,590.80,SHEFFIELD CREDIT UNION                  ,400397,,CREDIT UNIONS                 
SCHOOLS ACCESS INITIATIVE     ,1183,PURCHASE OF EQUIPMENT         ,03/07/2014,3660231,OP/I068701               ,264.00,JAMES LECKEY DESIGN LTD                 ,566557,,DISABILITY EQUIPMENT - MNFRS &
BREASTFEEDING PEER SUPPORT    ,9030,HEALTH                        ,03/07/2014,3660366,R81IN2/00003852          ,"5,166.67",ACTION FOR CHILDREN                     ,503682,,ACCOMMODATION AGENCIES - RESID
SHEFF SICKLE CELL & THALASSEMI,9030,HEALTH                        ,03/07/2014,3660373,43266,"4,833.00",SHEFFIELD SICKLE CELL & THALASSAEMIA FOU,581190,,PUBLIC HEALTH SUPPLIERS       
BREASTFEEDING PEER SUPPORT    ,9030,HEALTH                        ,03/07/2014,3660772,R8IN2/00003586           ,"2,583.00",ACTION FOR CHILDREN                     ,503682,,ACCOMMODATION AGENCIES - RESID
LAND DRAINAGE & FLOOD MGMT    ,8440,FEE EXPENSES                  ,03/07/2014,3662897,5471,"1,325.00",ENVIRONMENTAL DRAINAGE SOLUTIONS LTD    ,373384,,DRAINAGE CONTRACTORS          
OUTDOOR EDUCATION             ,8010,EQUIPMENT PURCHASE AND REPAIR ,03/07/2014,3662909,17008,426.91,HITCH N HIKE LTD                        ,205548,,CAMPING EQUIPMENT SUPPLIERS   
P&C/TREASURY                  ,6210,RENTS                         ,03/07/2014,3663011,./0013/6052              ,"1,115.62",CREATIVE SPACE MANAGEMENT LTD           ,464280,,PROPERTY & ESTATE MANAGEMENT  
P&C/TREASURY                  ,6210,RENTS                         ,03/07/2014,3663013,./0013/6091              ,"1,662.50",CREATIVE SPACE MANAGEMENT LTD           ,464280,,PROPERTY & ESTATE MANAGEMENT  
P&C/TREASURY                  ,5305,WAGES BASIC PAY RECHARGED     ,03/07/2014,3663073,112316,"1,881.90",BOLSOVER DISTRICT COUNCIL               ,438930,,LOCAL GOVERNMENT              
LOCAL ASSISTANCE SCHEME       ,8010,EQUIPMENT PURCHASE AND REPAIR ,03/07/2014,3663093,GR481                    ,742.50,SHEFFIELD CREDIT UNION                  ,400397,,CREDIT UNIONS                 
P&C/TREASURY                  ,4460,DESIGN FEES RECHARGE          ,03/07/2014,3663096,3057,"5,250.00",ELEVEN DESIGN CONSULTANTS LTD.          ,447835,,DESIGNERS - GRAPHIC           
CYP FACILITIES MGMT           ,8510,ICT SUPPORT BROUGHT IN        ,03/07/2014,3663454,RINV/00001388            ,"224,863.80",SHEFFIELD LEP LTD                       ,482230,,LOCAL GOVERNMENT              
BRT NORTH: LAND (WP14)        ,1161,NC&A MAIN CONTRACT            ,03/07/2014,3663522,72402,"2,000.00",SMITH YOUNG PARTNERSHIP                 ,555298,,FACILITIES MANAGEMENT         
PROVIDER CONTRACT AUG13-JUL14 ,9120,OTHER AGENCIES                ,03/07/2014,3664113,TGTD-056                 ,469.00,TINSLEY PARENTS & CHILDREN'S CONSORTIUM ,451409,,CHARITIES & VOLUNTARY ORGANISA
YOUNG CARERS PROJECT          ,9030,HEALTH                        ,03/07/2014,3664608,41810,"27,250.00",SHEFFIELD YOUNG CARERS PROJECT          ,581513,,PUBLIC HEALTH SUPPLIERS       
P&C/TREASURY                  ,4460,DESIGN FEES RECHARGE          ,03/07/2014,3664657,4354,400.00,EVOLUTED NEW MEDIA LTD                  ,596144,,WEB SITE DESIGN               
LOCAL ASSISTANCE SCHEME       ,8010,EQUIPMENT PURCHASE AND REPAIR ,03/07/2014,3664677,GR485                    ,376.00,SHEFFIELD CREDIT UNION                  ,400397,,CREDIT UNIONS                 
LOCAL ASSISTANCE SCHEME       ,8010,EQUIPMENT PURCHASE AND REPAIR ,03/07/2014,3664678,GR483                    ,314.00,SHEFFIELD CREDIT UNION                  ,400397,,CREDIT UNIONS                 
LOCAL ASSISTANCE SCHEME       ,8010,EQUIPMENT PURCHASE AND REPAIR ,03/07/2014,3664681,GR487                    ,833.20,SHEFFIELD CREDIT UNION                  ,400397,,CREDIT UNIONS                 
LOCAL ASSISTANCE SCHEME       ,8010,EQUIPMENT PURCHASE AND REPAIR ,03/07/2014,3664683,GR488                    ,601.77,SHEFFIELD CREDIT UNION                  ,400397,,CREDIT UNIONS                 
COMMUNITY HEALTH CHAMPIONS    ,9030,HEALTH                        ,03/07/2014,3664711,SOARCO/1268              ,"1,933.00",SOAR COMMUNITY                          ,581261,,PUBLIC HEALTH SUPPLIERS       
ESTATE & ENVIORMENTAL SERVICES,6090,TIPPING COSTS                 ,03/07/2014,3664981,65480,587.60,R FLETCHER WASTE DISPOSAL LTD           ,473104,,WASTE DISPOSAL SERVICES       
ESTATE & ENVIORMENTAL SERVICES,6090,TIPPING COSTS                 ,03/07/2014,3665004,65483,"1,136.76",R FLETCHER WASTE DISPOSAL LTD           ,473104,,WASTE DISPOSAL SERVICES       
ESTATE & ENVIORMENTAL SERVICES,6090,TIPPING COSTS                 ,03/07/2014,3665008,65484,"1,569.84",R FLETCHER WASTE DISPOSAL LTD           ,473104,,WASTE DISPOSAL SERVICES       
ESTATE & ENVIORMENTAL SERVICES,6090,TIPPING COSTS                 ,03/07/2014,3665026,65479,984.40,R FLETCHER WASTE DISPOSAL LTD           ,473104,,WASTE DISPOSAL SERVICES       
LAND DRAINAGE & FLOOD MGMT    ,8410,GENERAL OFFICE EXPENSES       ,03/07/2014,3665033,1400424,720.00,MINERAL PRODUCTS ASSOCIATION            ,493228,,DEFAULT DO NOT DELETE         
P&C/TREASURY                  ,5305,WAGES BASIC PAY RECHARGED     ,03/07/2014,3665054,112463,"1,744.20",BOLSOVER DISTRICT COUNCIL               ,438930,,LOCAL GOVERNMENT              
ESTATE & ENVIORMENTAL SERVICES,6090,TIPPING COSTS                 ,03/07/2014,3665108,65481,480.24,R FLETCHER WASTE DISPOSAL LTD           ,473104,,WASTE DISPOSAL SERVICES       
ESTATE & ENVIORMENTAL SERVICES,6090,TIPPING COSTS                 ,03/07/2014,3665110,65482,"1,126.08",R FLETCHER WASTE DISPOSAL LTD           ,473104,,WASTE DISPOSAL SERVICES       
SCHOOLS ACCESS INITIATIVE     ,1183,PURCHASE OF EQUIPMENT         ,03/07/2014,3665157,119949,310.00,G & S SMIRTHWAITE LTD                   ,204985,,DISABILITY EQUIPMENT - MNFRS &
FOSTERING DEVELOPMENT         ,8230,HOSPITALITY                   ,03/07/2014,3665161,SO1094294                ,297.54,BAKER ROSS LTD                          ,401165,,FUND RAISING SERVICES         
LOCAL ASSISTANCE SCHEME       ,8010,EQUIPMENT PURCHASE AND REPAIR ,03/07/2014,3665427,GR490                    ,353.83,SHEFFIELD CREDIT UNION                  ,400397,,CREDIT UNIONS                 
LOCAL ASSISTANCE SCHEME       ,8010,EQUIPMENT PURCHASE AND REPAIR ,03/07/2014,3665428,GR489                    ,412.52,SHEFFIELD CREDIT UNION                  ,400397,,CREDIT UNIONS                 
ADOPTION SERVICE              ,6280,HIRE OF PREMISES              ,03/07/2014,3665645,81,251.25,JUNGLE MANIA PLAY CENTRES LTD           ,477362,,CHILDREN'S ACTIVITY CENTRES   
FOSTERING DEVELOPMENT         ,8490,OTHER PROFESSIONAL FEES       ,03/07/2014,3665647,1108,325.00,ROUNDABOUT CRECHE SERVICE               ,462116,,NURSERIES & CRECHES           
FOSTERING DEVELOPMENT         ,8420,ADVERTISING AND PUBLICITY     ,03/07/2014,3665649,1845041,578.00,JOHNSTON PUBLISHING LTD                 ,207918,,NEWSPAPER & MAGAZINE PUBLISHER
INTER AGENCY FEES             ,9120,OTHER AGENCIES                ,03/07/2014,3665652,149/15                   ,"2,250.00",ADOPTION MATTERS NORTHWEST              ,340890,,CHARITIES & VOLUNTARY ORGANISA
TTAPS GENERAL                 ,8350,MISCELLANEOUS EXPENSES        ,03/07/2014,3665675,N3892                    ,"6,880.00",NATIONWIDE DATA COLLECTION              ,526106,,MARKET RESEARCH               
SCHOOLS ACCESS INITIATIVE     ,1183,PURCHASE OF EQUIPMENT         ,03/07/2014,3665764,201983,"3,303.00",KINGCRAFT LTD                           ,543147,,DISABILITY & SPECIAL NEEDS - S
HIGHWAY RECORDS               ,8620,COMPUTER MAINTENANCE          ,03/07/2014,3665802,INV015463                ,"12,000.00",SYNECTICS SYSTEMS GROUP LTD             ,456522,,SECURITY EQUIPMENT            
SCHOOL NURSING                ,9030,HEALTH                        ,03/07/2014,3666250,2100158402,"431,922.75",SHEFFIELD CHILDRENS HOSPITAL NHS  TRUST ,332785,,HOSPITALS                     
SCHOOL NURSING                ,9030,HEALTH                        ,03/07/2014,3666251,2100158590,"143,974.00",SHEFFIELD CHILDRENS HOSPITAL NHS  TRUST ,332785,,HOSPITALS                     
SCHOOL NURSING                ,9030,HEALTH                        ,03/07/2014,3666262,2100158304,"278,619.00",SHEFFIELD CHILDRENS HOSPITAL NHS  TRUST ,332785,,HOSPITALS                     
PUBLIC RIGHTS OF WAY          ,6390,OTHER HIGHWAY MAINTENANCE     ,03/07/2014,3666293,2058,"1,595.00",STEEL VALLEY PROJECT                    ,386046,,CHARITIES & VOLUNTARY ORGANISA
LOCAL ASSISTANCE SCHEME       ,8010,EQUIPMENT PURCHASE AND REPAIR ,03/07/2014,3666317,GR482                    ,882.30,SHEFFIELD CREDIT UNION                  ,400397,,CREDIT UNIONS                 
ALDINE HOUSE                  ,8130,CATERING SUPPLIES             ,03/07/2014,3667225,257008542,356.53,YORKSHIRE PURCHASING ORGANISATION       ,295997,,PURCHASING SERVICES           
ALDINE HOUSE                  ,5750,TRAINING EXPENDITURE          ,03/07/2014,3667430,CUKI0002976              ,"1,100.00",CRISIS PREVENTION INSTITUTE             ,328692,,TRAINING CONSULTANTS          
DON VALLEY SCHOOL             ,1194,OTHER FEES                    ,03/07/2014,3667457,367414,"47,339.00",OVE ARUP & PARTNERS LTD                 ,321129,,ENGINEERS - CONSULTING        
VACANT PROPERTIES             ,6030,REPAIRS AND MTCE - RESPONSIVE ,03/07/2014,3668258,142362,475.01,VPS SITE SECURITY LTD                   ,203706,,CCTV & VIDEO EQUIPMENT        
VACANT PROPERTIES             ,6030,REPAIRS AND MTCE - RESPONSIVE ,03/07/2014,3668259,141780,475.01,VPS SITE SECURITY LTD                   ,203706,,CCTV & VIDEO EQUIPMENT        
VACANT PROPERTIES             ,6030,REPAIRS AND MTCE - RESPONSIVE ,03/07/2014,3668260,141235,475.01,VPS SITE SECURITY LTD                   ,203706,,CCTV & VIDEO EQUIPMENT        
CAR PARKING MANAGEMENT        ,6030,REPAIRS AND MTCE - RESPONSIVE ,03/07/2014,3668308,10985,"1,402.00",ELITE SECURITY SYSTEMS                  ,445002,,SECURITY SERVICES             
HEALTH INTERVENTION & PREVENTI,8440,FEE EXPENSES                  ,03/07/2014,3668727,43204,"1,910.00",CLARE ROBINSON PROJECT MANAGEMENT       ,594895,,PUBLIC HEALTH SUPPLIERS       
COMMERCIAL PROCESS TEAM       ,8440,FEE EXPENSES                  ,03/07/2014,3668728,3812,"5,354.00",DUE NORTH LIMITED                       ,572798,,COMPUTER SYSTEMS & SOFTWARE (D
SWAN COMMISSIONED             ,1147,DEMOLITION                    ,03/07/2014,3668729,4391,"1,610.54",RK CIVIL ENGINEERS LTD                  ,585586,,CIVIL ENGINEERS               
ARBOURTHORNE 5M'S REFURB      ,1147,DEMOLITION                    ,03/07/2014,3668729,4391,"12,885.25",RK CIVIL ENGINEERS LTD                  ,585586,,CIVIL ENGINEERS               
ARBOURTHORNE 5M'S REFURB      ,1147,DEMOLITION                    ,03/07/2014,3668767,980814,"2,820.00",BT OPENREACH                            ,501995,,TELECOMMUNICATION SERVICES    
OUTDOOR EDUCATION             ,6110,CLEANING/DOMESTIC MAT./SUPPLY ,03/07/2014,3668784,61353795,405.84,PHS GROUP PLC                           ,207528,,TOWEL SUPPLY & WASHROOM SERVIC
ALDINE HOUSE                  ,6030,REPAIRS AND MTCE - RESPONSIVE ,03/07/2014,3668788,210902513,423.62,MITIE TFM LTD                           ,370338,,FACILITIES MANAGEMENT         
WORKING WOMENS OPPS           ,9030,HEALTH                        ,03/07/2014,3668794,41820,"13,960.00",SHEFFIELD WORKING WOMEN'S OPPORTUNITIES ,582275,,PUBLIC HEALTH SUPPLIERS       
PROVIDER CONTRACT AUG13-JUL14 ,9120,OTHER AGENCIES                ,03/07/2014,3668820,1345,591.50,MANOR TRAINING & RESOURCE CENTRE LTD    ,455921,,CHARITIES & VOLUNTARY ORGANISA
AREA SOUTH WEST               ,6060,DECANTING/REMOVAL COSTS       ,03/07/2014,3668821,704396,488.02,PICKFORDS                               ,573763,,REMOVALS - OVERSEAS           
PROVIDER CONTRACT AUG13-JUL14 ,9120,OTHER AGENCIES                ,03/07/2014,3668844,1314_156                 ,258.00,REACH SOUTH SHEFFIELD                   ,394371,,CHARITIES & VOLUNTARY ORGANISA
LDD SPECIALIST PLACEMENTS     ,5610,AGENCY STAFF                  ,03/07/2014,3668845,226787402,359.55,REED                                    ,341818,,EMPLOYMENT & RECRUITMENT AGENC
MINOR WORKS & ADAPTATIONS     ,6030,REPAIRS AND MTCE - RESPONSIVE ,03/07/2014,3668846,3200/14                  ,653.00,PIKE JOINERY LIMITED                    ,453858,,CARPENTERS & JOINERS          
PROVIDER CONTRACT AUG13-JUL14 ,9120,OTHER AGENCIES                ,03/07/2014,3668853,1344,878.50,MANOR TRAINING & RESOURCE CENTRE LTD    ,455921,,CHARITIES & VOLUNTARY ORGANISA
MINOR WORKS & ADAPTATIONS     ,6020,REPAIRS AND MTCE - PROGRAMMED ,03/07/2014,3668865,3198/14                  ,670.00,PIKE JOINERY LIMITED                    ,453858,,CARPENTERS & JOINERS          
PROVIDER CONTRACT AUG13-JUL14 ,9120,OTHER AGENCIES                ,03/07/2014,3668866,1415_034/1415_903        ,645.00,REACH SOUTH SHEFFIELD                   ,394371,,CHARITIES & VOLUNTARY ORGANISA
MINOR WORKS & ADAPTATIONS     ,6030,REPAIRS AND MTCE - RESPONSIVE ,03/07/2014,3668869,3201/14                  ,321.00,PIKE JOINERY LIMITED                    ,453858,,CARPENTERS & JOINERS          
PROVIDER CONTRACT AUG13-JUL14 ,9120,OTHER AGENCIES                ,03/07/2014,3668870,WCF13B030                ,845.00,WOODHOUSE & DISTRICT COMMUNITY FORUM    ,482835,,COMMUNITY PROJECTS            
PROVIDER CONTRACT AUG13-JUL14 ,9120,OTHER AGENCIES                ,03/07/2014,3668871,1315,619.50,MANOR TRAINING & RESOURCE CENTRE LTD    ,455921,,CHARITIES & VOLUNTARY ORGANISA
PROVIDER CONTRACT AUG13-JUL14 ,9120,OTHER AGENCIES                ,03/07/2014,3668875,10859,"8,684.63",YEMENI COMMUNITY ASSOCIATION            ,303949,,CHARITIES & VOLUNTARY ORGANISA
ALLOTMENTS                    ,8060,MATERIALS AND SUPPLIES GENERAL,03/07/2014,3668882,135050,423.20,H HARROLD & SONS LTD                    ,205285,,LOCK SMITHS                   
MINOR WORKS & ADAPTATIONS     ,6020,REPAIRS AND MTCE - PROGRAMMED ,03/07/2014,3668904,3202/14                  ,676.00,PIKE JOINERY LIMITED                    ,453858,,CARPENTERS & JOINERS          
ALDINE HOUSE                  ,6030,REPAIRS AND MTCE - RESPONSIVE ,03/07/2014,3668910,26971160-41              ,348.05,ADT FIRE & SECURITY PLC                 ,202773,,BURGLAR & INTRUDER ALARM SYSTE
INTEGRATED SEXUAL HEALTH SERVI,9030,HEALTH                        ,03/07/2014,3668921,4000394681,"500,000.00",SHEFFIELD TEACHING HOSPITALS NHS FND TST,583240,,PUBLIC HEALTH SUPPLIERS       
INTER AGENCY FEES             ,9120,OTHER AGENCIES                ,03/07/2014,3669000,9000176728,"18,000.00",BARNSLEY M B C                          ,504141,,LOCAL GOVERNMENT              
SCHOOLS ACCESS INITIATIVE     ,1183,PURCHASE OF EQUIPMENT         ,03/07/2014,3669027,ISB5510                  ,"1,530.00",SMARTBOX ASSISTIVE TECHNOLOGY LIMITED   ,490844,,DISABILITY EQUIPMENT - MNFRS &
MINOR WORKS & ADAPTATIONS     ,6020,REPAIRS AND MTCE - PROGRAMMED ,03/07/2014,3669030,3199/14                  ,766.00,PIKE JOINERY LIMITED                    ,453858,,CARPENTERS & JOINERS          
PROVIDER CONTRACT AUG13-JUL14 ,9120,OTHER AGENCIES                ,03/07/2014,3669034,1415_032                 ,665.00,REACH SOUTH SHEFFIELD                   ,394371,,CHARITIES & VOLUNTARY ORGANISA
PROVIDER CONTRACT AUG13-JUL14 ,9120,OTHER AGENCIES                ,03/07/2014,3669035,1415_033                 ,665.00,REACH SOUTH SHEFFIELD                   ,394371,,CHARITIES & VOLUNTARY ORGANISA
CITY WIDE ALARMS SERVICE      ,8610,OTHER TELECOMMUNICATIONS      ,03/07/2014,3669039,INV/70065133             ,"15,386.28",TUNSTALL RESPONSE LTD                   ,574413,,TELECOMMUNICATIONS EQUIPMENT &
ALDINE HOUSE                  ,8130,CATERING SUPPLIES             ,03/07/2014,3669395,257128393,376.26,YORKSHIRE PURCHASING ORGANISATION       ,295997,,PURCHASING SERVICES           
PROVIDER CONTRACT AUG13-JUL14 ,9120,OTHER AGENCIES                ,03/07/2014,3669398,1342,265.50,MANOR TRAINING & RESOURCE CENTRE LTD    ,455921,,CHARITIES & VOLUNTARY ORGANISA
PROVIDER CONTRACT AUG13-JUL14 ,9120,OTHER AGENCIES                ,03/07/2014,3669400,1314_185                 ,"1,258.50",REACH SOUTH SHEFFIELD                   ,394371,,CHARITIES & VOLUNTARY ORGANISA
PROVIDER CONTRACT AUG13-JUL14 ,9120,OTHER AGENCIES                ,03/07/2014,3669401,1314_187                 ,294.50,REACH SOUTH SHEFFIELD                   ,394371,,CHARITIES & VOLUNTARY ORGANISA
PROVIDER CONTRACT AUG13-JUL14 ,9120,OTHER AGENCIES                ,03/07/2014,3669406,1327,265.50,MANOR TRAINING & RESOURCE CENTRE LTD    ,455921,,CHARITIES & VOLUNTARY ORGANISA
SCHOOL MEALS                  ,8130,CATERING SUPPLIES             ,03/07/2014,3669415,1904/90757877            ,"2,565.70",MITIE PFI LIMITED                       ,472380,,FACILITIES MANAGEMENT         
SCHOOL MEALS                  ,8150,CONTRACT CATERING - INVOICE   ,03/07/2014,3669415,1904/90757877            ,"6,887.96",MITIE PFI LIMITED                       ,472380,,FACILITIES MANAGEMENT         
ADULT SOCIAL CARE PURCHASING  ,9160,PARTNERSHIP CONTRACTS         ,03/07/2014,3669442,INV216                   ,"11,480.75",DARNALL DEMENTIA GROUP                  ,299898,,DISABILITY & SPECIAL NEEDS - S
YOUTH JUSTICE SERVICE         ,6210,RENTS                         ,03/07/2014,3669467,19526,"1,133.75",THE BURTON STREET FOUNDATION            ,568070,,DISABILITY & SPECIAL NEEDS - S
NORSE CONTROL ACCOUNT         ,8440,FEE EXPENSES                  ,03/07/2014,3669475,BN00004640               ,"15,960.26",BARNSLEY NORSE LTD                      ,586622,,CLEANING SERVICES - COMMERCIAL
STANIFORTH ROAD WORKSHOPS     ,8110,"CLOTHING, UNIFORM AND LAUNDRY ",03/07/2014,3669477,SN1739331                ,271.08,BERENDSEN UK LTD                        ,330548,,LINEN HIRE SERVICES           
ADAPTATIONS                   ,1157,DWELLINGS MAIN CONTRACT       ,03/07/2014,3669484,2849,"16,502.43",GRAHAM STUART CONSTRUCTION LTD          ,205207,,BUILDERS                      
OUTDOOR EDUCATION             ,6080,CONTRACT CLEANING             ,03/07/2014,3669495,6398,371.00,POPPIES PEAK DISTRICT LTD               ,548756,,CLEANING SERVICES - DOMESTIC  
LDD SPECIALIST PLACEMENTS     ,8010,EQUIPMENT PURCHASE AND REPAIR ,03/07/2014,3669514,1800005119,256.21,DUNELM FABRICS                          ,408889,,SOFT FURNISHINGS - RETAIL     
SCHOOL MEALS                  ,8130,CATERING SUPPLIES             ,03/07/2014,3669531,1904/90759749            ,"3,562.09",MITIE PFI LIMITED                       ,472380,,FACILITIES MANAGEMENT         
SCHOOL MEALS                  ,8150,CONTRACT CATERING - INVOICE   ,03/07/2014,3669531,1904/90759749            ,"9,698.11",MITIE PFI LIMITED                       ,472380,,FACILITIES MANAGEMENT         
MOORFOOT LEARNING CENTRE      ,5750,TRAINING EXPENDITURE          ,03/07/2014,3669537,14007497,825.00,PENNA PLC                               ,543533,,CAREER GUIDANCE SERVICES      
GP HEALTH CHECKS              ,9120,OTHER AGENCIES                ,03/07/2014,3669574,C88011_0002              ,870.00,BUCHANAN ROAD SURGERY                   ,582953,,PUBLIC HEALTH SUPPLIERS       
GP HEALTH CHECKS              ,9120,OTHER AGENCIES                ,03/07/2014,3669598,C88007_0002              ,"1,160.00",PORTER BROOK MEDICAL CENTRE             ,582165,,PUBLIC HEALTH SUPPLIERS       
YOUTH JUSTICE SERVICE         ,9120,OTHER AGENCIES                ,03/07/2014,3669600,7338,"3,434.20",SHEFFIELD FUTURES                       ,322702,,COUNSELLING & ADVICE SERVICES 
YOUTH JUSTICE SERVICE         ,9120,OTHER AGENCIES                ,03/07/2014,3669601,7337,"3,434.20",SHEFFIELD FUTURES                       ,322702,,COUNSELLING & ADVICE SERVICES 
ICAM                          ,8440,FEE EXPENSES                  ,03/07/2014,3669604,C282526                  ,998.81,ROSSENDALES COLLECT LTD                 ,477656,,BAILIFFS                      
ICAM                          ,8440,FEE EXPENSES                  ,03/07/2014,3669605,C282522                  ,300.95,ROSSENDALES COLLECT LTD                 ,477656,,BAILIFFS                      
ICAM                          ,8440,FEE EXPENSES                  ,03/07/2014,3669607,C282380                  ,421.27,ROSSENDALES COLLECT LTD                 ,477656,,BAILIFFS                      
EXTERNAL PROJECTS             ,8550,OTHER SERVICES                ,03/07/2014,3669617,INV1404-07               ,"18,000.00",SERO CONSULTING LTD                     ,434360,,BUSINESS & MANAGEMENT CONSULTA
EXTERNAL PROJECTS             ,8440,FEE EXPENSES                  ,03/07/2014,3669622,SUL11-14                 ,400.00,REDACTED PERSONAL DATA,587313,,BUSINESS & MANAGEMENT CONSULTA
GP HEALTH CHECKS              ,9120,OTHER AGENCIES                ,03/07/2014,3669623,C88652_0002              ,860.00,GREYSTONES MEDICAL CENTRE               ,581142,,PUBLIC HEALTH SUPPLIERS       
GP HEALTH CHECKS              ,9120,OTHER AGENCIES                ,03/07/2014,3669624,C88005_0002              ,"1,170.00",WALKLEY HOUSE MEDICAL CENTRE            ,581103,,PUBLIC HEALTH SUPPLIERS       
GP HEALTH CHECKS              ,9120,OTHER AGENCIES                ,03/07/2014,3669625,C88020_0002              ,"2,400.00",WHITE HOUSE SURGERY/ DR WATTON & DR DR K,580732,,PUBLIC HEALTH SUPPLIERS       
CONTRACT PAYMENTS � DRUGS     ,9030,HEALTH                        ,03/07/2014,3669627,17729,"153,051.75",CRI                                     ,582957,,PUBLIC HEALTH SUPPLIERS       
STRATEGY AND SKILLS           ,8440,FEE EXPENSES                  ,03/07/2014,3669631,CSEXPROG014              ,"1,625.00",REDACTED PERSONAL DATA,585506,,INVESTMENT CONSULTANTS        
TRANSPORT FLEET MANAGEMENT    ,8070,STOCKS AND STORES             ,03/07/2014,3669799,2713826,"24,518.00",CARLTON FUELS                           ,466741,,FUEL DEALERS                  
TRANSPORT FLEET PASSENGER SERV,7060,EXTERNAL VEHICLE HIRE         ,03/07/2014,3669819,796230,"1,361.08",DAWSONRENTALS BUS AND COACH LTD         ,556855,,VAN & TRUCK HIRE              
GRAVES PARK - ANIMAL FARM INC ,8060,MATERIALS AND SUPPLIES GENERAL,03/07/2014,3669842,112472,608.56,WILLIAM EYRE & SONS                     ,209534,,AGRICULTURAL MERCHANTS        
CORPORATE CS MGT              ,6150,ELECTRICITY                   ,03/07/2014,3669887,79781989790,423.07,NPOWER                                  ,347938,,ELECTRICITY COMPANIES         
SECTOR GWTH ENHANCEMENT PROG  ,8230,HOSPITALITY                   ,03/07/2014,3669915,0013/6246                ,283.50,MATERIALISE UK LIMITED                  ,518284,,CONFERENCE SERVICES           
BUSINESS GROWTH ADVISORS      ,8550,OTHER SERVICES                ,03/07/2014,3669919,43265,"2,450.00",MATTHEW SIBLEY TRADING AS BTTC SERVICES ,576565,,BUSINESS INFORMATION SERVICES 
GP HEALTH CHECKS              ,9120,OTHER AGENCIES                ,03/07/2014,3670061,C88050_0002              ,550.00,JAUNTY SPRINGS HEALTH CENTRE            ,582709,,PUBLIC HEALTH SUPPLIERS       
STANIFORTH ROAD WORKSHOPS     ,7010,ROUTINE VEHICLE REPAIR & MTCE ,03/07/2014,3669832,19196,480.50,EASTWICK ENGINEERING SERVICES           ,204579,,GARAGE EQUIPMENT              
STANIFORTH ROAD WORKSHOPS     ,8070,STOCKS AND STORES             ,03/07/2014,3669856,S3109S087                ,554.00,GME SPRINGS T/A GME MOTOR               ,440984,,SPRING MNFRS & DISTRIBUTORS   
STANIFORTH ROAD WORKSHOPS     ,7010,ROUTINE VEHICLE REPAIR & MTCE ,03/07/2014,3669911,14473225,"1,274.36",LOOKERS FORD                            ,474939,,CAR DEALERS                   
STANIFORTH ROAD WORKSHOPS     ,7010,ROUTINE VEHICLE REPAIR & MTCE ,03/07/2014,3669916,23083242,272.93,SHERWOOD COMMERCIAL VEHICLES            ,208415,,COMMERCIAL VEHICLE DEALERS    
PURCHASING LEARNING DISABILITI,9190,DIRECT PAYMENTS               ,03/07/2014,3669818,J930913                  ,"2,311.80",REDACTED PERSONAL DATA,556454,Social Community Care,CAREFIRST DIRECT PAYMENTS     
EAST SA - LAC                 ,9270,CARELEAVERS INDEPENDENT LIVING,03/07/2014,3669806,69/91/105                ,721.60,ROUNDABOUT LTD                          ,316572,,HOSTELS                       
CONTACT CONTRACTS             ,9280,CONTACT                       ,03/07/2014,3669811,1169,283.33,SHEFFIELD CHILDREN'S CENTRE             ,311908,,NURSERIES & CRECHES           
ADULT SOCIAL CARE PURCHASING  ,9200,CONTINUING RESIDENTIAL CARE   ,03/07/2014,3669801,J930909 200714           ,"23,079.29",HALLAMSHIRE REST HOME                   ,362093,,REST & RETIREMENT HOMES       
PURCHASING LEARNING DISABILITI,9210,CONTINUING NURSING CARE       ,03/07/2014,3669802,J930910 200714           ,579.42,WILLOWBECK CARE CENTRE                  ,362132,,NURSING HOMES                 
ADULT SOCIAL CARE PURCHASING  ,9200,SHORT TERM RESIDENTIAL CARE   ,03/07/2014,3669803,J930686 220614           ,353.00,BEECHY KNOLL                            ,362144,,RESIDENTIAL CARE HOMES        
CLAIMS                        ,8740,HIGHWAYS                      ,04/07/2014,3670675,ERS INVOICE103021        ,"12,700.00",REDACTED PERSONAL DATA,597663,Unclassified Non Trade,OUT OF SCOPE FOR SIC MONITORIN
CLAIMS                        ,8740,OTHER LIABILITY               ,04/07/2014,3670676,ERS INVOICE103022        ,300.00,REDACTED PERSONAL DATA,597692,Unclassified Non Trade,OUT OF SCOPE FOR SIC MONITORIN
SOUTH WEST                    ,8180,GRANTS                        ,04/07/2014,3670679,ERS INVOICE103025        ,"1,000.00",HALLAM COMMUNITY AND YOUTH ASSOCIATION  ,531101,,COMMUNITY PROJECTS            
SOUTH WEST                    ,8180,GRANTS                        ,04/07/2014,3670680,ERS INVOICE103026        ,418.35,WESTMINSTER TARA                        ,402837,,COMMUNITY PROJECTS            
LDD SPECIALIST PLACEMENTS     ,9120,OTHER AGENCIES                ,04/07/2014,3670779,ERS INVOICE103051        ,392.00,REDACTED PERSONAL DATA,588262,,EDUCATIONAL SERVICES          
LDD SPECIALIST PLACEMENTS     ,9120,OTHER AGENCIES                ,04/07/2014,3670780,ERS INVOICE103052        ,482.00,REDACTED PERSONAL DATA,588263,,EDUCATIONAL SERVICES          
HRS BUSINESS SUPPORT TEAM     ,8350,MISCELLANEOUS EXPENSES        ,04/07/2014,3658427,696580,379.06,PICKFORDS                               ,573763,,REMOVALS - OVERSEAS           
NEW PMY - WATERMEAD           ,1165,NC&A OTHER                    ,04/07/2014,3664762,SINV8183                 ,"3,375.24",OASIS COMMUNITY LEARNING                ,587977,,COMMUNITY CENTRES             
ECCLESALL WOODS SAWMILL SITE  ,8260,WOODLAND DEVELOPMENT EXPENSES ,04/07/2014,3665027,10/5538/21AF/40801       ,"5,880.00",SHEFFIELD WILDLIFE TRUST                ,270716,,CHARITIES & VOLUNTARY ORGANISA
CITY CENTRE BID               ,8440,FEE EXPENSES                  ,04/07/2014,3666819,140511,"2,000.00",FALCONER ASSOCIATES LIMITED             ,597438,,PUBLIC RELATIONS CONSULTANTS  
HEALTH TRAINERS               ,9030,HEALTH                        ,04/07/2014,3668247,198,"2,759.00",MANOR & CASTLE - HEALTHY LIVING/PHS     ,376896,,DEVELOPMENT AGENCIES          
HEALTH TRAINERS               ,9030,HEALTH                        ,04/07/2014,3668248,201,"2,759.00",MANOR & CASTLE - HEALTHY LIVING/PHS     ,376896,,DEVELOPMENT AGENCIES          
ECCLESALL WOODS SAWMILL SITE  ,8260,WOODLAND DEVELOPMENT EXPENSES ,04/07/2014,3668517,41815,"6,030.00",HECTOR & CEDRIC LTD                     ,452209,,TIMBER FRAMED BUILDINGS       
COMMUNITY SUPPORT SERVICE     ,6280,HIRE OF PREMISES              ,04/07/2014,3668819,11689,294.00,HILLSBOROUGH ARENA SPORTS ASSOCIATION   ,310650,,SPORTS CLUBS & ASSOCIATIONS   
LTP CYCLE PARKING             ,1165,NC&A OTHER                    ,04/07/2014,3668838,1366,"2,000.00",SMITH YOUNG PARTNERSHIP                 ,555298,,FACILITIES MANAGEMENT         
AUDIT FEES                    ,8440,FEE EXPENSES                  ,04/07/2014,3669440,3099380,290.00,CIPFA BUSINESS LIMITED                  ,301545,,INSTITUTES - PROFESSIONAL     
SUPPORTED HOUSING             ,8050,FLOOR COVERINGS               ,04/07/2014,3669482,15269,"31,820.00",PYRAMID CARPETS                         ,243612,,CARPETS & RUGS - RETAIL       
HME                           ,6030,REPAIRS TO TENANTED PROPERTIES,04/07/2014,3669487,SSH/RESPONSIVE/261/13/14 ,"4,068.22",TELSTAR SECURITY                        ,299814,,SECURITY EQUIPMENT            
GROUNDS MAINTENANCE           ,8110,"CLOTHING, UNIFORM AND LAUNDRY ",04/07/2014,3669508,922280751,344.72,ARCO LTD                                ,203022,,SAFETY EQUIPMENT & CLOTHING   
PARTNERSHIP INV AGREEMNT      ,9160,PARTNERSHIP CONTRACTS         ,04/07/2014,3669611,GFI001121021             ,"38,416.58",MAKING SPACE                            ,574625,,MENTAL HEALTH CENTRES         
CLAIMS                        ,8740,PUBLIC LIABILITY              ,04/07/2014,3669876,01/4878406               ,402.50,CLARITY TRAVEL MANAGEMENT               ,202987,,TRAVEL AGENTS & HOLIDAY COMPAN
CLAIMS                        ,8740,PUBLIC LIABILITY              ,04/07/2014,3669878,01/4878413               ,402.50,CLARITY TRAVEL MANAGEMENT               ,202987,,TRAVEL AGENTS & HOLIDAY COMPAN
CLAIMS                        ,8740,PUBLIC LIABILITY              ,04/07/2014,3669879,01/4891249               ,984.17,CLARITY TRAVEL MANAGEMENT               ,202987,,TRAVEL AGENTS & HOLIDAY COMPAN
GP HEALTH CHECKS              ,9120,OTHER AGENCIES                ,04/07/2014,3669884,C88057_0002              ,320.00,CROOKES VALLEY MEDICAL CENTRE           ,392495,,DOCTORS                       
INDEPENDENT PLACEMENTS        ,9310,PARENTAL OR TRIBUNAL PLACEMENT,04/07/2014,3669896,SIN000228                ,"4,750.00",BRANTWOOD SPECIALIST SCHOOL             ,559883,,CHARITIES & VOLUNTARY ORGANISA
INDEPENDENT PLACEMENTS        ,9310,EDUCATIONAL OR JOINT PLACEMENT,04/07/2014,3669901,SIN000227                ,"4,750.00",BRANTWOOD SPECIALIST SCHOOL             ,559883,,CHARITIES & VOLUNTARY ORGANISA
INDEPENDENT PLACEMENTS        ,9310,EDUCATIONAL OR JOINT PLACEMENT,04/07/2014,3669902,SIN000226                ,"1,013.33",BRANTWOOD SPECIALIST SCHOOL             ,559883,,CHARITIES & VOLUNTARY ORGANISA
INDEPENDENT PLACEMENTS        ,9310,PARENTAL OR TRIBUNAL PLACEMENT,04/07/2014,3669904,SIN000225                ,"4,750.00",BRANTWOOD SPECIALIST SCHOOL             ,559883,,CHARITIES & VOLUNTARY ORGANISA
INDEPENDENT PLACEMENTS        ,9310,PARENTAL OR TRIBUNAL PLACEMENT,04/07/2014,3669907,SIN000224                ,"4,750.00",BRANTWOOD SPECIALIST SCHOOL             ,559883,,CHARITIES & VOLUNTARY ORGANISA
INDEPENDENT PLACEMENTS        ,9310,EDUCATIONAL OR JOINT PLACEMENT,04/07/2014,3669909,SIN000223                ,"4,180.00",BRANTWOOD SPECIALIST SCHOOL             ,559883,,CHARITIES & VOLUNTARY ORGANISA
HIST                          ,8620,COMPUTER MAINTENANCE          ,04/07/2014,3669921,6113,"6,000.00",NOVARE CONSULTING LTD                   ,454188,,BUSINESS & MANAGEMENT CONSULTA
EXECUTIVE MANAGEMENT          ,5750,TRAINING EXPENDITURE          ,04/07/2014,3669924,1413,"4,500.00",BRILLIANT MINDS TRAINING AND DEVELOPMENT,524479,,TRAINING SERVICES             
CORPORATE ROOM BOOKINGS       ,8440,FEE EXPENSES                  ,04/07/2014,3669942,27791,295.65,THE SOURCE AT MEADOWHALL                ,350485,,TRAINING CENTRES              
HRS BUSINESS SUPPORT TEAM     ,5750,TRAINING EXPENDITURE          ,04/07/2014,3669944,13620,507.00,VOICEPOWER LTD                          ,331273,,DISABILITY EQUIPMENT - MNFRS &
PARKS OPS EAST & NORTH EAST   ,8060,MATERIALS AND SUPPLIES GENERAL,04/07/2014,3669954,O390                     ,498.00,AAA 1ST CALL                            ,361147,,SKIP HIRE                     
REPAIRS ADJUSTMENTS           ,8440,FEE EXPENSES                  ,04/07/2014,3669969,R3565                    ,"1,000.00",E4 (ENVIRONMENTAL) LTD                  ,462119,,ASBESTOS SURVEYS & REMOVALS   
REPAIRS ADJUSTMENTS           ,8440,FEE EXPENSES                  ,04/07/2014,3669970,R3561                    ,"1,100.00",E4 (ENVIRONMENTAL) LTD                  ,462119,,ASBESTOS SURVEYS & REMOVALS   
REPAIRS ADJUSTMENTS           ,8440,FEE EXPENSES                  ,04/07/2014,3669972,R3562                    ,875.00,E4 (ENVIRONMENTAL) LTD                  ,462119,,ASBESTOS SURVEYS & REMOVALS   
REPAIRS ADJUSTMENTS           ,8440,FEE EXPENSES                  ,04/07/2014,3669973,R3563                    ,980.00,E4 (ENVIRONMENTAL) LTD                  ,462119,,ASBESTOS SURVEYS & REMOVALS   
REPAIRS ADJUSTMENTS           ,8440,FEE EXPENSES                  ,04/07/2014,3669974,R3560                    ,880.00,E4 (ENVIRONMENTAL) LTD                  ,462119,,ASBESTOS SURVEYS & REMOVALS   
REPAIRS ADJUSTMENTS           ,8440,FEE EXPENSES                  ,04/07/2014,3669975,R3564                    ,375.00,E4 (ENVIRONMENTAL) LTD                  ,462119,,ASBESTOS SURVEYS & REMOVALS   
SGMT (MUSEUMS SHEFFIELD)      ,8180,GRANTS                        ,04/07/2014,3670005,SIN002482                ,"423,500.00",MUSEUMS SHEFFIELD                       ,380579,,MUSEUMS                       
SIMT                          ,8180,GRANTS                        ,04/07/2014,3670006,3384,"134,175.00",SHEFFIELD INDUSTRIAL MUSEUMS TRUST LTD  ,307272,,MUSEUMS                       
100 APPRENTICES               ,9120,OTHER AGENCIES                ,04/07/2014,3670012,4,412.72,JAM OAKBROOK LTD                        ,591681,,TOILETRIES                    
CITY DEAL                     ,9120,OTHER AGENCIES                ,04/07/2014,3670025,T152                     ,"4,941.00",THE EMPLOYERS FORUM                     ,353566,,CHARITIES & VOLUNTARY ORGANISA
POST 16 HIGH NEEDS BLOCK      ,9120,OTHER AGENCIES                ,04/07/2014,3670028,107830,"7,989.13",QUEEN ALEXANDRA COLLEGE                 ,331389,,SCHOOLS & COLLEGES - FURTHER E
POST 16 HIGH NEEDS BLOCK      ,9120,OTHER AGENCIES                ,04/07/2014,3670034,107829,"7,989.13",QUEEN ALEXANDRA COLLEGE                 ,331389,,SCHOOLS & COLLEGES - FURTHER E
GATEWAY 4 (A-E)               ,5610,AGENCY STAFF                  ,04/07/2014,3670036,50776966,642.16,PROTOCOL EDUCATION LTD                  ,566067,,EMPLOYMENT & RECRUITMENT AGENC
GATEWAY 4 (A-E)               ,5610,AGENCY STAFF                  ,04/07/2014,3670038,50784352,999.92,PROTOCOL EDUCATION LTD                  ,566067,,EMPLOYMENT & RECRUITMENT AGENC
POST 16 HIGH NEEDS BLOCK      ,9120,OTHER AGENCIES                ,04/07/2014,3670044,SINA/00005657            ,"4,222.00",MACINTYRE CARE                          ,416837,,CHARITIES & VOLUNTARY ORGANISA
POST 16 HIGH NEEDS BLOCK      ,9120,OTHER AGENCIES                ,04/07/2014,3670045,SINA/00005656            ,"4,222.00",MACINTYRE CARE                          ,416837,,CHARITIES & VOLUNTARY ORGANISA
CARE PROCEEDINGS (LEGAL FEES) ,8470,LEGAL FEES                    ,04/07/2014,3670253,901138,600.00,REDACTED PERSONAL DATA,465151,,BARRISTERS                    
DELEGATED BUDGETS             ,8470,LEGAL FEES                    ,04/07/2014,3670422,147107,500.00,REDACTED PERSONAL DATA,563145,Unclassified Non Trade,OUT OF SCOPE FOR SIC MONITORIN
CARE PROCEEDINGS (LEGAL FEES) ,8470,LEGAL FEES                    ,04/07/2014,3670423,144848,750.00,CHARLOTTE H WORSLEY                     ,597498,,BARRISTERS                    
PROVIDER CONTRACT AUG13-JUL14 ,9120,OTHER AGENCIES                ,04/07/2014,3670509,27031409,253.50,LEARN FOR LIFE ENTERPRISE LIMITED       ,446117,,CHARITIES & VOLUNTARY ORGANISA
GRAVES PARK - ANIMAL FARM INC ,8060,MATERIALS AND SUPPLIES GENERAL,04/07/2014,3670588,298718,482.30,ARGO FEEDS LTD                          ,203028,,PET FOODS & ANIMAL FEEDS      
PARKS OPS EAST & NORTH EAST   ,7010,ROUTINE VEHICLE REPAIR & MTCE ,04/07/2014,3670627,139745,675.49,BOB WILD GRASS MACHINERY LTD            ,203417,,LAWNMOWERS & GARDEN MACHINERY 
EARLY YEARS SEN TEAM          ,8440,FEE EXPENSES                  ,04/07/2014,3670650,41816,"2,847.00",THE CHILDREN'S HOUSE MONTESSORI NURSERY ,311926,,NURSERIES & CRECHES           
COMMUNICATIONS                ,8550,OTHER SERVICES                ,04/07/2014,3670652,855-36711                ,559.07,GALT SIGNS LTD T/A FASTSIGNS            ,204826,,SIGNS & NAMEPLATES            
BIS TELECOMMS                 ,8600,MOBILE TELEPHONES - INVOICE   ,04/07/2014,3670277,123279401,390.00,ORANGE PCS LTD                          ,409889,,MOBILE PHONES                 
LOCAL ELECTIONS               ,8570,POSTAGE & DELIVERY            ,04/07/2014,3670421,9047608907,"2,012.58",ROYAL MAIL GROUP LTD                    ,295326,,DELIVERY SERVICES             
STANIFORTH ROAD WORKSHOPS     ,7010,ROUTINE VEHICLE REPAIR & MTCE ,04/07/2014,3670491,36078115,503.50,SCANIA GB LIMITED                       ,570209,,COMMERCIAL VEHICLE DEALERS    
STANIFORTH ROAD WORKSHOPS     ,8070,STOCKS AND STORES             ,04/07/2014,3670520,581515,"1,843.75",PLATTS HARRIS AGRIC. GROUP LTD.         ,207575,,MACHINERY - INDUSTRIAL & COMME
PURCHASING LEARNING DISABILITI,9180,OTHER CLIENT EXPENDITURE      ,04/07/2014,3670159,J930128 060714           ,419.26,REDACTED PERSONAL DATA,332448,,HOME CARE SERVICES            
PURCHASING LEARNING DISABILITI,9180,OTHER CLIENT EXPENDITURE      ,04/07/2014,3670164,J930133 060714           ,433.12,REDACTED PERSONAL DATA,328070,,HOME CARE SERVICES            
PURCHASING LEARNING DISABILITI,9180,OTHER CLIENT EXPENDITURE      ,04/07/2014,3670166,J930135 060714           ,621.96,REDACTED PERSONAL DATA,408112,,HOME CARE SERVICES            
PURCHASING LEARNING DISABILITI,9180,OTHER CLIENT EXPENDITURE      ,04/07/2014,3670171,J930140 060714           ,433.12,REDACTED PERSONAL DATA,369406,,HOME CARE SERVICES            
ADULT SOCIAL CARE PURCHASING  ,9190,DIRECT PAYMENTS               ,04/07/2014,3670207,J931391                  ,504.32,REDACTED PERSONAL DATA,465133,Social Community Care,CAREFIRST DIRECT PAYMENTS     
PURCHASING LEARNING DISABILITI,9190,DIRECT PAYMENTS               ,04/07/2014,3670208,J931391                  ,"1,295.18",REDACTED PERSONAL DATA,541730,Unclassified Non Trade,OUT OF SCOPE FOR SIC MONITORIN
PURCHASING LEARNING DISABILITI,9190,DIRECT PAYMENTS               ,04/07/2014,3670210,J931391                  ,"1,218.56",REDACTED PERSONAL DATA,556454,Social Community Care,CAREFIRST DIRECT PAYMENTS     
ADULT SOCIAL CARE PURCHASING  ,9190,DIRECT PAYMENTS               ,04/07/2014,3670210,J931391                  ,603.57,REDACTED PERSONAL DATA,556454,Social Community Care,CAREFIRST DIRECT PAYMENTS     
ADULT SOCIAL CARE PURCHASING  ,9190,DIRECT PAYMENTS               ,04/07/2014,3670211,J931391                  ,"1,257.03",REDACTED PERSONAL DATA,562178,Social Community Care,CAREFIRST DIRECT PAYMENTS     
ADULT SOCIAL CARE PURCHASING  ,9190,DIRECT PAYMENTS               ,04/07/2014,3670214,J931391                  ,274.00,REDACTED PERSONAL DATA,586073,Social Community Care,CAREFIRST DIRECT PAYMENTS     
PURCHASING LEARNING DISABILITI,9190,DIRECT PAYMENTS               ,04/07/2014,3670216,J931391                  ,477.75,REDACTED PERSONAL DATA,597641,Social Community Care,CAREFIRST DIRECT PAYMENTS     
ADULT SOCIAL CARE PURCHASING  ,9190,DIRECT PAYMENTS               ,04/07/2014,3670217,J931391                  ,390.00,REDACTED PERSONAL DATA,597651,Social Community Care,CAREFIRST DIRECT PAYMENTS     
PURCHASING LEARNING DISABILITI,9190,SUPPORT PLANNING COSTS        ,04/07/2014,3670220,J931392                  ,350.00,PRINCIPLE SUPPORT                       ,574590,Social Community Care,CAREFIRST DIRECT PAYMENTS     
INDEPENDENT RES BLOCK PLACEMEN,9270,INDEPENDENT RESIDENTIAL PMENT ,04/07/2014,3670187,4484,"6,848.57",TWENTY FOUR SEVEN                       ,364408,,CHARITIES & VOLUNTARY ORGANISA
INDEPENDENT RES BLOCK PLACEMEN,9270,INDEPENDENT RESIDENTIAL PMENT ,04/07/2014,3670188,6944,"4,180.00",PROGRESSIVE CARE LTD                    ,343548,,CHILDREN'S HOMES              
ADULT SOCIAL CARE PURCHASING  ,9200,CONTINUING RESIDENTIAL CARE   ,04/07/2014,3670180,J931385 200714           ,"4,852.85",LEAHYRST RESIDENTIAL CARE HOME          ,361842,,RESIDENTIAL CARE HOMES        
ADULT SOCIAL CARE PURCHASING  ,9200,CONTINUING RESIDENTIAL CARE   ,04/07/2014,3670181,J931386 200714           ,"2,821.43",HADDON COURT NURSING HOME               ,361916,,NURSING HOMES                 
ADULT SOCIAL CARE PURCHASING  ,9210,CONTINUING NURSING CARE       ,04/07/2014,3670183,J931389 200714           ,"6,602.43",HOLMWOOD CARE HOME                      ,331238,,NURSING HOMES                 
ADULT SOCIAL CARE PURCHASING  ,9210,CONTINUING NURSING CARE       ,04/07/2014,3670184,J931390 200714           ,"1,531.29",ROSEBERRY CARE CENTRES GB LTD           ,361953,,NURSING HOMES                 
ADULT SOCIAL CARE PURCHASING  ,9200,SHORT TERM RESIDENTIAL CARE   ,04/07/2014,3670185,J931351 220614           ,"4,143.28",LOWER BOWSHAW VIEW NH                   ,362101,,NURSING HOMES                 
ADULT SOCIAL CARE PURCHASING  ,4260,RESIDENTIAL COSTS RECOVERED   ,04/07/2014,3670186,J931352 220614           ,772.50,HARTWELL HOUSE                          ,361785,,NURSING HOMES                 
CARELEAVER SUPPORT            ,9440,CARELEAVERS                   ,04/07/2014,3670225,226744767,257.44,REED MANAGED SERVICE PLC                ,509057,,PROPERTY & ESTATE MANAGEMENT  
CARELEAVER SUPPORT            ,9440,CARELEAVERS                   ,04/07/2014,3670232,226744769,257.44,REED MANAGED SERVICE PLC                ,509057,,PROPERTY & ESTATE MANAGEMENT  
CARELEAVER SUPPORT            ,9440,CARELEAVERS                   ,04/07/2014,3670235,226762625,257.44,REED MANAGED SERVICE PLC                ,509057,,PROPERTY & ESTATE MANAGEMENT  
CARELEAVER SUPPORT            ,9440,CARELEAVERS                   ,04/07/2014,3670236,226762627,418.34,REED MANAGED SERVICE PLC                ,509057,,PROPERTY & ESTATE MANAGEMENT  
CARE PROCEEDINGS (LEGAL FEES) ,8470,LEGAL FEES                    ,07/07/2014,3671356,ERS INVOICE103056        ,"1,742.50", DR. IJAZ AHMAD                         ,597657,,DOCTORS                       
GRAVES PARK - ANIMAL FARM INC ,8060,MATERIALS AND SUPPLIES GENERAL,07/07/2014,3671358,ERS INVOICE103058        ,600.00,MR J E DYSON                            ,596573,,FARMING - LIVESTOCK & OTHER AN
MADE IN SHEFFIELD             ,8440,FEE EXPENSES                  ,07/07/2014,3671359,ERS INVOICE103059        ,"3,240.00",REDACTED PERSONAL DATA,464860,,ENGINEERS - CONSULTING        
CARE PROCEEDINGS (LEGAL FEES) ,8470,LEGAL FEES                    ,07/07/2014,3671361,ERS INVOICE103061        ,696.00,ANN M MORTIMER                          ,570296,,DOCTORS                       
CLAIMS                        ,8740,PUBLIC LIABILITY              ,07/07/2014,3671362,ERS INVOICE103062        ,"10,945.19", WEIGHTMANS LLP                         ,597794,,SOLICITORS                    
CLAIMS                        ,8740,PUBLIC LIABILITY              ,07/07/2014,3671363,ERS INVOICE103063        ,600.00,DEPARTMENT FOR WORK & PENSIONS          ,326920,,CENTRAL GOVERNMENT            
CLAIMS                        ,8740,PUBLIC LIABILITY              ,07/07/2014,3671364,ERS INVOICE103064        ,"6,400.00",GRAYSONS SOLICITORS                     ,297241,,SOLICITORS                    
CITY DEAL - FRAMEWORKS        ,9120,OTHER AGENCIES                ,07/07/2014,3671470,ERS INVOICE103070        ,"1,748.88",BOBBY BEVERIDGE TRAINING LTD            ,509787,,TRAINING SERVICES             
CLAIMS                        ,8740,EMPLOYERS LIABILITY           ,07/07/2014,3671471,ERS INVOICE103071        ,"1,882.41",MR ROBERT CLARK                         ,597802,,SOLICITORS                    
ARBOURTHORNE 5M'S REFURB      ,1143,COMPENSATION                  ,07/07/2014,3671472,ERS INVOICE103072        ,"4,700.00",REDACTED PERSONAL DATA,597779,Unclassified Non Trade,OUT OF SCOPE FOR SIC MONITORIN
ARBOURTHORNE 5M'S REFURB      ,1143,COMPENSATION                  ,07/07/2014,3671473,ERS INVOICE103073        ,"4,700.00",REDACTED PERSONAL DATA,597780,Unclassified Non Trade,OUT OF SCOPE FOR SIC MONITORIN
ARBOURTHORNE 5M'S REFURB      ,1143,COMPENSATION                  ,07/07/2014,3671474,ERS INVOICE103074        ,"4,671.50",REDACTED PERSONAL DATA,597778,Unclassified Non Trade,OUT OF SCOPE FOR SIC MONITORIN
CLAIMS                        ,8740,PUBLIC LIABILITY              ,07/07/2014,3671475,ERS INVOICE103075        ,480.00,DEPARTMENT FOR WORK & PENSIONS          ,326920,,CENTRAL GOVERNMENT            
VSP DELIVER                   ,9120,OTHER AGENCIES                ,07/07/2014,3671477,ERS INVOICE103077        ,"1,143.00",WHIRLOW HALL FARM TRUST LTD             ,318019,,CHARITIES & VOLUNTARY ORGANISA
VSP DELIVER                   ,9120,OTHER AGENCIES                ,07/07/2014,3671478,ERS INVOICE103078        ,"7,239.00",DIMENSIONS TRAINING SOLUTIONS           ,433070,,HAIRDRESSING SCHOOLS          
VSP DELIVER                   ,9120,OTHER AGENCIES                ,07/07/2014,3671479,ERS INVOICE103081        ,"6,731.00",DONCASTER ROTH & DIST (MOTOR TRADES)GTA ,204434,,TRAINING CENTRES              
VSP DELIVER                   ,9120,OTHER AGENCIES                ,07/07/2014,3671480,ERS INVOICE103083        ,"3,323.52",THE SHEFFIELD COLLEGE                   ,297611,,SCHOOLS & COLLEGES - FURTHER E
VSP DELIVER                   ,9120,OTHER AGENCIES                ,07/07/2014,3671481,ERS INVOICE103085        ,"5,220.00",WHITE ROSE SCHOOLS LTD                  ,334662,,BEAUTY SCHOOLS                
VSP DELIVER                   ,9120,OTHER AGENCIES                ,07/07/2014,3671482,ERS INVOICE103086        ,"1,062.50",THE SOURCE AT MEADOWHALL                ,350485,,TRAINING CENTRES              
VSP DELIVER                   ,9120,OTHER AGENCIES                ,07/07/2014,3671483,ERS INVOICE103087        ,"2,032.00",WHIRLOW HALL FARM TRUST LTD             ,318019,,CHARITIES & VOLUNTARY ORGANISA
VSP DELIVER                   ,9140,PRIVATE CONTRACTORS           ,07/07/2014,3671484,ERS INVOICE103090        ,"1,468.75",A MIND APART THEATRE COMPANY LTD        ,508180,,DRAMA SCHOOLS                 
VSP DELIVER                   ,9140,PRIVATE CONTRACTORS           ,07/07/2014,3671485,ERS INVOICE103092        ,750.00,REDACTED PERSONAL DATA,568628,Social Community Care,CAREFIRST DIRECT PAYMENTS     
VSP DELIVER                   ,9140,PRIVATE CONTRACTORS           ,07/07/2014,3671486,ERS INVOICE103093        ,"2,159.00",SHEFFIELD INDUSTRIAL MUSEUMS TRUST LTD  ,307272,,MUSEUMS                       
VSP DELIVER                   ,9140,PRIVATE CONTRACTORS           ,07/07/2014,3671487,ERS INVOICE103095        ,"2,476.50",DONCASTER ROTH & DIST (MOTOR TRADES)GTA ,204434,,TRAINING CENTRES              
VSP DELIVER                   ,9140,PRIVATE CONTRACTORS           ,07/07/2014,3671488,ERS INVOICE103096        ,"1,905.00",HEELEY CITY FARM                        ,301277,,CHARITIES & VOLUNTARY ORGANISA
VSP DELIVER                   ,9140,PRIVATE CONTRACTORS           ,07/07/2014,3671489,ERS INVOICE103097        ,"5,312.50",THE SHEFFIELD COLLEGE                   ,297611,,SCHOOLS & COLLEGES - FURTHER E
VSP DELIVER                   ,9140,PRIVATE CONTRACTORS           ,07/07/2014,3671490,ERS INVOICE103100        ,"6,223.00",IN2CHANGE SOUTH YORKS LTD               ,558793,,CHARITIES & VOLUNTARY ORGANISA
VSP DELIVER                   ,9140,PRIVATE CONTRACTORS           ,07/07/2014,3671492,ERS INVOICE103102        ,"1,875.00",THE SHEFFIELD COLLEGE                   ,297611,,SCHOOLS & COLLEGES - FURTHER E
VSP DELIVER                   ,9140,PRIVATE CONTRACTORS           ,07/07/2014,3671493,ERS INVOICE103104        ,"1,873.25",HEELEY DEVELOPMENT TRUST                ,363241,,CHARITIES & VOLUNTARY ORGANISA
VSP DELIVER                   ,9140,PRIVATE CONTRACTORS           ,07/07/2014,3671494,ERS INVOICE103106        ,750.00,THE SHEFFIELD COLLEGE                   ,297611,,SCHOOLS & COLLEGES - FURTHER E
VSP DELIVER                   ,9140,PRIVATE CONTRACTORS           ,07/07/2014,3671495,ERS INVOICE103108        ,"2,812.50",THE SHARKS                              ,540033,,SPORTS CLUBS & ASSOCIATIONS   
VSP DELIVER                   ,9140,PRIVATE CONTRACTORS           ,07/07/2014,3671496,ERS INVOICE103109        ,"3,750.00",HEELEY DEVELOPMENT TRUST                ,363241,,CHARITIES & VOLUNTARY ORGANISA
VSP DELIVER                   ,9140,PRIVATE CONTRACTORS           ,07/07/2014,3671497,ERS INVOICE103111        ,"4,156.25",SHEFFIELD WEDNESDAY ACADEMY             ,461589,,SPORTS CLUBS & ASSOCIATIONS   
VSP DELIVER                   ,9140,PRIVATE CONTRACTORS           ,07/07/2014,3671498,ERS INVOICE103113        ,"7,937.50",SOUTH YORKSHIRE & HALLAMSHIRE CYP       ,431967,,YOUTH ORGANISATIONS & CENTRES 
VSP DELIVER                   ,9140,PRIVATE CONTRACTORS           ,07/07/2014,3671499,ERS INVOICE103115        ,"7,093.75",SYTG LTD                                ,306547,,TRAINING CENTRES              
VSP DELIVER                   ,9140,PRIVATE CONTRACTORS           ,07/07/2014,3671500,ERS INVOICE103118        ,"3,016.25",WHIRLOW HALL FARM TRUST LTD             ,318019,,CHARITIES & VOLUNTARY ORGANISA
VSP DELIVER                   ,9140,PRIVATE CONTRACTORS           ,07/07/2014,3671501,ERS INVOICE103122        ,"10,031.25",Y A S Y                                 ,306981,,YOUTH ORGANISATIONS & CENTRES 
HIGHWAY MAINTENANCE GENERAL   ,8460,CONSULTANTS FEES              ,07/07/2014,3639318,90783654,739.53,LINCOLNSHIRE COUNTY COUNCIL             ,325205,,LOCAL GOVERNMENT              
STANIFORTH ROAD DEPOT         ,8540,SECURITY SERVICES             ,07/07/2014,3658181,INV066616                ,"5,307.70",CONSTANT SECURITY SERVICES LIMITED      ,501937,,SECURITY SERVICES             
STANIFORTH ROAD DEPOT         ,8540,SECURITY SERVICES             ,07/07/2014,3658182,INV066978                ,"5,552.37",CONSTANT SECURITY SERVICES LIMITED      ,501937,,SECURITY SERVICES             
100 APPRENTICES               ,9120,OTHER AGENCIES                ,07/07/2014,3660389,AP1                      ,712.88,BAYTAN                                  ,596644,,SOLARIUMS & TANNING SALONS    
NORTH - NEW PARSON CROSS      ,1194,OTHER FEES                    ,07/07/2014,3660409,13110111,"13,978.50",KIER LIMITED                            ,516733,,FACILITIES MANAGEMENT         
TOUR DE FRANCE                ,8440,FEE EXPENSES                  ,07/07/2014,3660821,6112665595,"59,167.00",LEEDS CITY COUNCIL                      ,316373,,LOCAL GOVERNMENT              
PERFORMANCE PLANNING          ,8270,SUBSCRIPTIONS                 ,07/07/2014,3662853,LA0229-1                 ,"45,180.45",THE HOUSING OMBUDSMAN                   ,597033,,TRADE ASSOC & REGULATORY BODIE
EDUCATIONAL PSYCHOLOGY        ,8040,LEARNING RESOURCES            ,07/07/2014,3664144,77849977HDI              ,348.92,PEARSON EDUCATION LTD                   ,564747,,BOOKSELLERS                   
PPC BUSINESS SUPPORT          ,7140,PUBLIC TRANSPORT COSTS        ,07/07/2014,3664970,01/4883825               ,346.00,CLARITY TRAVEL MANAGEMENT               ,202987,,TRAVEL AGENTS & HOLIDAY COMPAN
SECURITY SERVICES             ,6030,REPAIRS AND MTCE - RESPONSIVE ,07/07/2014,3665629,INV061094                ,360.00,CONSTANT SECURITY SERVICES LIMITED      ,501937,,SECURITY SERVICES             
SOUTHERN VALLEYS              ,8440,FEE EXPENSES                  ,07/07/2014,3666278,1563,"5,200.00",SHEFFIELD COUNTRYSIDE CONSERVATION TRUST,308423,,CHARITIES & VOLUNTARY ORGANISA
MOORFOOT                      ,1183,PURCHASE OF EQUIPMENT         ,07/07/2014,3666294,3114,"13,320.00",J P GLASBY LTD                          ,576568,,ELECTRICIANS & ELECTRICAL CONT
OBSOLETE HEATING              ,1157,DWELLINGS MAIN CONTRACT       ,07/07/2014,3666295,13120009,"57,960.00",KIER SHEFFIELD LLP                      ,352687,,PROPERTY MAINTENANCE & REPAIRS
SOUTHERN VALLEYS              ,8060,MATERIALS AND SUPPLIES GENERAL,07/07/2014,3666435,ASF/5528/SCC07           ,790.00,AVANTI STEEL FABRICATIONS               ,203151,,STEEL FABRICATORS & ERECTORS  
RECRUITMENT ADVERTISING       ,5720,RECRUITMENT ADVERTISING       ,07/07/2014,3666958,TARDEB/00004312          ,436.62,TIMES EDUCATIONAL SUPPLEMENT            ,297123,,NEWSPAPER & MAGAZINE PUBLISHER
AREA NORTH                    ,8560,GOING LOCAL                   ,07/07/2014,3667423,65296,350.00,R FLETCHER WASTE DISPOSAL LTD           ,473104,,WASTE DISPOSAL SERVICES       
WOODLANDS                     ,6370,GROUNDS MTCE AND ARBORICULTURE,07/07/2014,3667433,1520,980.00,SHEFFIELD TREE CARE                     ,462546,,TREE WORK & FORESTRY SERVICES 
BETTER BUSES                  ,8460,CONSULTANTS FEES              ,07/07/2014,3668771,INV015590                ,"4,750.00",SYNECTICS SYSTEMS GROUP LTD             ,456522,,SECURITY EQUIPMENT            
MINIBUSES - TENDERED          ,7060,EXTERNAL VEHICLE HIRE         ,07/07/2014,3668791,288,"6,740.50",THURGOLAND TRAVEL LTD                   ,586805,,TAXIS & PRIVATE HIRE          
MINIBUSES - TENDERED          ,7060,EXTERNAL VEHICLE HIRE         ,07/07/2014,3668797,41820,"10,238.13",MINIBUS MASTER                          ,586794,,TAXIS & PRIVATE HIRE          
RECRUITMENT ADVERTISING       ,5720,RECRUIT. ADV. - INVOICE       ,07/07/2014,3668876,ADVI/51473               ,900.00,HEMMING GROUP LTD                       ,205456,,PUBLISHERS                    
SERVICE OVERHEADS             ,6280,HIRE OF PREMISES              ,07/07/2014,3669444,3032615,700.00,7 HILLS LEISURE TRUST                   ,566500,,SPORTS GROUND & STADIUM CONTRA
STATUTORY ADVERTISING         ,8420,ADVERTISING AND PUBL-INVOICED ,07/07/2014,3669470,1943068,396.16,SHEFFIELD NEWSPAPERS LTD                ,208391,,NEWSPAPER & MAGAZINE PUBLISHER
STATUTORY ADVERTISING         ,8420,ADVERTISING AND PUBL-INVOICED ,07/07/2014,3669471,1943226,650.83,SHEFFIELD NEWSPAPERS LTD                ,208391,,NEWSPAPER & MAGAZINE PUBLISHER
STATUTORY ADVERTISING         ,8420,ADVERTISING AND PUBL-INVOICED ,07/07/2014,3669472,1943227,792.31,SHEFFIELD NEWSPAPERS LTD                ,208391,,NEWSPAPER & MAGAZINE PUBLISHER
SCC BALANCE SHEET             ,1540,DEMOLITION CONTROL ACCOUNT    ,07/07/2014,3669597,OP/I014879               ,"24,877.94",VEOLIA ES SHEFFIELD LTD                 ,304685,,WASTE DISPOSAL SERVICES       
OBSOLETE HEATING              ,1157,DWELLINGS MAIN CONTRACT       ,07/07/2014,3669798,3792,"33,491.00",DENTON & NICKELS LTD                    ,596087,,CENTRAL HEATING - INSTALLATION
SERVICE OVERHEADS             ,6280,HIRE OF PREMISES              ,07/07/2014,3669870,2349,"1,170.00",UNITED HEALTH LTD C/O WOODVIEW CARE HOME,456477,,NURSING HOMES                 
SERVICE OVERHEADS             ,6280,HIRE OF PREMISES              ,07/07/2014,3669871,2356,"1,170.00",UNITED HEALTH LTD C/O WOODVIEW CARE HOME,456477,,NURSING HOMES                 
SERVICE MANAGEMENT            ,8440,FEE EXPENSES                  ,07/07/2014,3669926,SOC14019                 ,"1,734.20",SAFER OUTLOOK CONSULTING LTD            ,592148,,BUSINESS & MANAGEMENT CONSULTA
SUPPORTED HOUSING             ,9120,OTHER AGENCIES                ,07/07/2014,3669927,CO079153                 ,"5,355.04",ADVANCE SECURITY (UK) LTD               ,588895,,SECURITY SERVICES             
SECURE PLACEMENTS             ,9270,SECURE PLACEMENTS - REMAND    ,07/07/2014,3669928,SII006236                ,"3,318.00",YOUTH JUSTICE BOARD FOR                 ,346047,,CENTRAL GOVERNMENT            
SECURE PLACEMENTS             ,9270,SECURE PLACEMENTS - REMAND    ,07/07/2014,3669929,SII006239                ,316.00,YOUTH JUSTICE BOARD FOR                 ,346047,,CENTRAL GOVERNMENT            
SECURE PLACEMENTS             ,9270,SECURE PLACEMENTS - REMAND    ,07/07/2014,3669930,SII006240                ,"1,122.00",YOUTH JUSTICE BOARD FOR                 ,346047,,CENTRAL GOVERNMENT            
SECURE PLACEMENTS             ,9270,SECURE PLACEMENTS - REMAND    ,07/07/2014,3669932,SII006237                ,316.00,YOUTH JUSTICE BOARD FOR                 ,346047,,CENTRAL GOVERNMENT            
SECURE PLACEMENTS             ,9270,SECURE PLACEMENTS - REMAND    ,07/07/2014,3669940,SII006235                ,"1,580.00",YOUTH JUSTICE BOARD FOR                 ,346047,,CENTRAL GOVERNMENT            
SECURE PLACEMENTS             ,9270,SECURE PLACEMENTS - REMAND    ,07/07/2014,3669941,SII006668                ,"2,220.00",YOUTH JUSTICE BOARD FOR                 ,346047,,CENTRAL GOVERNMENT            
RESPONSIVE HM&E               ,6030,REPAIRS AND MTCE - RESPONSIVE ,07/07/2014,3669948,269,"1,476.50",NEW CHANNELS TECHNOLOGY LTD             ,207092,,SATELLITE TELEVISION - EQUIPME
REGISTRATION & REGULATION     ,8270,SUBSCRIPTIONS                 ,07/07/2014,3670020,140076,363.00,EMPTY HOMES NETWORK                     ,584596,,CONFERENCE SERVICES           
SECTOR GWTH ENHANCEMENT PROG  ,8440,FEE EXPENSES                  ,07/07/2014,3670022,L40613                   ,882.00,KATE BETTS MEDIA LIMITED                ,579214,,TRAINING SERVICES             
ACCOMMODATION                 ,8010,EQUIPMENT PURCHASE AND REPAIR ,07/07/2014,3670420,32388,283.00,STORACALL TELEACOUSTICS LIMITED         ,329199,,TELECOMMUNICATIONS EQUIPMENT &
GATEWAY PROJECT               ,6150,ELECTRICITY                   ,07/07/2014,3670590,CMD2423681               ,627.35,DOMESTIC APPLIANCE DISTRIBUTORS         ,527171,,ELECTRICAL GOODS - SALES      
EP SHELTERED                  ,1161,NC&A MAIN CONTRACT            ,07/07/2014,3670608,SH04050/3                ,"9,200.00",ADT FIRE & SECURITY PLC                 ,596399,,CCTV & VIDEO EQUIPMENT        
NEW PMY - WATERMEAD           ,1161,NC&A MAIN CONTRACT            ,07/07/2014,3670610,ED03928/12               ,"708,800.00",BAM CONSTRUCTION LIMITED                ,581766,,CONSTRUCTION CONTRACTORS - GEN
SE ACCESSIBILITY              ,1194,OTHER FEES                    ,07/07/2014,3670611,2454,700.00,JES TRAFFIC LTD                         ,574945,,TRAFFIC MANAGEMENT SYSTEMS    
CITY WIDE ALARM - GENERAL     ,6030,REPAIRS TO TENANTED PROPERTIES,07/07/2014,3670613,INV/50268160             ,414.45,TUNSTALL HEALTHCARE (UK) LIMITED        ,209178,,TELECOMMUNICATIONS EQUIPMENT &
TOUR DE FRANCE                ,8440,FEE EXPENSES                  ,07/07/2014,3670621,1373,"7,500.00",MEADOWHALL CENTRE LTD                   ,318357,,SHOPPING CENTRES              
FUTURE OF COUNCIL HOUSING     ,9630,DEVELOPMENT & APPLIC. SUPPORT ,07/07/2014,3670636,O0336983                 ,598.00,SITEXORBIS LTD                          ,524424,,SECURITY SERVICES             
ADAPTATIONS                   ,1157,DWELLINGS MAIN CONTRACT       ,07/07/2014,3670644,9085185244,"2,709.00",STANNAH LIFT SERVICES LTD.              ,208625,,STAIRLIFTS - MNFRS & INSTALLER
ADAPTATIONS                   ,1157,DWELLINGS MAIN CONTRACT       ,07/07/2014,3670645,1028481,"1,552.00",CLARK & PARTNERS LTD                    ,203928,,DISABILITY EQUIPMENT - MNFRS &
SECTOR GWTH ENHANCEMENT PROG  ,8230,HOSPITALITY                   ,07/07/2014,3670681,PAT89151                 ,431.50,SHOWROOM                                ,449463,,CONFERENCE ROOMS & CENTRES    
ADAPTATIONS                   ,1157,DWELLINGS MAIN CONTRACT       ,07/07/2014,3670687,9085185508,"2,581.00",STANNAH LIFT SERVICES LTD.              ,208625,,STAIRLIFTS - MNFRS & INSTALLER
MEMBERS DEVELOPMENT           ,8440,FEE EXPENSES                  ,07/07/2014,3670695,3099405,580.00,CIPFA                                   ,360709,,INSTITUTES - PROFESSIONAL     
STATUTORY ADVERTISING         ,8420,ADVERTISING AND PUBL-INVOICED ,07/07/2014,3670707,1950267,"2,737.29",SHEFFIELD NEWSPAPERS LTD                ,208391,,NEWSPAPER & MAGAZINE PUBLISHER
RECRUITMENT ADVERTISING       ,5720,RECRUIT. ADV. - INVOICE       ,07/07/2014,3670709,TARINV/15315395          ,634.37,TIMES EDUCATIONAL SUPPLEMENT            ,297123,,NEWSPAPER & MAGAZINE PUBLISHER
SEN TAXIS                     ,7060,EXTERNAL VEHICLE HIRE         ,07/07/2014,3670736,41823,"37,665.68",S1 TAXIS LTD                            ,527712,,TAXIS & PRIVATE HIRE          
TRANSPORT FLEET MANAGEMENT    ,7060,EXTERNAL VEHICLE HIRE         ,07/07/2014,3670737,SL02561132INV            ,"7,941.37",NORTHGATE VEHICLE HIRE LTD              ,454183,,VAN & TRUCK HIRE              
TRANSPORT FLEET MANAGEMENT    ,7060,EXTERNAL VEHICLE HIRE         ,07/07/2014,3670750,SL02561133INV            ,"1,570.80",NORTHGATE VEHICLE HIRE LTD              ,454183,,VAN & TRUCK HIRE              
EY/MAST PREMISES              ,6280,HIRE OF PREMISES              ,07/07/2014,3671090,S92                      ,"2,070.00",HANDSWORTH COMMUNITY NURSERY            ,325463,,NURSERIES & CRECHES           
TOUR DE FRANCE                ,8020,EQUIPMENT LEASE/ RENTAL/ HIRE ,07/07/2014,3671173,111516,"1,459.67",WELCOME TO YORKSHIRE                    ,516226,,TOURIST INFORMATION           
OSP2 KIER LTD CONTROL ACCOUNT ,9620,FINANCIAL PROCESSES           ,07/07/2014,3671180,150101,"530,248.00",KIER LIMITED                            ,516733,,FACILITIES MANAGEMENT         
MATERIALS FUND                ,8080,LIBRARY MATERIALS             ,07/07/2014,3671283,250614,500.00,DANDY BOOKSELLERS                       ,319172,,BOOKSELLERS                   
SEN TAXIS                     ,7060,EXTERNAL VEHICLE HIRE         ,07/07/2014,3671352,CTL5864                  ,"11,164.40",CENTRAL TRAVEL SHEFFIELD LTD            ,203820,,TAXIS & PRIVATE HIRE          
SOCIAL CARE TAXIS             ,7060,EXTERNAL VEHICLE HIRE         ,07/07/2014,3671408,CTL5869                  ,"6,237.30",CENTRAL TRAVEL SHEFFIELD LTD            ,203820,,TAXIS & PRIVATE HIRE          
LEACHATE                      ,8060,MATERIALS AND SUPPLIES GENERAL,07/07/2014,3671417,SIN010109                ,"8,600.05",ALPHEUS ENVIRONMENTAL LIMITED           ,490217,,DRAIN & SEWER CLEARANCE       
STADIA TECHNOLOGY PARK        ,6150,ELECTRICITY                   ,07/07/2014,3671096,600681920,258.47,BRITISH GAS BUSINESS                    ,466029,,GAS COMPANIES                 
STANIFORTH ROAD WORKSHOPS     ,8070,STOCKS AND STORES             ,07/07/2014,3671098,14469622,823.66,LOOKERS FORD                            ,474939,,CAR DEALERS                   
STANIFORTH ROAD WORKSHOPS     ,8070,STOCKS AND STORES             ,07/07/2014,3671100,14473892,"2,173.85",LOOKERS FORD                            ,474939,,CAR DEALERS                   
PURCHASING LEARNING DISABILITI,9180,RESPITE                       ,07/07/2014,3670825,J930893 290614           ,489.72,REDACTED PERSONAL DATA,329204,,HOME CARE SERVICES            
PURCHASING LEARNING DISABILITI,9180,RESPITE                       ,07/07/2014,3670827,J930898 290614           ,489.72,REDACTED PERSONAL DATA,328023,,ADOPTION & FOSTERING          
PURCHASING LEARNING DISABILITI,9180,RESPITE                       ,07/07/2014,3670842,J931379 290614           ,629.64,REDACTED PERSONAL DATA,543677,Social Community Care,CAREFIRST DIRECT PAYMENTS     
ADULT SOCIAL CARE PURCHASING  ,9190,DIRECT PAYMENTS               ,07/07/2014,3670996,J931604                  ,298.20,REDACTED PERSONAL DATA,517529,Social Community Care,CAREFIRST DIRECT PAYMENTS     
ADULT SOCIAL CARE PURCHASING  ,9190,DIRECT PAYMENTS               ,07/07/2014,3671003,J931604                  ,376.20,REDACTED PERSONAL DATA,542794,Unclassified Non Trade,OUT OF SCOPE FOR SIC MONITORIN
PURCHASING LEARNING DISABILITI,4260,DIRECT PAYMENTS               ,07/07/2014,3671006,J931604                  ,"1,986.15",A4E                                     ,547567,,TRAINING SERVICES             
PURCHASING LEARNING DISABILITI,9190,DIRECT PAYMENTS               ,07/07/2014,3671026,J931604                  ,"1,394.72",REDACTED PERSONAL DATA,562178,Social Community Care,CAREFIRST DIRECT PAYMENTS     
PURCHASING                    ,9190,DIRECT PAYMENTS               ,07/07/2014,3671036,J931604                  ,"1,029.64",REDACTED PERSONAL DATA,567919,Social Community Care,CAREFIRST DIRECT PAYMENTS     
PURCHASING LEARNING DISABILITI,9190,SUPPORT PLANNING COSTS        ,07/07/2014,3671088,J931605                  ,330.00,REDACTED PERSONAL DATA,577009,Social Community Care,CAREFIRST DIRECT PAYMENTS     
INDEPENDENT FOSTERING PLACEMEN,9270,INDEPENDENT FOSTERING         ,07/07/2014,3670884,117194,"3,514.84",CAPSTONE FOSTER CARE (NORTH) LTD        ,586224,,ADOPTION & FOSTERING          
LEAVING CARE                  ,9270,INDEPENDENT FOSTERING         ,07/07/2014,3670885,22333,"3,060.00",REDACTED PERSONAL DATA,352082,,ADOPTION & FOSTERING          
INDEPENDENT FOSTERING PLACEMEN,9270,INDEPENDENT FOSTERING         ,07/07/2014,3670886,22334,"3,220.00",REDACTED PERSONAL DATA,352082,,ADOPTION & FOSTERING          
LEAVING CARE                  ,9270,INDEPENDENT FOSTERING         ,07/07/2014,3670887,22335,"3,220.00",REDACTED PERSONAL DATA,352082,,ADOPTION & FOSTERING          
INDEPENDENT FOSTERING PLACEMEN,9270,INDEPENDENT FOSTERING         ,07/07/2014,3670888,22336,"3,220.00",REDACTED PERSONAL DATA,352082,,ADOPTION & FOSTERING          
LEAVING CARE                  ,9270,INDEPENDENT FOSTERING         ,07/07/2014,3670889,22338,"3,010.00",REDACTED PERSONAL DATA,352082,,ADOPTION & FOSTERING          
LEAVING CARE                  ,9270,INDEPENDENT FOSTERING         ,07/07/2014,3670890,22339,"3,220.00",REDACTED PERSONAL DATA,352082,,ADOPTION & FOSTERING          
INDEPENDENT FOSTERING PLACEMEN,9270,INDEPENDENT FOSTERING         ,07/07/2014,3670891,22340,"3,220.00",REDACTED PERSONAL DATA,352082,,ADOPTION & FOSTERING          
LEAVING CARE                  ,9270,INDEPENDENT FOSTERING         ,07/07/2014,3670892,22341,"3,220.00",REDACTED PERSONAL DATA,352082,,ADOPTION & FOSTERING          
INDEPENDENT FOSTERING PLACEMEN,9270,INDEPENDENT FOSTERING         ,07/07/2014,3670893,22342,"3,890.04",REDACTED PERSONAL DATA,352082,,ADOPTION & FOSTERING          
LEAVING CARE                  ,9270,INDEPENDENT FOSTERING         ,07/07/2014,3670894,148295,874.00,REDACTED PERSONAL DATA,349291,,ADOPTION & FOSTERING          
INDEPENDENT FOSTERING PLACEMEN,9270,INDEPENDENT FOSTERING         ,07/07/2014,3670895,22343,"3,220.00",REDACTED PERSONAL DATA,352082,,ADOPTION & FOSTERING          
LEAVING CARE                  ,9270,INDEPENDENT FOSTERING         ,07/07/2014,3670896,22345,"3,220.00",REDACTED PERSONAL DATA,352082,,ADOPTION & FOSTERING          
INDEPENDENT FOSTERING PLACEMEN,9270,INDEPENDENT FOSTERING         ,07/07/2014,3670897,22346,"3,010.00",REDACTED PERSONAL DATA,352082,,ADOPTION & FOSTERING          
INDEPENDENT FOSTERING PLACEMEN,9270,INDEPENDENT FOSTERING         ,07/07/2014,3670898,22347,"3,060.00",REDACTED PERSONAL DATA,352082,,ADOPTION & FOSTERING          
INDEPENDENT FOSTERING PLACEMEN,9270,INDEPENDENT FOSTERING         ,07/07/2014,3670899,22348,"3,060.00",REDACTED PERSONAL DATA,352082,,ADOPTION & FOSTERING          
LEAVING CARE                  ,9270,INDEPENDENT FOSTERING         ,07/07/2014,3670900,22349,"3,060.00",REDACTED PERSONAL DATA,352082,,ADOPTION & FOSTERING          
CWD INDEPENDENT PLACEMENTS    ,9270,INDEPENDENT FOSTERING         ,07/07/2014,3670901,22350,"3,060.00",REDACTED PERSONAL DATA,352082,,ADOPTION & FOSTERING          
INDEPENDENT FOSTERING PLACEMEN,9270,INDEPENDENT FOSTERING         ,07/07/2014,3670902,22351,"3,060.00",REDACTED PERSONAL DATA,352082,,ADOPTION & FOSTERING          
INDEPENDENT FOSTERING PLACEMEN,9270,INDEPENDENT FOSTERING         ,07/07/2014,3670903,NFA109832                ,"3,060.12",REDACTED PERSONAL DATA,432914,,ADOPTION & FOSTERING          
INDEPENDENT FOSTERING PLACEMEN,9270,INDEPENDENT FOSTERING         ,07/07/2014,3670904,148296,830.00,REDACTED PERSONAL DATA,349291,,ADOPTION & FOSTERING          
INDEPENDENT FOSTERING PLACEMEN,9270,INDEPENDENT FOSTERING         ,07/07/2014,3670905,22353,"3,010.00",REDACTED PERSONAL DATA,352082,,ADOPTION & FOSTERING          
INDEPENDENT FOSTERING PLACEMEN,9270,INDEPENDENT FOSTERING         ,07/07/2014,3670906,NFA109833                ,"2,966.04",REDACTED PERSONAL DATA,432914,,ADOPTION & FOSTERING          
INDEPENDENT FOSTERING PLACEMEN,9270,INDEPENDENT FOSTERING         ,07/07/2014,3670907,NFA109834                ,"2,791.60",REDACTED PERSONAL DATA,432914,,ADOPTION & FOSTERING          
INDEPENDENT FOSTERING PLACEMEN,9270,INDEPENDENT FOSTERING         ,07/07/2014,3670908,NFA109835                ,"2,791.60",REDACTED PERSONAL DATA,432914,,ADOPTION & FOSTERING          
INDEPENDENT FOSTERING PLACEMEN,9270,INDEPENDENT FOSTERING         ,07/07/2014,3670909,NFA109836                ,"3,120.04",REDACTED PERSONAL DATA,432914,,ADOPTION & FOSTERING          
INDEPENDENT FOSTERING PLACEMEN,9270,INDEPENDENT FOSTERING         ,07/07/2014,3670910,NFA109837                ,"2,966.04",REDACTED PERSONAL DATA,432914,,ADOPTION & FOSTERING          
INDEPENDENT FOSTERING PLACEMEN,9270,INDEPENDENT FOSTERING         ,07/07/2014,3670911,NFA109838                ,"3,060.12",REDACTED PERSONAL DATA,432914,,ADOPTION & FOSTERING          
INDEPENDENT FOSTERING PLACEMEN,9270,INDEPENDENT FOSTERING         ,07/07/2014,3670912,NFA109839                ,"3,120.04",REDACTED PERSONAL DATA,432914,,ADOPTION & FOSTERING          
LEAVING CARE                  ,9270,INDEPENDENT FOSTERING         ,07/07/2014,3670913,22354,"3,060.00",REDACTED PERSONAL DATA,352082,,ADOPTION & FOSTERING          
INDEPENDENT FOSTERING PLACEMEN,9270,INDEPENDENT FOSTERING         ,07/07/2014,3670914,22355,"3,060.00",REDACTED PERSONAL DATA,352082,,ADOPTION & FOSTERING          
INDEPENDENT FOSTERING PLACEMEN,9270,INDEPENDENT FOSTERING         ,07/07/2014,3670915,22356,"3,060.00",REDACTED PERSONAL DATA,352082,,ADOPTION & FOSTERING          
CWD INDEPENDENT PLACEMENTS    ,9270,INDEPENDENT FOSTERING         ,07/07/2014,3670916,22357,"4,000.00",REDACTED PERSONAL DATA,352082,,ADOPTION & FOSTERING          
INDEPENDENT FOSTERING PLACEMEN,9270,INDEPENDENT FOSTERING         ,07/07/2014,3670917,5093,"11,784.92",REDACTED PERSONAL DATA,452499,,ADOPTION & FOSTERING          
INDEPENDENT FOSTERING PLACEMEN,9270,INDEPENDENT FOSTERING         ,07/07/2014,3670918,148297,928.97,REDACTED PERSONAL DATA,349291,,ADOPTION & FOSTERING          
CWD INDEPENDENT PLACEMENTS    ,9270,INDEPENDENT FOSTERING         ,07/07/2014,3670919,630122680,"5,243.28",REDACTED PERSONAL DATA,328618,,ADOPTION & FOSTERING          
LEAVING CARE                  ,9270,INDEPENDENT FOSTERING         ,07/07/2014,3670920,630122681,"3,459.75",REDACTED PERSONAL DATA,328618,,ADOPTION & FOSTERING          
INDEPENDENT FOSTERING PLACEMEN,9270,INDEPENDENT FOSTERING         ,07/07/2014,3670921,630122682,"3,532.19",REDACTED PERSONAL DATA,328618,,ADOPTION & FOSTERING          
INDEPENDENT FOSTERING PLACEMEN,9270,INDEPENDENT FOSTERING         ,07/07/2014,3670922,630122683,"3,604.25",REDACTED PERSONAL DATA,328618,,ADOPTION & FOSTERING          
INDEPENDENT FOSTERING PLACEMEN,9270,INDEPENDENT FOSTERING         ,07/07/2014,3670923,630122684,"4,692.52",REDACTED PERSONAL DATA,328618,,ADOPTION & FOSTERING          
INDEPENDENT FOSTERING PLACEMEN,9270,INDEPENDENT FOSTERING         ,07/07/2014,3670924,630122685,"5,160.40",REDACTED PERSONAL DATA,328618,,ADOPTION & FOSTERING          
INDEPENDENT FOSTERING PLACEMEN,9270,INDEPENDENT FOSTERING         ,07/07/2014,3670925,630122686,"5,868.80",REDACTED PERSONAL DATA,328618,,ADOPTION & FOSTERING          
INDEPENDENT FOSTERING PLACEMEN,9270,INDEPENDENT FOSTERING         ,07/07/2014,3670926,17017,"2,813.96",REDACTED PERSONAL DATA,433761,,ADOPTION & FOSTERING          
INDEPENDENT FOSTERING PLACEMEN,9270,INDEPENDENT FOSTERING         ,07/07/2014,3670927,630122687,"3,604.25",REDACTED PERSONAL DATA,328618,,ADOPTION & FOSTERING          
INDEPENDENT FOSTERING PLACEMEN,9270,INDEPENDENT FOSTERING         ,07/07/2014,3670928,630122689,"3,304.00",REDACTED PERSONAL DATA,328618,,ADOPTION & FOSTERING          
INDEPENDENT FOSTERING PLACEMEN,9270,INDEPENDENT FOSTERING         ,07/07/2014,3670929,630122690,"3,304.00",REDACTED PERSONAL DATA,328618,,ADOPTION & FOSTERING          
INDEPENDENT FOSTERING PLACEMEN,9270,INDEPENDENT FOSTERING         ,07/07/2014,3670930,630122691,"4,423.72",REDACTED PERSONAL DATA,328618,,ADOPTION & FOSTERING          
INDEPENDENT FOSTERING PLACEMEN,9270,INDEPENDENT FOSTERING         ,07/07/2014,3670931,630122692,"3,604.25",REDACTED PERSONAL DATA,328618,,ADOPTION & FOSTERING          
LEAVING CARE                  ,9270,INDEPENDENT FOSTERING         ,07/07/2014,3670932,630122693,"3,290.00",REDACTED PERSONAL DATA,328618,,ADOPTION & FOSTERING          
LEAVING CARE                  ,9270,INDEPENDENT FOSTERING         ,07/07/2014,3670933,630122694,"3,604.25",REDACTED PERSONAL DATA,328618,,ADOPTION & FOSTERING          
INDEPENDENT FOSTERING PLACEMEN,9270,INDEPENDENT FOSTERING         ,07/07/2014,3670934,630122697,"3,604.25",REDACTED PERSONAL DATA,328618,,ADOPTION & FOSTERING          
INDEPENDENT FOSTERING PLACEMEN,9270,INDEPENDENT FOSTERING         ,07/07/2014,3670935,630122700,"3,604.25",REDACTED PERSONAL DATA,328618,,ADOPTION & FOSTERING          
INDEPENDENT FOSTERING PLACEMEN,9270,INDEPENDENT FOSTERING         ,07/07/2014,3670936,630122701,"3,604.25",REDACTED PERSONAL DATA,328618,,ADOPTION & FOSTERING          
INDEPENDENT FOSTERING PLACEMEN,9270,INDEPENDENT FOSTERING         ,07/07/2014,3670937,18984,"4,396.00",REDACTED PERSONAL DATA,329839,,ADOPTION & FOSTERING          
INDEPENDENT FOSTERING PLACEMEN,9270,INDEPENDENT FOSTERING         ,07/07/2014,3670938,630122703,"3,001.18",REDACTED PERSONAL DATA,328618,,ADOPTION & FOSTERING          
INDEPENDENT FOSTERING PLACEMEN,9270,INDEPENDENT FOSTERING         ,07/07/2014,3670939,630122704,"3,001.18",REDACTED PERSONAL DATA,328618,,ADOPTION & FOSTERING          
INDEPENDENT FOSTERING PLACEMEN,9270,INDEPENDENT FOSTERING         ,07/07/2014,3670940,630122705,"3,001.18",REDACTED PERSONAL DATA,328618,,ADOPTION & FOSTERING          
INDEPENDENT FOSTERING PLACEMEN,9270,INDEPENDENT FOSTERING         ,07/07/2014,3670941,630122706,"5,868.80",REDACTED PERSONAL DATA,328618,,ADOPTION & FOSTERING          
INDEPENDENT FOSTERING PLACEMEN,9270,INDEPENDENT FOSTERING         ,07/07/2014,3670942,630122707,"3,604.25",REDACTED PERSONAL DATA,328618,,ADOPTION & FOSTERING          
CWD INDEPENDENT PLACEMENTS    ,9270,INDEPENDENT FOSTERING         ,07/07/2014,3670943,630122708,"5,061.00",REDACTED PERSONAL DATA,328618,,ADOPTION & FOSTERING          
INDEPENDENT FOSTERING PLACEMEN,9270,INDEPENDENT FOSTERING         ,07/07/2014,3670944,630122711,"3,604.25",REDACTED PERSONAL DATA,328618,,ADOPTION & FOSTERING          
INDEPENDENT FOSTERING PLACEMEN,9270,INDEPENDENT FOSTERING         ,07/07/2014,3670945,630122712,"3,411.80",REDACTED PERSONAL DATA,328618,,ADOPTION & FOSTERING          
INDEPENDENT FOSTERING PLACEMEN,9270,INDEPENDENT FOSTERING         ,07/07/2014,3670946,630122719,"3,676.29",REDACTED PERSONAL DATA,328618,,ADOPTION & FOSTERING          
INDEPENDENT FOSTERING PLACEMEN,9270,INDEPENDENT FOSTERING         ,07/07/2014,3670947,630122720,"3,676.29",REDACTED PERSONAL DATA,328618,,ADOPTION & FOSTERING          
LEAVING CARE                  ,9270,INDEPENDENT FOSTERING         ,07/07/2014,3670948,630122721,"3,676.29",REDACTED PERSONAL DATA,328618,,ADOPTION & FOSTERING          
INDEPENDENT FOSTERING PLACEMEN,9270,INDEPENDENT FOSTERING         ,07/07/2014,3670949,22328,"3,060.00",REDACTED PERSONAL DATA,352082,,ADOPTION & FOSTERING          
INDEPENDENT FOSTERING PLACEMEN,9270,INDEPENDENT FOSTERING         ,07/07/2014,3670950,22332,"3,060.00",REDACTED PERSONAL DATA,352082,,ADOPTION & FOSTERING          
UASC/ASYLUM 16-17             ,9270,INDEPENDENT FOSTERING         ,07/07/2014,3670951,22337,"3,060.00",REDACTED PERSONAL DATA,352082,,ADOPTION & FOSTERING          
UASC/ASYLUM 16-17             ,9270,INDEPENDENT FOSTERING         ,07/07/2014,3670952,22344,"3,060.00",REDACTED PERSONAL DATA,352082,,ADOPTION & FOSTERING          
UASC/ASYLUM 16-17             ,9270,INDEPENDENT FOSTERING         ,07/07/2014,3670953,22352,"3,010.00",REDACTED PERSONAL DATA,352082,,ADOPTION & FOSTERING          
LEAVING CARE                  ,9270,CARELEAVERS ACCOMMODATION     ,07/07/2014,3670954,MUD109                   ,320.95,EARL MARSHALL GUEST HOUSE LTD           ,391589,,GUEST HOUSES                  
UASC/ASYLUM 16-17             ,9270,INDEPENDENT FOSTERING         ,07/07/2014,3670955,22358,"3,010.00",REDACTED PERSONAL DATA,352082,,ADOPTION & FOSTERING          
LEAVING CARE                  ,9270,CARELEAVERS ACCOMMODATION     ,07/07/2014,3670956,26832,"9,636.76",THE KEYS GROUP                          ,325353,,CHILDREN'S HOMES              
INDEPENDENT RES BLOCK PLACEMEN,9270,INDEPENDENT RESIDENTIAL PMENT ,07/07/2014,3670957,602019,"9,580.00",NORTHERN LIFE CARE LTD T/A UBU          ,207163,,RESIDENTIAL CARE HOMES        
LEAVING CARE                  ,9270,CARELEAVERS ACCOMMODATION     ,07/07/2014,3670958,602020,"7,980.00",NORTHERN LIFE CARE LTD T/A UBU          ,207163,,RESIDENTIAL CARE HOMES        
INDEPENDENT RES BLOCK PLACEMEN,9270,INDEPENDENT RESIDENTIAL PMENT ,07/07/2014,3670959,602021,"7,980.00",NORTHERN LIFE CARE LTD T/A UBU          ,207163,,RESIDENTIAL CARE HOMES        
LEAVING CARE                  ,9270,CARELEAVERS ACCOMMODATION     ,07/07/2014,3670960,602022,"11,460.00",NORTHERN LIFE CARE LTD T/A UBU          ,207163,,RESIDENTIAL CARE HOMES        
LEAVING CARE                  ,9270,CARELEAVERS ACCOMMODATION     ,07/07/2014,3670961,602023,"11,460.00",NORTHERN LIFE CARE LTD T/A UBU          ,207163,,RESIDENTIAL CARE HOMES        
LEAVING CARE                  ,9270,CARELEAVERS ACCOMMODATION     ,07/07/2014,3670962,2083,315.00,EARL MARSHALL GUEST HOUSE LTD           ,391589,,GUEST HOUSES                  
UASC/ASYLUM 16-17             ,9270,INDEPENDENT FOSTERING         ,07/07/2014,3670963,630122727,"3,304.00",REDACTED PERSONAL DATA,328618,,ADOPTION & FOSTERING          
UASC/ASYLUM 16-17             ,6210,RENTS                         ,07/07/2014,3670964,6963,"3,200.00",PROGRESSIVE CARE LTD                    ,343548,,CHILDREN'S HOMES              
LEAVING CARE                  ,9270,CARELEAVERS ACCOMMODATION     ,07/07/2014,3670965,8586,"3,968.81",HUTTON CARE PARTNERSHIP LTD             ,422809,,SHELTERED HOUSING             
LEAVING CARE                  ,9270,CARELEAVERS ACCOMMODATION     ,07/07/2014,3670966,8587,"3,968.81",HUTTON CARE PARTNERSHIP LTD             ,422809,,SHELTERED HOUSING             
LEAVING CARE                  ,9270,CARELEAVERS ACCOMMODATION     ,07/07/2014,3670967,8588,"3,968.81",HUTTON CARE PARTNERSHIP LTD             ,422809,,SHELTERED HOUSING             
LEAVING CARE                  ,9270,CARELEAVERS ACCOMMODATION     ,07/07/2014,3670968,8592,"1,534.64",HUTTON CARE PARTNERSHIP LTD             ,422809,,SHELTERED HOUSING             
LEAVING CARE                  ,9270,CARELEAVERS ACCOMMODATION     ,07/07/2014,3670969,BALOG34                  ,355.95,EARL MARSHALL GUEST HOUSE LTD           ,391589,,GUEST HOUSES                  
ADULT SOCIAL CARE PURCHASING  ,9200,CONTINUING RESIDENTIAL CARE   ,07/07/2014,3670867,J931598 200714           ,"14,231.14",HOUSTEADS (SHEFFCARE LTD)               ,361860,,RESIDENTIAL CARE HOMES        
PURCHASING LEARNING DISABILITI,9200,SHORT TERM RESIDENTIAL CARE   ,07/07/2014,3670868,J931602 200714           ,"6,407.14",ICON CARE LTD T/A CHAMWOOD              ,550309,,RESIDENTIAL CARE HOMES        
DRUG & ALCOHOL MH -PURCHASING ,9200,SHORT TERM RESIDENTIAL CARE   ,07/07/2014,3670869,J931603 200714           ,"11,025.00",TRUST THE PROCESS COUNSELLING           ,553334,,RESIDENTIAL CARE HOMES        
PURCHASING LEARNING DISABILITI,9210,CONTINUING NURSING CARE       ,07/07/2014,3670870,J887413 250514           ,"2,002.80","UNITED HEALTH LTD, HILL HOUSE CARE HOME ",362029,,NURSING HOMES                 
PURCHASING LEARNING DISABILITI,9210,CONTINUING NURSING CARE       ,07/07/2014,3670871,J888469 220614           ,"2,002.80","UNITED HEALTH LTD, HILL HOUSE CARE HOME ",362029,,NURSING HOMES                 
ADULT SOCIAL CARE PURCHASING  ,9200,CONTINUING RESIDENTIAL CARE   ,07/07/2014,3670872,J924536 200714           ,"26,336.00",NORTON LEES HALL/LODGE                  ,433750,,SCHOOLS - LOCAL AUTHORITY     
ADULT SOCIAL CARE PURCHASING  ,9200,CONTINUING RESIDENTIAL CARE   ,07/07/2014,3670873,J929863 200714           ,"2,679.00",HEELEY BANK CARE HOME                   ,362923,,RESIDENTIAL CARE HOMES        
ADULT SOCIAL CARE PURCHASING  ,9210,CONTINUING NURSING CARE       ,07/07/2014,3670873,J929863 200714           ,"2,045.00",HEELEY BANK CARE HOME                   ,362923,,RESIDENTIAL CARE HOMES        
ADULT SOCIAL CARE PURCHASING  ,9200,SHORT TERM RESIDENTIAL CARE   ,07/07/2014,3670874,J931348 220614           ,"8,152.57",HOUSTEADS (SHEFFCARE LTD)               ,361860,,RESIDENTIAL CARE HOMES        
ADULT SOCIAL CARE PURCHASING  ,9200,SHORT TERM RESIDENTIAL CARE   ,07/07/2014,3670875,J931349 220614           ,"3,047.14",LEAHYRST RESIDENTIAL CARE HOME          ,361842,,RESIDENTIAL CARE HOMES        
ADULT SOCIAL CARE PURCHASING  ,9200,SHORT TERM RESIDENTIAL CARE   ,07/07/2014,3670876,J931355 220614           ,627.00,ROSEBERRY CARE CENTRES GB LTD           ,361953,,NURSING HOMES                 
ADULT SOCIAL CARE PURCHASING  ,9200,SHORT TERM RESIDENTIAL CARE   ,07/07/2014,3670878,J931566 220614           ,790.00,HAZELDENE NURSING HOME                  ,340163,,NURSING HOMES                 
ADULT SOCIAL CARE PURCHASING  ,9210,SHORT TERM NURSING CARE       ,07/07/2014,3670878,J931566 220614           ,"1,523.57",HAZELDENE NURSING HOME                  ,340163,,NURSING HOMES                 
ADULT SOCIAL CARE PURCHASING  ,9200,SHORT TERM RESIDENTIAL CARE   ,07/07/2014,3670879,J931568 220614           ,649.90,SHEFFIELD CHESHIRE HOME                 ,361768,,NURSING HOMES                 
ADULT SOCIAL CARE PURCHASING  ,9210,SHORT TERM NURSING CARE       ,07/07/2014,3670879,J931568 220614           ,"1,141.37",SHEFFIELD CHESHIRE HOME                 ,361768,,NURSING HOMES                 
ADULT SOCIAL CARE PURCHASING  ,9200,SHORT TERM RESIDENTIAL CARE   ,07/07/2014,3670880,J914925 250514           ,"1,412.00",WHITE ROSE COURT RES HOME               ,361964,,RESIDENTIAL CARE HOMES        
ADULT SOCIAL CARE PURCHASING  ,9200,SHORT TERM RESIDENTIAL CARE   ,07/07/2014,3670881,J918732 250514           ,"2,469.60",SHEFFIELD CHESHIRE HOME                 ,361768,,NURSING HOMES                 
ADULT SOCIAL CARE PURCHASING  ,9200,SHORT TERM RESIDENTIAL CARE   ,07/07/2014,3670882,J919704 250514           ,"1,083.00",HEELEY BANK CARE HOME                   ,362923,,RESIDENTIAL CARE HOMES        
ADULT SOCIAL CARE PURCHASING  ,9200,SHORT TERM RESIDENTIAL CARE   ,07/07/2014,3670883,J924214 220614           ,806.86,WHITE ROSE COURT RES HOME               ,361964,,RESIDENTIAL CARE HOMES        
RGF 3                         ,8440,FEE EXPENSES                  ,08/07/2014,3672124,ERS INVOICE103125        ,"11,114.26",M.R MACHINE KNIVES LTD                  ,595326,,CUTLERY MNFRS                 
MINOR WORK GRANTS             ,1165,NC&A OTHER                    ,08/07/2014,3672125,ERS INVOICE103126        ,"1,895.00",WP BUILDERS                             ,526547,,BUILDERS                      
DISABLED GRANTS               ,1165,NC&A OTHER                    ,08/07/2014,3672127,ERS INVOICE103128        ,"2,057.00",STANNAH LIFT SERVICES LTD.              ,208625,,STAIRLIFTS - MNFRS & INSTALLER
SCC BALANCE SHEET             ,2050,LM'S CHARITY APPEAL/FUND      ,08/07/2014,3672129,ERS INVOICE103130        ,"3,823.00",SHEFFIELD CHILDREN'S HOSPITAL CHARITY   ,463783,,HOSPITALS                     
EQUALITIES & INVOLVEMENT      ,9120,OTHER AGENCIES                ,08/07/2014,3672135,ERS INVOICE103136        ,"7,380.00",SHEFFIELD 50+                           ,331190,,CHARITIES & VOLUNTARY ORGANISA
EQUALITIES & INVOLVEMENT      ,9120,OTHER AGENCIES                ,08/07/2014,3672136,ERS INVOICE103137        ,"1,000.00",E.D.E.N FILM PRODUCTIONS                ,573554,,FILM STUDIOS & PRODUCTION SERV
EQUALITIES & INVOLVEMENT      ,9120,OTHER AGENCIES                ,08/07/2014,3672137,ERS INVOICE103138        ,750.00,SHEFFIELD FUTURES                       ,322702,,COUNSELLING & ADVICE SERVICES 
MINOR WORKS & ADAPTATIONS     ,6020,REPAIRS AND MTCE - PROGRAMMED ,08/07/2014,3672140,ERS INVOICE103141        ,"3,069.00",REDACTED PERSONAL DATA,459864,,BUILDING SERVICES             
EQUALITIES & INVOLVEMENT      ,9120,OTHER AGENCIES                ,08/07/2014,3672141,ERS INVOICE103142        ,577.00,SHARROW COMMUNITY FORUM                 ,318379,,COMMUNITY PROJECTS            
MINOR WORKS & ADAPTATIONS     ,6030,REPAIRS AND MTCE - RESPONSIVE ,08/07/2014,3672142,ERS INVOICE103143        ,"2,624.00",REDACTED PERSONAL DATA,459864,,BUILDING SERVICES             
PURCHASING LEARNING DISABILITI,9190,EX POOL CLIENTS               ,08/07/2014,3672291,ERS INVOICE103148        ,"233,575.27",DIMENSIONS (UK) LTD.                    ,386516,,DISABILITY & SPECIAL NEEDS - S
DISABLED GRANTS               ,1165,NC&A OTHER                    ,08/07/2014,3672292,ERS INVOICE103149        ,"1,996.00",STANNAH LIFT SERVICES LTD.              ,208625,,STAIRLIFTS - MNFRS & INSTALLER
DISABLED GRANTS               ,1165,NC&A OTHER                    ,08/07/2014,3672293,ERS INVOICE103150        ,"2,081.00",STANNAH LIFT SERVICES LTD.              ,208625,,STAIRLIFTS - MNFRS & INSTALLER
RGF 3                         ,8440,FEE EXPENSES                  ,08/07/2014,3672294,ERS INVOICE103151        ,"24,000.00",LION TRACKHIRE LTD                      ,587758,,"MARQUEES, TENTS & PORTABLE FLO"
MARKETING SHEFFIELD           ,8440,FEE EXPENSES                  ,08/07/2014,3672295,ERS INVOICE103152        ,"800,000.00",TELEVIDEO LTD                           ,425476,,BROADCASTING SERVICES         
CLAIMS                        ,8740,HIGHWAYS                      ,08/07/2014,3672302,ERS INVOICE103159        ,"4,823.25",DEPARTMENT FOR WORK & PENSIONS          ,326920,,CENTRAL GOVERNMENT            
STUDENT FINANCIAL SUPPORT     ,9120,OTHER AGENCIES                ,08/07/2014,3672305,ERS INVOICE103162        ,662.85,REDACTED PERSONAL DATA,597745,Unclassified Non Trade,OUT OF SCOPE FOR SIC MONITORIN
TAMHS                         ,9120,OTHER AGENCIES                ,08/07/2014,3617126,16610,"32,422.50",FAMILY ACTION                           ,469656,,COUNSELLING & ADVICE SERVICES 
HOMESTART                     ,9030,HEALTH                        ,08/07/2014,3655269,285,"3,963.16",HOME-START SHEFFIELD                    ,580764,,PUBLIC HEALTH SUPPLIERS       
WIDER FAM LEARN AUG 13-JUL 14 ,8440,FEE EXPENSES                  ,08/07/2014,3660693,2295,257.80,REACHOUT CHILDCARE SERVICES LIMITED     ,433768,,AFTER SCHOOL CARE             
WIDER FAM LEARN AUG 13-JUL 14 ,8440,FEE EXPENSES                  ,08/07/2014,3660694,1099,260.00,ROUNDABOUT CRECHE SERVICE               ,462116,,NURSERIES & CRECHES           
TOUR DE FRANCE                ,8020,EQUIPMENT LEASE/ RENTAL/ HIRE ,08/07/2014,3664126,INV4736                  ,"7,520.00",MOBILE EVENT EQUIPMENT LTD              ,514926,,"MARQUEES, TENTS & PORTABLE FLO"
APS - MANOR CENTRE            ,8010,EQUIPMENT PURCHASE AND REPAIR ,08/07/2014,3665099,92219340,269.59,ARCO LTD                                ,203022,,SAFETY EQUIPMENT & CLOTHING   
SURESTART GRANT               ,8440,FEE EXPENSES                  ,08/07/2014,3665151,101,500.00,PROJECT BUZZ LTD                        ,296375,,NURSERIES & CRECHES           
NEW RETAIL QUARTER 2          ,1194,OTHER FEES                    ,08/07/2014,3665804,545174,"15,000.00",TURNER & TOWNSEND                       ,421729,,BUILDING CONSULTANTS          
WIDER FAM LEARN AUG 13-JUL 14 ,8440,FEE EXPENSES                  ,08/07/2014,3666725,337,288.00,FIRVALE PRE-SCHOOL                      ,503257,,PLAYGROUPS & PRE-SCHOOL EDUCAT
ESTATE & ENVIORMENTAL SERVICES,6370,GROUNDS MTCE AND ARBORICULTURE,08/07/2014,3666805,231,850.00,HN WOODLAND & ESTATE MANAGEMENT         ,317072,,TREE WORK & FORESTRY SERVICES 
100 APPRENTICES               ,9120,OTHER AGENCIES                ,08/07/2014,3666806,1,482.40,ARUNDEL DECORATING SOLUTIONS            ,596838,,PAINTERS & DECORATORS         
EXPANSION -FSM PROV (INFANTS) ,1167,RENOVATIONS & REFURBISHMENTS  ,08/07/2014,3666821,INV0089752               ,"1,156.00",SICO EUROPE LTD.                        ,208430,,FURNITURE MNFRS - HOME & OFFIC
EXPANSION -FSM PROV (INFANTS) ,1167,RENOVATIONS & REFURBISHMENTS  ,08/07/2014,3666857,INV0089751               ,"1,292.00",SICO EUROPE LTD.                        ,208430,,FURNITURE MNFRS - HOME & OFFIC
APS - MANOR CENTRE            ,8010,EQUIPMENT PURCHASE AND REPAIR ,08/07/2014,3667459,922237481,269.59,ARCO LTD                                ,203022,,SAFETY EQUIPMENT & CLOTHING   
HEAD OF SERVICE               ,5750,TRAINING EXPENDITURE          ,08/07/2014,3668311,2554,"3,459.00",OXFORD PROJECTS LTD                     ,594762,,TRAINING SERVICES             
HACKENTHORPE COMMUNITY BLDG   ,1194,OTHER FEES                    ,08/07/2014,3668314,SLINV2/00055401          ,250.00,IOM CONSULTING LTD                      ,442538,,SAFETY CONSULTANTS            
SUPPORTED HOUSING             ,8050,FURNITURE PURCHASES           ,08/07/2014,3668809,SIN064972                ,"3,025.00",WHITELEAF FURNITURE LTD                 ,441448,,FURNITURE MNFRS - HOME & OFFIC
CLOSED LANDFILL SITES         ,8440,FEE EXPENSES                  ,08/07/2014,3668839,88079,"1,550.37",HARPERS ENVIRONMENTAL LTD               ,537022,,ENVIRONMENTAL CONSULTANTS     
CLOSED LANDFILL SITES         ,8440,FEE EXPENSES                  ,08/07/2014,3668840,88181,"1,404.02",HARPERS ENVIRONMENTAL LTD               ,537022,,ENVIRONMENTAL CONSULTANTS     
CLOSED LANDFILL SITES         ,8440,FEE EXPENSES                  ,08/07/2014,3668848,87965,"1,486.66",HARPERS ENVIRONMENTAL LTD               ,537022,,ENVIRONMENTAL CONSULTANTS     
CYCLING ENGLAND               ,8440,FEE EXPENSES                  ,08/07/2014,3668859,2898,"11,920.00",CYCLE EXPERIENCE LIMITED (PART OF TTC GR,540487,,CYCLES - RENTING & LEASING    
BARKERS POOL                  ,6030,REPAIRS AND MTCE - RESPONSIVE ,08/07/2014,3668895,3302,"3,330.00",CRB DOOR SYSTEMS LTD                    ,541144,,DOORS - REPAIRING             
PUBLIC RIGHTS OF WAY          ,6390,OTHER HIGHWAY MAINTENANCE     ,08/07/2014,3668920,2757,"1,080.00",ANDERSON TREE CARE LTD                  ,316084,,TREE WORK & FORESTRY SERVICES 
COMMUNITY YOUTH TEAMS         ,6210,RENTS                         ,08/07/2014,3669441,9512,"6,436.53",MANOR DEVELOPMENT COMPANY LIMITED       ,420262,,OFFICE RENTAL                 
100 APPRENTICES               ,9120,OTHER AGENCIES                ,08/07/2014,3669481,1,482.40,ARUNDEL DECORATING SOLUTIONS            ,596838,,PAINTERS & DECORATORS         
ADULT SOCIAL CARE PURCHASING  ,9650,OTHER SERVICE RECHARGES       ,08/07/2014,3669516,10431,272.51,NOVOTEL SHEFFIELD                       ,294941,,HOTELS                        
BRINDLEY CARS                 ,7060,EXTERNAL VEHICLE HIRE         ,08/07/2014,3669524,30532,"1,356.81",SHEFFIELD COMMUNITY TRANSPORT (WORKSHOP),297061,,CHARITIES & VOLUNTARY ORGANISA
SERVICE TENANCIES             ,6210,RENTS                         ,08/07/2014,3669882,RMIN/00000902            ,261.64,GREAT PLACES HOUSING ASSOCIATION        ,526686,,"HOUSING ASSOCIATIONS, SOCIETIE"
PUBLIC RIGHTS OF WAY          ,6390,OTHER HIGHWAY MAINTENANCE     ,08/07/2014,3669960,5/999/25LM/40813         ,"1,825.00",WILDSCAPES LTD                          ,472494,,LANDSCAPE ARCHITECTS & DESIGNE
DON VALLEY SCHOOL             ,1194,OTHER FEES                    ,08/07/2014,3669963,107472,"4,500.00",SRL TECHNICAL SERVICES LIMITED          ,597757,,ENGINEERS - CONSULTING        
TOUR DE FRANCE                ,8440,FEE EXPENSES                  ,08/07/2014,3670010,1800109880,"8,620.00",THE UNIVERSITY OF SHEFFIELD             ,316392,,UNIVERSITIES & MEDICAL SCHOOLS
THE MOOR INDOOR MARKET        ,8550,OTHER SERVICES                ,08/07/2014,3670033,MO252                    ,600.00,R L DEAR (WASTE MERCHANTS) LTD          ,360135,,WASTE MERCHANTS               
SUPPORTED LIVING              ,5610,AGENCY STAFF                  ,08/07/2014,3670039,34445,431.36,CITIZENSHIP FIRST                       ,329379,,CHARITIES & VOLUNTARY ORGANISA
SUPPORTED LIVING              ,5610,AGENCY STAFF                  ,08/07/2014,3670040,34444,862.72,CITIZENSHIP FIRST                       ,329379,,CHARITIES & VOLUNTARY ORGANISA
C & F CITYWIDE CONTRACTS      ,6090,WASTE DISPOSAL                ,08/07/2014,3672120,30,900.00,OBRIEN WASTE REMOVAL                    ,597647,,WASTE DISPOSAL SERVICES       
CCTV                          ,6020,REPAIRS AND MTCE - PROGRAMMED ,08/07/2014,3670041,I0085900                 ,"1,291.00",TOTAL INTEGRATED SOLUTIONS LTD          ,208799,,SECURITY EQUIPMENT            
PRESCRIBING COST              ,9030,HEALTH                        ,08/07/2014,3670250,7016200311,"129,525.68",NHS SHEFFIELD CCG                       ,504799,,CLINICS - N.H.S.              
CORONIAL SERVICES             ,8440,PATHOLOGIST INVOICE           ,08/07/2014,3670424,L0127386                 ,322.50,UNIVERSITY HOSPITALS OF LEICESTER       ,594122,Unclassified Non Trade,OUT OF SCOPE FOR SIC MONITORIN
CORONIAL SERVICES             ,8440,PATHOLOGIST INVOICE           ,08/07/2014,3670426,L0127387                 ,520.00,UNIVERSITY HOSPITALS OF LEICESTER       ,594122,Unclassified Non Trade,OUT OF SCOPE FOR SIC MONITORIN
CORONIAL SERVICES             ,8440,PATHOLOGIST INVOICE           ,08/07/2014,3670427,L0127375                 ,450.00,UNIVERSITY HOSPITALS OF LEICESTER       ,594122,Unclassified Non Trade,OUT OF SCOPE FOR SIC MONITORIN
COMMUNITY ENGAGE & GOVERNANCE ,6280,HIRE OF PREMISES              ,08/07/2014,3670607,2414,525.00,SHEFFIELD CATHEDRAL CHAPTER             ,427279,,PLACES OF WORSHIP             
COMMUNITY ENGAGE & GOVERNANCE ,6280,HIRE OF PREMISES              ,08/07/2014,3670625,2433,290.00,SHEFFIELD CATHEDRAL CHAPTER             ,427279,,PLACES OF WORSHIP             
SUPPORTED HOUSING             ,6090,WASTE DISPOSAL                ,08/07/2014,3670637,53741/1                  ,510.00,R FLETCHER WASTE DISPOSAL LTD           ,473104,,WASTE DISPOSAL SERVICES       
COMMUNITY YOUTH TEAMS         ,8440,FEE EXPENSES                  ,08/07/2014,3670647,9557,675.00,MANOR DEVELOPMENT COMPANY LIMITED       ,420262,,OFFICE RENTAL                 
COMMUNITY YOUTH TEAMS         ,8590,LANDLINE TELEPHONES           ,08/07/2014,3670647,9557,593.14,MANOR DEVELOPMENT COMPANY LIMITED       ,420262,,OFFICE RENTAL                 
BANDED FUNDING                ,9050,OTHER LOCAL AUTHORITIES       ,08/07/2014,3670682,8004104022,"18,439.00",STAFFORDSHIRE COUNTY COUNCIL            ,329191,,LOCAL GOVERNMENT              
BANDED FUNDING                ,9050,OTHER LOCAL AUTHORITIES       ,08/07/2014,3670683,100000000000000000,"13,404.63",DERBYSHIRE COUNTY COUNCIL               ,299578,,LOCAL GOVERNMENT              
CITY CENTRE MANAGEMENT & ADMIN,8010,EQUIPMENT PURCHASE AND REPAIR ,08/07/2014,3670719,5973,750.00,SPRINGBOARD RESEARCH LTD.               ,369222,,RESEARCH ORGANISATIONS        
APS - MANOR CENTRE            ,8010,EQUIPMENT PURCHASE AND REPAIR ,08/07/2014,3671159,922289010,269.59,ARCO LTD                                ,203022,,SAFETY EQUIPMENT & CLOTHING   
ACCOMMODATION                 ,6210,RENTS                         ,08/07/2014,3671162,ARC1415-31               ,916.67,STOCKSBRIDGE TOWN COUNCIL               ,295752,,LOCAL GOVERNMENT              
OLDER PERSONS LIVING          ,8350,MISCELLANEOUS EXPENSES        ,08/07/2014,3671167,INV-16096                ,350.00,CAPITA CONFERENCES                      ,474665,,CAREER GUIDANCE SERVICES      
CCTV                          ,6020,REPAIRS AND MTCE - PROGRAMMED ,08/07/2014,3671169,I0086164                 ,"16,062.50",TOTAL INTEGRATED SOLUTIONS LTD          ,208799,,SECURITY EQUIPMENT            
YOUTH JUSTICE SERVICE         ,7140,PUBLIC TRANSPORT COSTS        ,08/07/2014,3671247,628436,317.37,CITY CAR CLUB (UK) LTD                  ,465053,,CAR RENTAL                    
REPAIRS ADJUSTMENTS           ,8440,FEE EXPENSES                  ,08/07/2014,3671302,R3568                    ,300.00,E4 (ENVIRONMENTAL) LTD                  ,462119,,ASBESTOS SURVEYS & REMOVALS   
ACCOMMODATION                 ,6030,REPAIRS AND MTCE - RESPONSIVE ,08/07/2014,3671350,4613515,419.00,CHUBB ELECTRONIC SECURITY               ,415902,,SECURITY SERVICES             
THE MOOR INDOOR MARKET        ,6030,REPAIRS AND MTCE - RESPONSIVE ,08/07/2014,3671395,2837,300.00,NO GRAFFITI LTD                         ,513010,,GRAFFITI REMOVERS             
MILLENNIUM SQUARE             ,6020,REPAIRS AND MTCE - PROGRAMMED ,08/07/2014,3671397,2838,600.00,NO GRAFFITI LTD                         ,513010,,GRAFFITI REMOVERS             
OFF STREET CAR PARKS          ,6210,RENTS                         ,08/07/2014,3671402,14/2A                    ,"6,500.00",VILLAGE COMMERCIAL DEVELOPMENTS (2000)  ,302245,,CAR PARKING & GARAGING        
REGISTRATION & REGULATION     ,8490,TRANSLATN/SIGN/INTERPRET FEES ,08/07/2014,3671405,59412,555.00,LANGUAGELINE SOLUTIONS                  ,471915,,TRANSLATORS & INTERPRETERS    
PFI 2                         ,6270,SERVICE / PFI UNITARY CHARGE  ,08/07/2014,3671409,90005138,"345,993.67",PRIORGATE LIMITED                       ,392312,,LEASING SERVICES              
EVENTS IN PARKS               ,8200,EVENTS EXPENDITURE            ,08/07/2014,3671436,757,"4,000.00",HEASON EVENTS                           ,481287,,PROFESSIONAL SPEAKERS         
PEACE GARDENS                 ,8060,MATERIALS AND SUPPLIES GENERAL,08/07/2014,3671541,SI-103474                ,303.98,TOTAL POOL CHEMICALS LTD                ,552673,,CHEMICALS - DISTRIBUTORS & WHO
CHILDRENS' FESTIVAL           ,8440,FEE EXPENSES                  ,08/07/2014,3671542,56-20.06.14-SHEFFCHFEST  ,250.00,GRIFFIN THEATRE ARTS C.I.C.             ,584273,,THEATRE COMPANIES             
REGISTRATION & REGULATION     ,8490,TRANSLATN/SIGN/INTERPRET FEES ,08/07/2014,3671546,61031,270.00,LANGUAGELINE SOLUTIONS                  ,471915,,TRANSLATORS & INTERPRETERS    
BANDED FUNDING                ,9050,OTHER LOCAL AUTHORITIES       ,08/07/2014,3671639,90766081,"6,581.25",LINCOLNSHIRE COUNTY COUNCIL             ,325205,,LOCAL GOVERNMENT              
BANDED FUNDING                ,9050,OTHER LOCAL AUTHORITIES       ,08/07/2014,3671640,20360687,"7,500.00",DONCASTER MBC                           ,369105,,LOCAL GOVERNMENT              
BANDED FUNDING                ,9050,OTHER LOCAL AUTHORITIES       ,08/07/2014,3671641,20360708,"5,500.00",DONCASTER MBC                           ,369105,,LOCAL GOVERNMENT              
BANDED FUNDING                ,9050,OTHER LOCAL AUTHORITIES       ,08/07/2014,3671642,20360732,"7,500.00",DONCASTER MBC                           ,369105,,LOCAL GOVERNMENT              
INCOME MANAGEMENT             ,9140,CO-OP RENT PAYMENT CARDS      ,08/07/2014,3671697,8731,957.90,PSC SYSTEMS                             ,525464,,DIRECT MAIL                   
AREA CENTAL                   ,8010,ESTATES EQUIP PURCHASE & REPAI,08/07/2014,3671721,SI/02400062              ,864.00,NOMIX ENVIRO                            ,207128,,CHEMICALS & ALLIED PRODUCTS   
C & F CITYWIDE CONTRACTS      ,6280,HIRE OF PREMISES              ,08/07/2014,3672119,41827,300.00,TRINITY FIRVALE METHODIST CHURCH        ,595289,,CHILDREN'S ACTIVITY CENTRES   
STRATEGY AND SKILLS           ,8440,FEE EXPENSES                  ,08/07/2014,3672170,IN000014910              ,"7,500.00",LIGHTWORK DESIGN LTD                    ,587905,,EDUCATIONAL TRAINING PROVIDERS
STRATEGY AND SKILLS           ,8440,FEE EXPENSES                  ,08/07/2014,3672178,ST88547                  ,"10,000.00",S4S (UK) LTD                            ,597545,,MEDICAL & DENTAL LABORATORIES 
BUSINESS GROWTH ADVISORS      ,8550,OTHER SERVICES                ,08/07/2014,3672203,SILEO-90                 ,"1,400.00",SILEO LIMITED                           ,576566,,BUSINESS INFORMATION SERVICES 
STANIFORTH ROAD WORKSHOPS     ,7010,ROUTINE VEHICLE REPAIR & MTCE ,08/07/2014,3671650,24305,"1,030.99",D.B.AUTO ELECTRICAL SUPPLIES            ,588397,,"COMMERCIAL VEHICLE SERVICING, "
STANIFORTH ROAD WORKSHOPS     ,7010,ROUTINE VEHICLE REPAIR & MTCE ,08/07/2014,3671651,24191,283.70,D.B.AUTO ELECTRICAL SUPPLIES            ,588397,,"COMMERCIAL VEHICLE SERVICING, "
STANIFORTH ROAD WORKSHOPS     ,7010,ROUTINE VEHICLE REPAIR & MTCE ,08/07/2014,3671653,24199,268.08,D.B.AUTO ELECTRICAL SUPPLIES            ,588397,,"COMMERCIAL VEHICLE SERVICING, "
CORPORATE MAIL                ,8570,POSTAGE & DELIVERY            ,08/07/2014,3671655,9047598960,"9,440.32",ROYAL MAIL GROUP LTD                    ,295326,,DELIVERY SERVICES             
STANIFORTH ROAD WORKSHOPS     ,7010,ROUTINE VEHICLE REPAIR & MTCE ,08/07/2014,3671661,24272,522.71,D.B.AUTO ELECTRICAL SUPPLIES            ,588397,,"COMMERCIAL VEHICLE SERVICING, "
CLOSED LANDFILL SITES         ,6190,WATER SERVICES                ,08/07/2014,3671666,800308697/148            ,"7,089.72",YORKSHIRE WATER PLC                     ,295854,,WATER COMPANIES               
EY/MAST PREMISES              ,8590,LANDLINE TELEPHONES           ,08/07/2014,3671672,SL45581548Q016F6         ,669.32,BRITISH TELECOMMUNICATIONS PLC          ,295860,,TELECOMMUNICATION SERVICES    
ADULT SOCIAL CARE PURCHASING  ,9190,CITYWIDE SPOT                 ,08/07/2014,3671617,16171,"1,765.94",SSA SOCIAL CARE & COMMUNITY SERVICES LTD,301604,,EMPLOYMENT & RECRUITMENT AGENC
PURCHASING                    ,9190,CITYWIDE SPOT                 ,08/07/2014,3671617,16171,"1,346.38",SSA SOCIAL CARE & COMMUNITY SERVICES LTD,301604,,EMPLOYMENT & RECRUITMENT AGENC
PURCHASING LEARNING DISABILITI,9190,CITYWIDE SPOT                 ,08/07/2014,3671617,16171,449.82,SSA SOCIAL CARE & COMMUNITY SERVICES LTD,301604,,EMPLOYMENT & RECRUITMENT AGENC
INDEPENDENT FOSTERING PLACEMEN,9270,INDEPENDENT FOSTERING         ,08/07/2014,3671601,630122730,"3,676.29",REDACTED PERSONAL DATA,328618,,ADOPTION & FOSTERING          
INDEPENDENT FOSTERING PLACEMEN,9270,INDEPENDENT FOSTERING         ,08/07/2014,3671602,630122731,"2,970.24",REDACTED PERSONAL DATA,328618,,ADOPTION & FOSTERING          
INDEPENDENT FOSTERING PLACEMEN,9270,INDEPENDENT FOSTERING         ,08/07/2014,3671603,630122732,"3,290.00",REDACTED PERSONAL DATA,328618,,ADOPTION & FOSTERING          
INDEPENDENT FOSTERING PLACEMEN,9270,INDEPENDENT FOSTERING         ,08/07/2014,3671604,630122734,"5,868.80",REDACTED PERSONAL DATA,328618,,ADOPTION & FOSTERING          
INDEPENDENT FOSTERING PLACEMEN,9270,INDEPENDENT FOSTERING         ,08/07/2014,3671605,630122737,"3,676.29",REDACTED PERSONAL DATA,328618,,ADOPTION & FOSTERING          
CWD INDEPENDENT PLACEMENTS    ,9270,INDEPENDENT FOSTERING         ,08/07/2014,3671606,630122742,"5,593.28",REDACTED PERSONAL DATA,328618,,ADOPTION & FOSTERING          
LEAVING CARE                  ,9270,INDEPENDENT FOSTERING         ,08/07/2014,3671607,630122744,"3,178.00",REDACTED PERSONAL DATA,328618,,ADOPTION & FOSTERING          
INDEPENDENT FOSTERING PLACEMEN,9270,INDEPENDENT FOSTERING         ,08/07/2014,3671608,19855,"3,084.20",REDACTED PERSONAL DATA,521940,,ADOPTION & FOSTERING          
INDEPENDENT FOSTERING PLACEMEN,9270,INDEPENDENT FOSTERING         ,08/07/2014,3671609,26902,"3,703.00",REDACTED PERSONAL DATA,366456,,ADOPTION & FOSTERING          
INDEPENDENT FOSTERING PLACEMEN,9270,INDEPENDENT FOSTERING         ,08/07/2014,3671610,26903,"3,703.00",REDACTED PERSONAL DATA,366456,,ADOPTION & FOSTERING          
INDEPENDENT FOSTERING PLACEMEN,9270,INDEPENDENT FOSTERING         ,08/07/2014,3671611,630116710,"3,604.25",REDACTED PERSONAL DATA,328618,,ADOPTION & FOSTERING          
INDEPENDENT FOSTERING PLACEMEN,9270,INDEPENDENT FOSTERING         ,08/07/2014,3671612,630122723,"3,199.84",REDACTED PERSONAL DATA,328618,,ADOPTION & FOSTERING          
INDEPENDENT FOSTERING PLACEMEN,9270,INDEPENDENT FOSTERING         ,08/07/2014,3671613,630122724,"3,676.29",REDACTED PERSONAL DATA,328618,,ADOPTION & FOSTERING          
INDEPENDENT FOSTERING PLACEMEN,9270,INDEPENDENT FOSTERING         ,08/07/2014,3671614,630122728,"3,604.25",REDACTED PERSONAL DATA,328618,,ADOPTION & FOSTERING          
INDEPENDENT FOSTERING PLACEMEN,9270,INDEPENDENT FOSTERING         ,08/07/2014,3671615,630122729,"4,751.88",REDACTED PERSONAL DATA,328618,,ADOPTION & FOSTERING          
COMMUNITY PHARMACY            ,9030,HEALTH                        ,08/07/2014,3672041,MPA20140708180 14        ,546.40,GLEADLESS VALLEY PHARMACY LTD           ,582171,,PUBLIC HEALTH SUPPLIERS       
COMMUNITY PHARMACY            ,9030,HEALTH                        ,08/07/2014,3672043,MPA20140708180 17        ,304.00,LLOYDSPHARMACY (346)                    ,583358,,PUBLIC HEALTH SUPPLIERS       
COMMUNITY PHARMACY            ,9030,HEALTH                        ,08/07/2014,3672047,MPA20140708180 21        ,273.60,LLOYDSPHARMACY                          ,583254,,PUBLIC HEALTH SUPPLIERS       
COMMUNITY PHARMACY            ,9030,HEALTH                        ,08/07/2014,3672048,MPA20140708180 22        ,288.00,LLOYDSPHARMACY (6417)                   ,584552,,PUBLIC HEALTH SUPPLIERS       
COMMUNITY PHARMACY            ,9030,HEALTH                        ,08/07/2014,3672049,MPA20140708180 23        ,420.80,LLOYDSPHARMACY (6502)                   ,583384,,PUBLIC HEALTH SUPPLIERS       
COMMUNITY PHARMACY            ,9030,HEALTH                        ,08/07/2014,3672055,MPA20140708180 30        ,636.80,LLOYDSPHARMACY                          ,583255,,PUBLIC HEALTH SUPPLIERS       
COMMUNITY PHARMACY            ,9030,HEALTH                        ,08/07/2014,3672056,MPA20140708180 32        ,816.80,LLOYDSPHARMACY(0296) JORDANTHORPE       ,583298,,PUBLIC HEALTH SUPPLIERS       
COMMUNITY PHARMACY            ,9030,HEALTH                        ,08/07/2014,3672064,MPA20140708180 41        ,260.80,ROWLANDS PHARMACY 1270                  ,582377,,PUBLIC HEALTH SUPPLIERS       
COMMUNITY PHARMACY            ,9030,HEALTH                        ,08/07/2014,3672065,MPA20140708180 43        ,374.40,ROWLANDS PHARMACY 1263                  ,584547,,PUBLIC HEALTH SUPPLIERS       
COMMUNITY PHARMACY            ,9030,HEALTH                        ,08/07/2014,3672068,MPA20140708180 46        ,334.40,ROWLANDS PHARMACY 1271                  ,584548,,PUBLIC HEALTH SUPPLIERS       
COMMUNITY PHARMACY            ,9030,HEALTH                        ,08/07/2014,3672070,MPA20140708180 48        ,283.20,SECRET POTIONS LTD                      ,581325,,PUBLIC HEALTH SUPPLIERS       
COMMUNITY PHARMACY            ,9030,HEALTH                        ,08/07/2014,3672072,MPA20140708180 51        ,267.20,TESCO STORES LTD.                       ,581492,,PUBLIC HEALTH SUPPLIERS       
COMMUNITY PHARMACY            ,9030,HEALTH                        ,08/07/2014,3672076,MPA20140708180 56        ,"1,043.20",BESTWAY NATIONAL CHEMISTS LIMITED       ,581483,,CHEMISTS' & PHARMACISTS' SUPPL
COMMUNITY PHARMACY            ,9030,HEALTH                        ,08/07/2014,3672078,MPA20140708180 58        ,765.60,BESTWAY NATIONAL CHEMISTS LIMITED       ,581483,,CHEMISTS' & PHARMACISTS' SUPPL
COMMUNITY PHARMACY            ,9030,HEALTH                        ,08/07/2014,3672081,MPA20140708180 62        ,270.40,BESTWAY NATIONAL CHEMISTS LIMITED       ,581483,,CHEMISTS' & PHARMACISTS' SUPPL
COMMUNITY PHARMACY            ,9030,HEALTH                        ,08/07/2014,3672082,MPA20140708180 64        ,630.40,BESTWAY NATIONAL CHEMISTS LIMITED       ,581483,,CHEMISTS' & PHARMACISTS' SUPPL
COMMUNITY PHARMACY            ,9030,HEALTH                        ,08/07/2014,3672085,MPA20140708180 68        ,624.80,MANOR COM PHARMACY LTD T/A VANTAGE PHARM,582719,,PUBLIC HEALTH SUPPLIERS       
COMMUNITY PHARMACY            ,9030,HEALTH                        ,08/07/2014,3672087,MPA20140708180 7         ,260.80,BOOTS UK STORE 56                       ,583957,,PUBLIC HEALTH SUPPLIERS       
COMMUNITY PHARMACY            ,9030,HEALTH                        ,08/07/2014,3672088,MPA20140708180 70        ,430.40,HI WELDRICK LTD  (PHARMACY)             ,584182,,PUBLIC HEALTH SUPPLIERS       
COMMUNITY PHARMACY            ,9030,HEALTH                        ,08/07/2014,3672091,MPA20140708180 73        ,251.20,HI WELDRICK LTD  (PHARMACY)             ,584182,,PUBLIC HEALTH SUPPLIERS       
COMMUNITY PHARMACY            ,9030,HEALTH                        ,08/07/2014,3672093,MPA20140708180 75        ,597.60,ROWLANDS PHARMACY 1421                  ,584551,,PUBLIC HEALTH SUPPLIERS       
COMMUNITY PHARMACY            ,9030,HEALTH                        ,08/07/2014,3672097,MPA20140708180 8         ,320.00,BOOTS UK LTD                            ,582725,,PUBLIC HEALTH SUPPLIERS       
COMMUNITY PHARMACY            ,9030,HEALTH                        ,08/07/2014,3672102,MPA20140708180 84        ,306.40,BOOTS UK LTD                            ,584539,,PUBLIC HEALTH SUPPLIERS       
PURCHASING LEARNING DISABILITI,9200,CONTINUING RESIDENTIAL CARE   ,08/07/2014,3671564,J888355 220614           ,"6,885.52",ROSELEA                                 ,586292,,RESIDENTIAL CARE HOMES        
PURCHASING LEARNING DISABILITI,9200,CONTINUING RESIDENTIAL CARE   ,08/07/2014,3671565,J888518 220614           ,"5,995.12",HAMILTON LODGE                          ,418581,,RESIDENTIAL CARE HOMES        
PURCHASING LEARNING DISABILITI,9200,CONTINUING RESIDENTIAL CARE   ,08/07/2014,3671566,J888525 220614           ,"6,665.84",EDGECUMBE HOUSE C/O VOYAGE LTD          ,380015,,RESIDENTIAL CARE HOMES        
PURCHASING LEARNING DISABILITI,9200,CONTINUING RESIDENTIAL CARE   ,08/07/2014,3671567,J888537 220614           ,"6,445.68",RED HOUSE                               ,387005,,HOTELS                        
PURCHASING LEARNING DISABILITI,9200,CONTINUING RESIDENTIAL CARE   ,08/07/2014,3671568,J888548 220614           ,"6,113.60",MILBURY CARE                            ,417855,,RESIDENTIAL CARE HOMES        
PURCHASING LEARNING DISABILITI,9200,CONTINUING RESIDENTIAL CARE   ,08/07/2014,3671569,J888550 220614           ,"4,836.84",CHESTNUT GRANGE C/O VOYAGE LTD          ,418583,,RESIDENTIAL CARE HOMES        
PURCHASING LEARNING DISABILITI,9200,CONTINUING RESIDENTIAL CARE   ,08/07/2014,3671570,J888563 220614           ,"4,871.36",GORSE HILL  C/O VOYAGE LTD              ,418457,,RESIDENTIAL CARE HOMES        
PDSI PURCHASING               ,9200,CONTINUING RESIDENTIAL CARE   ,08/07/2014,3671571,J888579 220614           ,"6,865.12",FENNEY LODGE                            ,408029,,RESIDENTIAL CARE HOMES        
PURCHASING LEARNING DISABILITI,9200,CONTINUING RESIDENTIAL CARE   ,08/07/2014,3671571,J888579 220614           ,"6,793.84",FENNEY LODGE                            ,408029,,RESIDENTIAL CARE HOMES        
ADULT SOCIAL CARE PURCHASING  ,9200,CONTINUING RESIDENTIAL CARE   ,08/07/2014,3671572,J907541 220614           ,"1,580.00",WOODBANK HOUSE CARE LTD                 ,361780,,REST & RETIREMENT HOMES       
PURCHASING LEARNING DISABILITI,9200,CONTINUING RESIDENTIAL CARE   ,08/07/2014,3671573,J924332 200714           ,"6,885.52",ROSELEA                                 ,586292,,RESIDENTIAL CARE HOMES        
ADULT SOCIAL CARE PURCHASING  ,9200,CONTINUING RESIDENTIAL CARE   ,08/07/2014,3671574,J924346 200714           ,"13,440.64",142 WENSLEY STREET                      ,361819,,"HOUSING ASSOCIATIONS, SOCIETIE"
PURCHASING LEARNING DISABILITI,9200,CONTINUING RESIDENTIAL CARE   ,08/07/2014,3671574,J924346 200714           ,"20,713.64",142 WENSLEY STREET                      ,361819,,"HOUSING ASSOCIATIONS, SOCIETIE"
ADULT SOCIAL CARE PURCHASING  ,9200,CONTINUING RESIDENTIAL CARE   ,08/07/2014,3671575,J924412 200714           ,"13,532.86",WOODBANK HOUSE CARE LTD                 ,361780,,REST & RETIREMENT HOMES       
PURCHASING LEARNING DISABILITI,9240,SUPPORTED LIVING CARE         ,08/07/2014,3671576,J924456 200714           ,"1,133.92",15 COLLEY ROAD                          ,361823,,DISABILITY & SPECIAL NEEDS - S
PURCHASING LEARNING DISABILITI,9210,FUNDED NURSING CARE (INCOME)  ,08/07/2014,3671577,J924459 200714           ,561.28,261 HIGH GREAVE                         ,362155,,DISABILITY & SPECIAL NEEDS - S
ADULT SOCIAL CARE PURCHASING  ,9240,SUPPORTED LIVING CARE         ,08/07/2014,3671577,J924459 200714           ,"2,267.84",261 HIGH GREAVE                         ,362155,,DISABILITY & SPECIAL NEEDS - S
PURCHASING LEARNING DISABILITI,9240,SUPPORTED LIVING CARE         ,08/07/2014,3671577,J924459 200714           ,"1,706.56",261 HIGH GREAVE                         ,362155,,DISABILITY & SPECIAL NEEDS - S
PURCHASING LEARNING DISABILITI,9240,SUPPORTED LIVING CARE         ,08/07/2014,3671578,J924460 200714           ,"1,494.88",2-8 STALKER LEES COURT                  ,362161,,DISABILITY & SPECIAL NEEDS - S
PURCHASING LEARNING DISABILITI,9240,SUPPORTED LIVING CARE         ,08/07/2014,3671579,J924464 200714           ,"4,110.24",930 GLEADLESS ROAD                      ,361807,,DISABILITY & SPECIAL NEEDS - S
PURCHASING LEARNING DISABILITI,9200,CONTINUING RESIDENTIAL CARE   ,08/07/2014,3671580,J924493 200714           ,"5,995.12",HAMILTON LODGE                          ,418581,,RESIDENTIAL CARE HOMES        
PURCHASING LEARNING DISABILITI,9200,CONTINUING RESIDENTIAL CARE   ,08/07/2014,3671581,J924501 200714           ,"6,665.84",EDGECUMBE HOUSE C/O VOYAGE LTD          ,380015,,RESIDENTIAL CARE HOMES        
PURCHASING LEARNING DISABILITI,9240,SUPPORTED LIVING CARE         ,08/07/2014,3671582,J924502 200714           ,992.20,2-8 STALKER LEES COURT                  ,362161,,DISABILITY & SPECIAL NEEDS - S
PURCHASING LEARNING DISABILITI,9240,SUPPORTED LIVING CARE         ,08/07/2014,3671583,J924503 200714           ,992.20,2-8 STALKER LEES COURT                  ,362161,,DISABILITY & SPECIAL NEEDS - S
PURCHASING LEARNING DISABILITI,9200,CONTINUING RESIDENTIAL CARE   ,08/07/2014,3671584,J924513 200714           ,"6,445.68",RED HOUSE                               ,387005,,HOTELS                        
PURCHASING LEARNING DISABILITI,9200,CONTINUING RESIDENTIAL CARE   ,08/07/2014,3671585,J924526 200714           ,"4,836.84",CHESTNUT GRANGE C/O VOYAGE LTD          ,418583,,RESIDENTIAL CARE HOMES        
PURCHASING LEARNING DISABILITI,9200,CONTINUING RESIDENTIAL CARE   ,08/07/2014,3671586,J924539 200714           ,"4,871.36",GORSE HILL  C/O VOYAGE LTD              ,418457,,RESIDENTIAL CARE HOMES        
PDSI PURCHASING               ,9200,CONTINUING RESIDENTIAL CARE   ,08/07/2014,3671587,J924555 200714           ,"6,865.12",FENNEY LODGE                            ,408029,,RESIDENTIAL CARE HOMES        
PURCHASING LEARNING DISABILITI,9200,CONTINUING RESIDENTIAL CARE   ,08/07/2014,3671587,J924555 200714           ,"6,793.84",FENNEY LODGE                            ,408029,,RESIDENTIAL CARE HOMES        
PURCHASING LEARNING DISABILITI,9240,SUPPORTED LIVING CARE         ,08/07/2014,3671588,J924559 200714           ,"1,347.52",212 SICEY AVENUE                        ,492717,,DISABILITY & SPECIAL NEEDS - S
ADULT SOCIAL CARE PURCHASING  ,9240,SUPPORTED LIVING CARE         ,08/07/2014,3671589,J924560 200714           ,894.56,1 BLACKBERRY FLATS                      ,493437,,SHELTERED HOUSING             
PURCHASING LEARNING DISABILITI,9240,SUPPORTED LIVING CARE         ,08/07/2014,3671590,J924561 200714           ,894.56,37 HOLLINSEND ROAD                      ,493438,,DISABILITY & SPECIAL NEEDS - S
PURCHASING LEARNING DISABILITI,9200,CONTINUING RESIDENTIAL CARE   ,08/07/2014,3671591,J924562 200714           ,"48,083.92",LONGLEY HALL LTD                        ,501697,,DISABILITY & SPECIAL NEEDS - S
PURCHASING LEARNING DISABILITI,9200,CONTINUING RESIDENTIAL CARE   ,08/07/2014,3671592,J930152 200714           ,"6,113.60",MILBURY CARE                            ,417855,,RESIDENTIAL CARE HOMES        
ADULT SOCIAL CARE PURCHASING  ,9210,CONTINUING NURSING CARE       ,08/07/2014,3671593,J930688 200714           ,"4,764.00",ALPINE HEALTHCARE LTD                   ,362125,,NURSING HOMES                 
ADULT SOCIAL CARE PURCHASING  ,9200,CONTINUING RESIDENTIAL CARE   ,08/07/2014,3671594,J931597 200714           ,"11,031.71",DEERLANDS (SHEFFCARE LTD)               ,361836,,RESIDENTIAL CARE HOMES        
ADULT SOCIAL CARE PURCHASING  ,9200,CONTINUING RESIDENTIAL CARE   ,08/07/2014,3671595,J931599 200714           ,"1,918.57",HAZELDENE NURSING HOME                  ,340163,,NURSING HOMES                 
ADULT SOCIAL CARE PURCHASING  ,9210,CONTINUING NURSING CARE       ,08/07/2014,3671595,J931599 200714           ,"2,418.00",HAZELDENE NURSING HOME                  ,340163,,NURSING HOMES                 
ADULT SOCIAL CARE PURCHASING  ,9210,CONTINUING NURSING CARE       ,08/07/2014,3671596,J931601 200714           ,"2,346.00",HENLEIGH HALL                           ,362109,,NURSING HOMES                 
ADULT SOCIAL CARE PURCHASING  ,9200,SHORT TERM RESIDENTIAL CARE   ,08/07/2014,3671597,J931345 220614           ,"4,868.57",MIDHURST ROAD (SHEFFCARE LTD)           ,361801,,RESIDENTIAL CARE HOMES        
ADULT SOCIAL CARE PURCHASING  ,9200,SHORT TERM RESIDENTIAL CARE   ,08/07/2014,3671598,J931350 220614           ,790.00,HADDON COURT NURSING HOME               ,361916,,NURSING HOMES                 
ADULT SOCIAL CARE PURCHASING  ,9200,SHORT TERM RESIDENTIAL CARE   ,08/07/2014,3671599,J931564 220614           ,"3,866.57",DEERLANDS (SHEFFCARE LTD)               ,361836,,RESIDENTIAL CARE HOMES        
ADULT SOCIAL CARE PURCHASING  ,9200,SHORT TERM RESIDENTIAL CARE   ,08/07/2014,3671600,J931567 220614           ,554.71,HARTWELL HOUSE                          ,361785,,NURSING HOMES                 
EP NORTH EAST LINC            ,1194,OTHER FEES                    ,09/07/2014,3672690,ERS INVOICE103165        ,"5,995.00",S R SMITH BUILDERS                      ,597689,,BUILDERS                      
EP NORTH EAST LINC            ,1194,OTHER FEES                    ,09/07/2014,3672691,ERS INVOICE103166        ,"5,786.75",NEWVIC PROPERTY SERVICES LTD            ,597861,Unclassified Non Trade,OUT OF SCOPE FOR SIC MONITORIN
GENERATION LINK LOTTO 2014    ,8350,MISCELLANEOUS EXPENSES        ,09/07/2014,3672693,ERS INVOICE103168        ,605.77,JENNY LAIRD                             ,579683,,COUNSELLING & ADVICE SERVICES 
DISABLED GRANTS               ,1165,NC&A OTHER                    ,09/07/2014,3672807,ERS INVOICE103171        ,"1,110.13",REDACTED PERSONAL DATA,311727,,ESTATE AGENTS                 
DISABLED GRANTS               ,1165,NC&A OTHER                    ,09/07/2014,3672808,ERS INVOICE103172        ,"7,023.00",WESTWOOD JOINERY & CONSTRUCTION LTD     ,558811,,CONSTRUCTION CONTRACTORS - GEN
MINOR WORK GRANTS             ,1165,NC&A OTHER                    ,09/07/2014,3672809,ERS INVOICE103173        ,"1,895.00",WP BUILDERS                             ,526547,,BUILDERS                      
DISABLED GRANTS               ,1165,NC&A OTHER                    ,09/07/2014,3672810,ERS INVOICE103174        ,"4,592.00",REDACTED PERSONAL DATA,590401,Unclassified Non Trade,OUT OF SCOPE FOR SIC MONITORIN
DISABLED GRANTS               ,1165,NC&A OTHER                    ,09/07/2014,3672811,ERS INVOICE103175        ,"4,622.80",REDACTED PERSONAL DATA,591981,Unclassified Non Trade,OUT OF SCOPE FOR SIC MONITORIN
CORONIAL SERVICES             ,8440,PATHOLOGIST INVOICE           ,09/07/2014,3672812,ERS INVOICE103176        ,595.90,REDACTED PERSONAL DATA,554404,,DOCTORS                       
16 - 19 BURSARY FUNDS         ,8440,FEE EXPENSES                  ,09/07/2014,3672813,ERS INVOICE103177        ,300.00,REDACTED PERSONAL DATA,597864,Unclassified Non Trade,OUT OF SCOPE FOR SIC MONITORIN
16 - 19 BURSARY FUNDS         ,8440,FEE EXPENSES                  ,09/07/2014,3672814,ERS INVOICE103178        ,260.00,REDACTED PERSONAL DATA,597864,Unclassified Non Trade,OUT OF SCOPE FOR SIC MONITORIN
CORONIAL SERVICES             ,8440,WITNESS FEES                  ,09/07/2014,3672817,ERS INVOICE103181        ,278.40,REDACTED PERSONAL DATA,597891,Unclassified Non Trade,OUT OF SCOPE FOR SIC MONITORIN
CORONIAL SERVICES             ,8440,WITNESS FEES                  ,09/07/2014,3672818,ERS INVOICE103182        ,353.88,REDACTED PERSONAL DATA,597897,Unclassified Non Trade,OUT OF SCOPE FOR SIC MONITORIN
MCA SUPPORT TEAM              ,8440,FEE EXPENSES                  ,09/07/2014,3672824,ERS INVOICE103188        ,"3,780.00",REDACTED PERSONAL DATA,584366,Unclassified Non Trade,OUT OF SCOPE FOR SIC MONITORIN
MCA SUPPORT TEAM              ,8440,FEE EXPENSES                  ,09/07/2014,3672825,ERS INVOICE103189        ,741.30,DR CATRIONA MURRAY                      ,570269,,DOCTORS                       
MCA SUPPORT TEAM              ,8440,FEE EXPENSES                  ,09/07/2014,3672829,ERS INVOICE103195        ,"1,651.95",REDACTED PERSONAL DATA,584362,,DOCTORS                       
SHEFFIELD HAL                 ,1194,OTHER FEES                    ,09/07/2014,3672832,ERS INVOICE103199        ,"5,810.00",CHAPELTOWN GLASS WINDOW & FACIA COMPANY ,427494,,DOUBLE GLAZING INSTALLERS     
ECCLESALL WOODS SAWMILL SITE  ,8260,WOODLAND DEVELOPMENT EXPENSES ,09/07/2014,3672835,ERS INVOICE103202        ,300.00,SAMANTHA PEARCE                         ,516872,,CANE GOODS & BASKETWARE       
HULL - HUMBER SUB REGION HAL  ,1194,OTHER FEES                    ,09/07/2014,3672839,ERS INVOICE103208        ,"12,496.96",JALLAND BUILDING SERVICES LTD           ,597926,Unclassified Non Trade,OUT OF SCOPE FOR SIC MONITORIN
 ECO DRIVING LSTF MAIN        ,8460,CONSULTANTS FEES              ,09/07/2014,3659226,FG/097                   ,482.80, PRESTIGE FLEET CONSULTANTS LTD         ,594606,,TRAINING SERVICES             
SCC BALANCE SHEET             ,1540,DEMOLITION CONTROL ACCOUNT    ,09/07/2014,3660838,T23986                   ,"12,761.48",REDHILL ANALYSTS LTD                    ,548622,,SAFETY CONSULTANTS            
RED TAPE CENTRAL              ,8490,EXAM FEES                     ,09/07/2014,3665037,803370233,324.00,CITY & GUILDS                           ,424267,,EXAMINATION BOARDS            
PURCHASING LEARNING DISABILITI,9190,EX POOL CLIENTS               ,09/07/2014,3666310,SI05/00010089            ,"5,310.51",DIMENSIONS (UK) LTD.                    ,386516,,DISABILITY & SPECIAL NEEDS - S
LOWFIELD                      ,8440,FEE EXPENSES                  ,09/07/2014,3667452,1438,"2,792.00",BINGHAM AND CLARKSON LTD                ,469147,,PROPERTY MAINTENANCE & REPAIRS
 ECO DRIVING LSTF MAIN        ,8440,FEE EXPENSES                  ,09/07/2014,3668550,45984,500.00,POLICE AND CRIME COMMISSIONER STH YORKSM,301616,,POLICE                        
SCHOOL DRINKING MILK          ,8140,GROCERIES                     ,09/07/2014,3670015,22,"18,667.76",MEDINA CAPITAL DAIRY CO LTD             ,524568,,DAIRIES                       
SHORT BREAKS FUNDING FOR DISAB,9120,OTHER AGENCIES                ,09/07/2014,3668792,SNIPS0003/2014           ,"2,400.00",STEPHEN HARRISON ACADEMY                ,479429,,"SNOOKER, BILLIARDS & POOL HALL"
STANIFORTH ROAD DEPOT         ,8540,SECURITY SERVICES             ,09/07/2014,3668836,INV067381                ,"4,825.62",CONSTANT SECURITY SERVICES LIMITED      ,501937,,SECURITY SERVICES             
SAFER COMMUNITIES PARTNERSHIP ,9120,OTHER AGENCIES                ,09/07/2014,3668837,4,"3,916.66",SWWOP                                   ,379956,,CHARITIES & VOLUNTARY ORGANISA
COMMUNICATIONS                ,8550,OTHER SERVICES                ,09/07/2014,3668854,INV166995                ,475.20,A PINDER LTD                            ,202627,,COPYING & DUPLICATING SERVICES
PEST CONTROL                  ,8010,EQUIPMENT PURCHASE AND REPAIR ,09/07/2014,3668883,SI02-0028394             ,543.82,KILLGERM CHEMICALS LTD                  ,206229,,PEST & VERMIN CONTROL PRODUCTS
PROVIDER CONTRACT AUG13-JUL14 ,9120,OTHER AGENCIES                ,09/07/2014,3669405,1314_153                 ,288.00,REACH SOUTH SHEFFIELD                   ,394371,,CHARITIES & VOLUNTARY ORGANISA
CARBROOK                      ,6020,REPAIRS AND MTCE - PROGRAMMED ,09/07/2014,3669448,61361068,785.30,PHS GROUP PLC                           ,207528,,TOWEL SUPPLY & WASHROOM SERVIC
PARKS OPS EAST & NORTH EAST   ,7020,VEHICLE FUEL COSTS            ,09/07/2014,3669527,2749636,"1,548.50",CERTAS ENERGY UK LTD                    ,490002,,OIL FUEL DISTRIBUTORS         
MINOR WORKS & ADAPTATIONS     ,6020,REPAIRS AND MTCE - PROGRAMMED ,09/07/2014,3669828,602,531.00,MR H S CUTTS NEIL CONSTRUCTION          ,453315,,BUILDING SERVICES             
MINOR WORKS & ADAPTATIONS     ,6030,REPAIRS AND MTCE - RESPONSIVE ,09/07/2014,3669829,601,329.00,MR H S CUTTS NEIL CONSTRUCTION          ,453315,,BUILDING SERVICES             
HEALTH TRAINERS               ,9030,HEALTH                        ,09/07/2014,3669836,206,"2,993.43",MANOR & CASTLE - HEALTHY LIVING/PHS     ,376896,,DEVELOPMENT AGENCIES          
PROVIDER CONTRACT AUG13-JUL14 ,9120,OTHER AGENCIES                ,09/07/2014,3669931,WCF13B049/CREDIT         ,395.00,WOODHOUSE & DISTRICT COMMUNITY FORUM    ,482835,,COMMUNITY PROJECTS            
PROVIDER CONTRACT AUG13-JUL14 ,9120,OTHER AGENCIES                ,09/07/2014,3669934,31/14                    ,320.25,DARNALL FORUM LTD                       ,447697,,COMMUNITY PROJECTS            
PROVIDER CONTRACT AUG13-JUL14 ,9120,OTHER AGENCIES                ,09/07/2014,3669937,30/14                    ,320.25,DARNALL FORUM LTD                       ,447697,,COMMUNITY PROJECTS            
PROVIDER CONTRACT AUG13-JUL14 ,9120,OTHER AGENCIES                ,09/07/2014,3669939,29/14                    ,320.25,DARNALL FORUM LTD                       ,447697,,COMMUNITY PROJECTS            
WOODLANDS                     ,6370,GROUNDS MTCE AND ARBORICULTURE,09/07/2014,3669951,O398                     ,900.00,AAA 1ST CALL                            ,361147,,SKIP HIRE                     
WOODLANDS                     ,6370,GROUNDS MTCE AND ARBORICULTURE,09/07/2014,3669952,O389                     ,747.00,AAA 1ST CALL                            ,361147,,SKIP HIRE                     
PROVIDER CONTRACT AUG13-JUL14 ,9120,OTHER AGENCIES                ,09/07/2014,3669957,2484,432.00,ZEST                                    ,492467,,CHARITIES & VOLUNTARY ORGANISA
ADULT SOCIAL CARE PURCHASING  ,9160,PARTNERSHIP CONTRACTS         ,09/07/2014,3670013,2014/04                  ,"37,514.50",SHEFFIELD CHURCHES COUNCIL FOR COMM CARE,337028,,CHARITIES & VOLUNTARY ORGANISA
CATERING CONTRACT             ,8440,FEE EXPENSES                  ,09/07/2014,3670023,138057,462.25,PARENTPAY LIMITED                       ,591676,,SCHOOLS - LOCAL AUTHORITY     
RED TAPE CENTRAL              ,8490,EXAM FEES                     ,09/07/2014,3670050,SI00004488               ,"1,205.00",NCFE NATIONAL AWARDING BODY             ,348112,,EXAMINATION BOARDS            
CATERING CONTRACT             ,8440,FEE EXPENSES                  ,09/07/2014,3670058,138070,456.55,PARENTPAY LIMITED                       ,591676,,SCHOOLS - LOCAL AUTHORITY     
SUPPORTED HOUSING             ,8050,FURNITURE PURCHASES           ,09/07/2014,3670251,424222,"7,555.00",KOZEE SLEEP                             ,531691,,"BEDS, BEDDING & BLANKETS      "
MEDICO LEGAL CENTRE           ,8010,EQUIPMENT PURCHASE AND REPAIR ,09/07/2014,3670487,257128747,859.17,YORKSHIRE PURCHASING ORGANISATION       ,295997,,PURCHASING SERVICES           
PROVIDER CONTRACT AUG13-JUL14 ,9120,OTHER AGENCIES                ,09/07/2014,3670489,27031401,463.50,LEARN FOR LIFE ENTERPRISE LIMITED       ,446117,,CHARITIES & VOLUNTARY ORGANISA
PROVIDER CONTRACT AUG13-JUL14 ,9120,OTHER AGENCIES                ,09/07/2014,3670496,27031403,343.50,LEARN FOR LIFE ENTERPRISE LIMITED       ,446117,,CHARITIES & VOLUNTARY ORGANISA
PROVIDER CONTRACT AUG13-JUL14 ,9120,OTHER AGENCIES                ,09/07/2014,3670498,27031402,343.50,LEARN FOR LIFE ENTERPRISE LIMITED       ,446117,,CHARITIES & VOLUNTARY ORGANISA
PROVIDER CONTRACT AUG13-JUL14 ,9120,OTHER AGENCIES                ,09/07/2014,3670499,27031404,463.50,LEARN FOR LIFE ENTERPRISE LIMITED       ,446117,,CHARITIES & VOLUNTARY ORGANISA
PROVIDER CONTRACT AUG13-JUL14 ,9120,OTHER AGENCIES                ,09/07/2014,3670500,1006,343.50,SHEFFIELD ASSOCIATION FOR THE VOLUNTARY ,350936,,CHARITIES & VOLUNTARY ORGANISA
PROVIDER CONTRACT AUG13-JUL14 ,9120,OTHER AGENCIES                ,09/07/2014,3670501,27031407,343.50,LEARN FOR LIFE ENTERPRISE LIMITED       ,446117,,CHARITIES & VOLUNTARY ORGANISA
PROVIDER CONTRACT AUG13-JUL14 ,9120,OTHER AGENCIES                ,09/07/2014,3670502,1007,343.50,SHEFFIELD ASSOCIATION FOR THE VOLUNTARY ,350936,,CHARITIES & VOLUNTARY ORGANISA
PROVIDER CONTRACT AUG13-JUL14 ,9120,OTHER AGENCIES                ,09/07/2014,3670503,1025,801.50,SHEFFIELD ASSOCIATION FOR THE VOLUNTARY ,350936,,CHARITIES & VOLUNTARY ORGANISA
PROVIDER CONTRACT AUG13-JUL14 ,9120,OTHER AGENCIES                ,09/07/2014,3670504,WCF13B050                ,845.00,WOODHOUSE & DISTRICT COMMUNITY FORUM    ,482835,,COMMUNITY PROJECTS            
PROVIDER CONTRACT AUG13-JUL14 ,9120,OTHER AGENCIES                ,09/07/2014,3670506,1026,801.50,SHEFFIELD ASSOCIATION FOR THE VOLUNTARY ,350936,,CHARITIES & VOLUNTARY ORGANISA
PROVIDER CONTRACT AUG13-JUL14 ,9120,OTHER AGENCIES                ,09/07/2014,3670507,1032,451.50,SHEFFIELD ASSOCIATION FOR THE VOLUNTARY ,350936,,CHARITIES & VOLUNTARY ORGANISA
PROVIDER CONTRACT AUG13-JUL14 ,9120,OTHER AGENCIES                ,09/07/2014,3670510,1031,801.50,SHEFFIELD ASSOCIATION FOR THE VOLUNTARY ,350936,,CHARITIES & VOLUNTARY ORGANISA
PROVIDER CONTRACT AUG13-JUL14 ,9120,OTHER AGENCIES                ,09/07/2014,3670511,23/14                    ,"1,150.50",DARNALL FORUM LTD                       ,447697,,COMMUNITY PROJECTS            
PROVIDER CONTRACT AUG13-JUL14 ,9120,OTHER AGENCIES                ,09/07/2014,3670512,1028,801.50,SHEFFIELD ASSOCIATION FOR THE VOLUNTARY ,350936,,CHARITIES & VOLUNTARY ORGANISA
PROVIDER CONTRACT AUG13-JUL14 ,9120,OTHER AGENCIES                ,09/07/2014,3670513,24/14                    ,451.50,DARNALL FORUM LTD                       ,447697,,COMMUNITY PROJECTS            
PROVIDER CONTRACT AUG13-JUL14 ,9120,OTHER AGENCIES                ,09/07/2014,3670514,25/14                    ,451.50,DARNALL FORUM LTD                       ,447697,,COMMUNITY PROJECTS            
PROVIDER CONTRACT AUG13-JUL14 ,9120,OTHER AGENCIES                ,09/07/2014,3670515,26/14                    ,451.50,DARNALL FORUM LTD                       ,447697,,COMMUNITY PROJECTS            
PROVIDER CONTRACT AUG13-JUL14 ,9120,OTHER AGENCIES                ,09/07/2014,3670516,27/14                    ,451.50,DARNALL FORUM LTD                       ,447697,,COMMUNITY PROJECTS            
PROVIDER CONTRACT AUG13-JUL14 ,9120,OTHER AGENCIES                ,09/07/2014,3670517,28/14                    ,276.50,DARNALL FORUM LTD                       ,447697,,COMMUNITY PROJECTS            
COMMUNICATIONS                ,8550,OTHER SERVICES                ,09/07/2014,3670559,15828,695.00,JOHN BAXTERS & SONS LTD                 ,576003,,PRINTERS                      
GATEWAY 3 GA-C                ,7140,PUBLIC TRANSPORT COSTS        ,09/07/2014,3670563,SL0067378                ,956.25,SYPTE                                   ,208757,,BUS & COACH OPERATORS & STATIO
GATEWAY 3 GA-C                ,7140,PUBLIC TRANSPORT COSTS        ,09/07/2014,3670615,SL0067379                ,956.25,SYPTE                                   ,208757,,BUS & COACH OPERATORS & STATIO
72 GREGG HOUSE ROAD           ,6210,RENTS                         ,09/07/2014,3670657,SHA025600                ,360.20,SANCTUARY GROUP                         ,351140,,HOME SUPPORT SERVICES         
GP HEALTH CHECKS              ,9120,OTHER AGENCIES                ,09/07/2014,3670664,C88028_0002              ,"2,010.00",BROOMHILL SURGERY                       ,581122,,PUBLIC HEALTH SUPPLIERS       
GP HEALTH CHECKS              ,9120,OTHER AGENCIES                ,09/07/2014,3670691,C88026_0002              ,"1,300.00",THE SLOAN PRACTICE (MEDICAL CENTRE)     ,582268,,PUBLIC HEALTH SUPPLIERS       
GP HEALTH CHECKS              ,9120,OTHER AGENCIES                ,09/07/2014,3670694,C88061_0002              ,300.00,BENTS GREEN SURGERY                     ,580756,,DOCTORS                       
AGENCY STAFF                  ,5610,AGENCY STAFF - INVOICE        ,09/07/2014,3670733,CE0226746849D1           ,"141,790.86",REED                                    ,341818,,EMPLOYMENT & RECRUITMENT AGENC
GP HEALTH CHECKS              ,9120,OTHER AGENCIES                ,09/07/2014,3670753,C88031_0002              ,"1,390.00",UPPERTHORPE MEDICAL CENTRE              ,581097,,PUBLIC HEALTH SUPPLIERS       
GP HEALTH CHECKS              ,9120,OTHER AGENCIES                ,09/07/2014,3670754,C88656_0002              ,360.00,STORRS MEADOW LTD                       ,582163,,DOCTORS                       
PARKS OPS SOUTH & SOUTH EAST  ,8060,MATERIALS AND SUPPLIES GENERAL,09/07/2014,3671089,SI145278                 ,990.24,FLEET (LINE MARKERS) LTD                ,204890,,SPORTS EQUIPMENT MNFRS & DISTR
WORK EXPERIENCE               ,5750,TRAINING EXPENDITURE          ,09/07/2014,3671177,27833,855.00,THE SOURCE AT MEADOWHALL                ,350485,,TRAINING CENTRES              
EVENTS IN PARKS               ,8200,EVENTS EXPENDITURE            ,09/07/2014,3671237,514033,"1,030.00",BANNER PLANT  LTD                       ,203248,,PLANT & MACHINERY HIRE & LEASI
PEST CONTROL                  ,8010,EQUIPMENT PURCHASE AND REPAIR ,09/07/2014,3671246,SI02-0028954             ,"2,126.12",KILLGERM CHEMICALS LTD                  ,206229,,PEST & VERMIN CONTROL PRODUCTS
GP HEALTH CHECKS              ,9120,OTHER AGENCIES                ,09/07/2014,3671259,C88073_0002              ,"1,240.00",HEELEY GREEN SURGERY                    ,581086,,PUBLIC HEALTH SUPPLIERS       
COMMUNICATIONS                ,8550,OTHER SERVICES                ,09/07/2014,3671299,70194,308.00,INTOPRINT (UK) LIMITED                  ,319560,,PRINTERS                      
TREE PLANTING                 ,8440,FEE EXPENSES                  ,09/07/2014,3671329,20584146,455.00,DONCASTER MBC                           ,343791,,LOCAL GOVERNMENT              
PURCHASING LEARNING DISABILITI,9190,EX POOL CLIENTS               ,09/07/2014,3671429,SI05/00010457            ,"233,575.27",DIMENSIONS (UK) LTD.                    ,386516,,DISABILITY & SPECIAL NEEDS - S
GP HEALTH CHECKS              ,9120,OTHER AGENCIES                ,09/07/2014,3671433,C88014_0002              ,600.00,DR HARDY & PARTNERS                     ,401413,,CLINICS - N.H.S.              
EVENTS IN PARKS               ,8200,EVENTS EXPENDITURE            ,09/07/2014,3671544,1923396,"2,500.00",SHEFFIELD NEWSPAPERS LTD                ,208391,,NEWSPAPER & MAGAZINE PUBLISHER
RESPONSIVE HM&E               ,6020,LEGIONELLA MONITORING         ,09/07/2014,3671662,10765433,"1,364.61",INTERSERVE FS (UK) LTD                  ,437082,,CLEANING SERVICES - COMMERCIAL
RESPONSIVE HM&E               ,6020,LEGIONELLA MONITORING         ,09/07/2014,3671665,10763548,"3,108.83",INTERSERVE FS (UK) LTD                  ,437082,,CLEANING SERVICES - COMMERCIAL
CITY WIDE CARE ALARMS         ,8390,STATIONERY                    ,09/07/2014,3671691,6900691085,287.16,LYRECO UK LTD                           ,593417,,OFFICE FURNITURE & EQUIPMENT  
ALDINE HOUSE                  ,6030,REPAIRS AND MTCE - RESPONSIVE ,09/07/2014,3672174,9931,518.35,COUNTY GLAZING LTD                      ,306497,,GLAZIERS                      
ALDINE HOUSE                  ,6030,REPAIRS AND MTCE - RESPONSIVE ,09/07/2014,3672175,7541,300.00,BLUE BOX IT                             ,580340,,AUDIO-VISUAL EQUIPMENT & SUPPL
PARKS COMMUNITY PARTNERSHIP   ,8180,GRANTS                        ,09/07/2014,3672223,4875,"36,337.50",GREEN ESTATE LTD                        ,388189,,WASTE DISPOSAL SERVICES       
CONTRACT PAYMENTS � DRUGS     ,9030,HEALTH                        ,09/07/2014,3672240,2014PR003                ,975.00,CIEL PERSPECTIVES LTD                   ,597784,,PUBLIC HEALTH SUPPLIERS       
TRANSPORT FLEET PASSENGER SERV,8110,"CLOTHING, UNIFORM AND LAUNDRY ",09/07/2014,3672262,4000395150,271.75,SHEFFIELD TEACHING HOSPITALS            ,379401,,HOSPITALS                     
EY/MAST PREMISES              ,6280,HIRE OF PREMISES              ,09/07/2014,3672281,BFC01                    ,380.00,WOODHOUSE NURSERY                       ,311931,,NURSERIES & CRECHES           
SEN TAXIS                     ,7060,EXTERNAL VEHICLE HIRE         ,09/07/2014,3672558,78637,"15,643.15",ACTIVE TRANSPORT                        ,347912,,MINI BUSES - HIRE & LEASING   
SOCIAL CARE TAXIS             ,7060,EXTERNAL VEHICLE HIRE         ,09/07/2014,3672559,78638,"12,420.49",ACTIVE TRANSPORT                        ,347912,,MINI BUSES - HIRE & LEASING   
PARKS OPS EAST & NORTH EAST   ,7020,VEHICLE FUEL COSTS            ,09/07/2014,3672564,2767988,"1,293.60",CERTAS ENERGY UK LTD                    ,490002,,OIL FUEL DISTRIBUTORS         
PARKS OPS EAST & NORTH EAST   ,7020,VEHICLE FUEL COSTS            ,09/07/2014,3672567,2762464,252.40,CERTAS ENERGY UK LTD                    ,490002,,OIL FUEL DISTRIBUTORS         
SHEFFIELD TRADING STANDARDS   ,7140,PUBLIC TRANSPORT COSTS        ,09/07/2014,3672579,01/4855765               ,476.67,CLARITY TRAVEL MANAGEMENT               ,202987,,TRAVEL AGENTS & HOLIDAY COMPAN
DOG BIN SERVICE               ,8060,MATERIALS AND SUPPLIES GENERAL,09/07/2014,3672593,0000032678AA             ,809.00,VIRIDOR WASTE MANAGEMENT LTD            ,510903,,WASTE DISPOSAL SERVICES       
ALDINE HOUSE                  ,9120,OTHER AGENCIES                ,09/07/2014,3672596,VIVC0000199              ,547.05,VOICE                                   ,328689,,CHARITIES & VOLUNTARY ORGANISA
PLAYGROUND MAINTENANCE & INSPE,8010,EQUIPMENT PURCHASE AND REPAIR ,09/07/2014,3672638,14155,430.00,HUCK TEK T/A A DIVISION OF HUCK N       ,394198,,NETTING                       
GP HEALTH CHECKS              ,9120,OTHER AGENCIES                ,09/07/2014,3672642,C88010_0002              ,"2,340.00",DR CHAMBERS & PARTNERS BURNCROSS SURGERY,582715,,PUBLIC HEALTH SUPPLIERS       
STANIFORTH ROAD WORKSHOPS     ,7010,ROUTINE VEHICLE REPAIR & MTCE ,09/07/2014,3672551,01I07591                 ,"3,972.00",DEXEL TYRE CO LTD                       ,204367,,CAR ACCESSORIES & PARTS       
PURCHASING                    ,9190,DIRECT PAYMENTS               ,09/07/2014,3672331,J934125                  ,"1,115.92",REDACTED PERSONAL DATA,556890,Social Community Care,CAREFIRST DIRECT PAYMENTS     
ADULT SOCIAL CARE PURCHASING  ,9190,DIRECT PAYMENTS               ,09/07/2014,3672335,J934125                  ,"1,182.11",REDACTED PERSONAL DATA,562178,Social Community Care,CAREFIRST DIRECT PAYMENTS     
ADULT SOCIAL CARE PURCHASING  ,9190,DIRECT PAYMENTS               ,09/07/2014,3672336,J934125                  ,647.48,REDACTED PERSONAL DATA,565970,Social Community Care,CAREFIRST DIRECT PAYMENTS     
PURCHASING LEARNING DISABILITI,9190,DIRECT PAYMENTS               ,09/07/2014,3672339,J934125                  ,"1,220.60",REDACTED PERSONAL DATA,570735,Social Community Care,CAREFIRST DIRECT PAYMENTS     
PURCHASING LEARNING DISABILITI,9190,DIRECT PAYMENTS               ,09/07/2014,3672340,J934125                  ,750.08,REDACTED PERSONAL DATA,575573,Social Community Care,CAREFIRST DIRECT PAYMENTS     
PURCHASING LEARNING DISABILITI,9190,FUNDED HOME SUPPORT           ,09/07/2014,3672342,J934125                  ,"1,629.84",REDACTED PERSONAL DATA,576122,Social Community Care,CAREFIRST DIRECT PAYMENTS     
PURCHASING LEARNING DISABILITI,9190,DIRECT PAYMENTS               ,09/07/2014,3672343,J934125                  ,312.00,REDACTED PERSONAL DATA,577339,Social Community Care,CAREFIRST DIRECT PAYMENTS     
ADULT SOCIAL CARE PURCHASING  ,9190,DIRECT PAYMENTS               ,09/07/2014,3672345,J934125                  ,"2,100.01",SERENTA HOMECARE LTD                    ,582621,Social Community Care,CAREFIRST DIRECT PAYMENTS     
DIRECT PAYMENTS               ,9190,DIRECT PAYMENTS               ,09/07/2014,3672355,J934125                  ,"1,057.51",REDACTED PERSONAL DATA,590419,Social Community Care,CAREFIRST DIRECT PAYMENTS     
ADULT SOCIAL CARE PURCHASING  ,9190,DIRECT PAYMENTS               ,09/07/2014,3672356,J934125                  ,"8,829.26",REDACTED PERSONAL DATA,593254,Social Community Care,CAREFIRST DIRECT PAYMENTS     
PURCHASING LEARNING DISABILITI,9190,DIRECT PAYMENTS               ,09/07/2014,3672362,J934125                  ,"1,090.69",REDACTED PERSONAL DATA,597640,Social Community Care,CAREFIRST DIRECT PAYMENTS     
ADULT SOCIAL CARE PURCHASING  ,9190,DIRECT PAYMENTS               ,09/07/2014,3672363,J934125                  ,576.00,REDACTED PERSONAL DATA,597690,Social Community Care,CAREFIRST DIRECT PAYMENTS     
DIRECT PAYMENTS               ,9190,DIRECT PAYMENTS               ,09/07/2014,3672364,J934125                  ,318.00,REDACTED PERSONAL DATA,597736,Social Community Care,CAREFIRST DIRECT PAYMENTS     
PURCHASING LEARNING DISABILITI,9190,DIRECT PAYMENTS               ,09/07/2014,3672365,J934125                  ,995.59,REDACTED PERSONAL DATA,597737,Social Community Care,CAREFIRST DIRECT PAYMENTS     
PURCHASING LEARNING DISABILITI,9190,DIRECT PAYMENTS               ,09/07/2014,3672366,J934125                  ,"3,869.65",REDACTED PERSONAL DATA,597743,Social Community Care,CAREFIRST DIRECT PAYMENTS     
ADULT SOCIAL CARE PURCHASING  ,9190,DIRECT PAYMENTS               ,09/07/2014,3672367,J934125                  ,"3,500.00",REDACTED PERSONAL DATA,597865,Social Community Care,CAREFIRST DIRECT PAYMENTS     
PURCHASING LEARNING DISABILITI,9190,SUPPORT PLANNING COSTS        ,09/07/2014,3672369,J933310                  ,330.00,REDACTED PERSONAL DATA,576122,Social Community Care,CAREFIRST DIRECT PAYMENTS     
PURCHASING LEARNING DISABILITI,9190,SUPPORT PLANNING COSTS        ,09/07/2014,3672370,J933310                  ,660.00,REDACTED PERSONAL DATA,577009,Social Community Care,CAREFIRST DIRECT PAYMENTS     
PURCHASING LEARNING DISABILITI,9190,DIRECT PAYMENTS               ,09/07/2014,3672371,J934125                  ,"1,036.49",REDACTED PERSONAL DATA,417760,Social Community Care,CAREFIRST DIRECT PAYMENTS     
PURCHASING LEARNING DISABILITI,9190,DIRECT PAYMENTS               ,09/07/2014,3672373,J934125                  ,"2,565.95",REDACTED PERSONAL DATA,461241,Social Community Care,CAREFIRST DIRECT PAYMENTS     
PURCHASING LEARNING DISABILITI,9190,FUNDED HOME SUPPORT           ,09/07/2014,3672373,J934125                  ,842.20,REDACTED PERSONAL DATA,461241,Social Community Care,CAREFIRST DIRECT PAYMENTS     
ADULT SOCIAL CARE PURCHASING  ,9190,DIRECT PAYMENTS               ,09/07/2014,3672376,J934125                  ,"7,056.00",REDACTED PERSONAL DATA,475431,Social Community Care,CAREFIRST DIRECT PAYMENTS     
PURCHASING LEARNING DISABILITI,9190,DIRECT PAYMENTS               ,09/07/2014,3672377,J934125                  ,"2,498.97",REDACTED PERSONAL DATA,491073,Social Community Care,CAREFIRST DIRECT PAYMENTS     
ADULT SOCIAL CARE PURCHASING  ,9190,DIRECT PAYMENTS               ,09/07/2014,3672379,J934125                  ,865.30,REDACTED PERSONAL DATA,517802,Social Community Care,CAREFIRST DIRECT PAYMENTS     
ADULT SOCIAL CARE PURCHASING  ,9190,DIRECT PAYMENTS               ,09/07/2014,3672380,J934125                  ,"5,263.11",REDACTED PERSONAL DATA,528246,Social Community Care,CAREFIRST DIRECT PAYMENTS     
ADULT SOCIAL CARE PURCHASING  ,9190,DIRECT PAYMENTS               ,09/07/2014,3672381,J934125                  ,441.00,REDACTED PERSONAL DATA,529570,Social Community Care,CAREFIRST DIRECT PAYMENTS     
ADULT SOCIAL CARE PURCHASING  ,9190,DIRECT PAYMENTS               ,09/07/2014,3672383,J934125                  ,"1,944.00",REDACTED PERSONAL DATA,551604,Social Community Care,CAREFIRST DIRECT PAYMENTS     
